Departmental Family,Entity,Date,Expense Type,Expense Area,Supplier,Transaction Number,Amount
Department for Work and Pensions ,Corporate,31/12/2014,PRIME FACILITY PRICE,FG CD OPS ESTATES PRIME COSTS,TELEREAL TRILLIUM,2033470373,"33,527,415"
Department for Work and Pensions ,Corporate,18/12/2014,2014 DIFFUSE MESOTHELIOMA SCHEME PAYMENTS,STR HEALTH AND WELLBEING MESOTHELIOMA 2014,GALLAGHER BASSETT,1006879,"12,000,000"
Department for Work and Pensions ,Corporate,05/12/2014,PUBLIC SECTOR PENSIONS LEVY,STR PSP LEVY,THE PENSIONS REGULATOR,1006854,"11,767,327"
Department for Work and Pensions ,Corporate,12/12/2014,HOSTING SERVICES,CIO ITLR HOSTING DEL P,HP ENTERPRISE SERVICES UK LTD,2033439650,"8,644,758"
Department for Work and Pensions ,Corporate,12/12/2014,MEDICAL SERVICES - PERFORMANCE PAYMENTS,FG HS PIP LOT 2,CAPITA BUSINESS SERVICES LTD,2033438684,"7,300,000"
Department for Work and Pensions ,Corporate,31/12/2014,MEDICAL SERVICES - PERFORMANCE PAYMENTS,FG HS PIP LOT 2,CAPITA BUSINESS SERVICES LTD,1006897,"6,840,635"
Department for Work and Pensions ,Corporate,09/12/2014,NETWORK SERVICES,CIO ITLR NETWORK,BT GLOBAL SERVICES,2033432486,"5,489,118"
Department for Work and Pensions ,Corporate,31/12/2014,PIP FACE TO FACE ASSESSMENTS,FG HS PIP LOT 2,CAPITA BUSINESS SERVICES LTD,1006897,"4,910,452"
Department for Work and Pensions ,Corporate,24/12/2014,DESKTOP SERVICES,CIO ITLR DESKTOP,HP ENTERPRISE SERVICES UK LTD,2033463142,"4,745,459"
Department for Work and Pensions ,Employment Programmes,24/12/2014,CPS LP RECOVERIES,BALANCE SHEET,DWP MANUAL PAYMENTS,2005114,"4,699,257"
Department for Work and Pensions ,Corporate,08/12/2014,PIP FACE TO FACE ASSESSMENTS,FG HS PIP LOT 1,ATOS IT SERVICES UK LTD,2033430424,"4,660,507"
Department for Work and Pensions ,Corporate,16/12/2014,AMS FIXED PRICE CONTRACTS,CIO ITLR AMS,HP ENTERPRISE SERVICES UK LTD,2033445556,"4,507,991"
Department for Work and Pensions ,Corporate,19/12/2014,NEST Loan - in year additions,CHG ERSP DEL P,NEST CORPORATION,2005112,"4,500,000"
Department for Work and Pensions ,Corporate,31/12/2014,PRIME BUSINESS RATES,FG CD OPS ESTATES PRIME COSTS,TELEREAL TRILLIUM,2033470374,"4,390,097"
Department for Work and Pensions ,Corporate,23/12/2014,POST OFFICE CARD ACCOUNT,FG FIN CONT COBAP POCA,POST OFFICE LTD,2033460652,"4,283,258"
Department for Work and Pensions ,Corporate,02/12/2014,POST OFFICE CARD ACCOUNT,FG FIN CONT COBAP POCA,POST OFFICE LTD,1006842,"4,260,825"
Department for Work and Pensions ,Corporate,17/12/2014,MEDICAL SERVICES FIXED COSTS,FG HS MEDICAL SERVICES CONTRACT DEL P,ATOS HEALTHCARE,2033448206,"3,822,996"
Department for Work and Pensions ,Corporate,09/12/2014,POSTAGE,FG CD ACC POSTAGE,UK MAIL,2033432487,"3,816,934"
Department for Work and Pensions ,Corporate,11/12/2014,PIP FACE TO FACE ASSESSMENTS,FG HS PIP LOT 3,ATOS IT SERVICES UK LTD,2033437864,"3,700,381"
Department for Work and Pensions ,Corporate,18/12/2014,PRIME BILLABLE EXTRAS PRIME CONTRACT MANAGEMENT (PCM),OPS WDC WSD EMPLOYMENT PROGRAMMES,TELEREAL TRILLIUM,2033452501,"3,534,673"
Department for Work and Pensions ,Corporate,22/12/2014,PIP FACE TO FACE ASSESSMENTS,FG HS PIP LOT 2,CAPITA BUSINESS SERVICES LTD,2033458891,"3,359,521"
Department for Work and Pensions ,Corporate,15/12/2014,CONTRACTED OUT OFFICE SERVICES,FG CD CENTRAL CONTRACTS,COFELY WORKPLACE LTD,2033444554,"3,204,992"
Department for Work and Pensions ,Corporate,15/12/2014,HOSTING SERVICES,CIO ITLR HOSTING DEL P,HP ENTERPRISE SERVICES UK LTD,2033445445,"3,165,530"
Department for Work and Pensions ,Corporate,22/12/2014,MEDICAL SERVICES - PERFORMANCE PAYMENTS,FG HS PIP LOT 2,CAPITA BUSINESS SERVICES LTD,2033458891,"3,020,138"
Department for Work and Pensions ,Corporate,05/12/2014,PIP FACE TO FACE ASSESSMENTS,FG HS PIP LOT 2,CAPITA BUSINESS SERVICES LTD,2033427611,"2,938,538"
Department for Work and Pensions ,Corporate,02/12/2014,RENEWALS OF SOFTWARE SUPPORT AND MAINTENANCE,CIO ITLR SOFTWARE P,COMPUTACENTER UK LTD,2033417369,"2,927,004"
Department for Work and Pensions ,Corporate,31/12/2014,AR PRIME RECOVERIES,BALANCE SHEET,TELEREAL TRILLIUM,2033470373,"2,649,668"
Department for Work and Pensions ,Corporate,15/12/2014,RENEWALS OF SOFTWARE SUPPORT AND MAINTENANCE,CIO ITLR SOFTWARE P,HP ENTERPRISE SERVICES UK LTD,2033445445,"2,551,691"
Department for Work and Pensions ,Child Maintenance and Enforcement Commission,02/12/2014,CONTRACTED OUT OFFICE SERVICES,EXTERNAL CONTRACTS VERTEX,SERCO PUBLIC SERVICES LTD,1000224211,"2,490,507"
Department for Work and Pensions ,Corporate,02/12/2014,MEDICAL SERVICES - PERFORMANCE PAYMENTS,FG HS PIP LOT 2,CAPITA BUSINESS SERVICES LTD,2033417342,"2,462,202"
Department for Work and Pensions ,Employment Programmes,22/12/2014,REMPLOY RESOURCE GRANT,WWEG EP REMPLOY,REMPLOY LTD,2033459372,"2,296,000"
Department for Work and Pensions ,Child Maintenance and Enforcement Commission,09/12/2014,BELFAST BENEFIT CENTRE (RUN COSTS),CSA CD CENT HELD NORTHERN IRELAND PAYMENTS,DSD GROUP ACCOUNT,1001901,"2,269,388"
Department for Work and Pensions ,Corporate,15/12/2014,SIAM FIXED PRICE CONTRACTS,CIO ITLR SIAM,HP ENTERPRISE SERVICES UK LTD,2033445445,"1,781,111"
Department for Work and Pensions ,Corporate,31/12/2014,PRIME FACILITY PRICE,FG CD CMG ESTATES PRIME COSTS,TELEREAL TRILLIUM,2033470373,"1,713,828"
Department for Work and Pensions ,Corporate,23/12/2014,NON PRIME UTILITIES,FG CD DWP GAS & ELECTRICITY PAYMENTS / RECHARGES,EDF ENERGY 1 LTD SCC UTILITIES ONLY,2033460177,"1,703,511"
Department for Work and Pensions ,Corporate,11/12/2014,NETWORK CONTACT CENTRE SERVICES,CIO ITLR NETWORK,BT GLOBAL SERVICES,2033437298,"1,696,093"
Department for Work and Pensions ,Corporate,29/12/2014,CONTRACTED OUT HR SERVICES,HR SHARED SERVICES,SHARED SERVICES CONNECTED LTD,2033467675,"1,596,993"
Department for Work and Pensions ,Corporate,16/12/2014,HOSTING SERVICES,CIO ITLR HOSTING DEL P,HP ENTERPRISE SERVICES UK LTD,2033445556,"1,549,920"
Department for Work and Pensions ,Corporate,09/12/2014,NETWORK CONTACT CENTRE SERVICES,CIO ITLR NETWORK,BT GLOBAL SERVICES,2033432486,"1,538,535"
Department for Work and Pensions ,Corporate,08/12/2014,BELFAST BENEFIT CENTRE (RUN COSTS),OPS BEN BD LN BELFAST,DEPARTMENT FOR SOCIAL DEVELOPMENT,1006863,"1,502,302"
Department for Work and Pensions ,Corporate,15/12/2014,HOSTING PRINT SERVICES,CIO ITLR HOSTING DEL P,HP ENTERPRISE SERVICES UK LTD,2033445445,"1,495,414"
Department for Work and Pensions ,Corporate,22/12/2014,MEDICAL OPINIONS INCAPACITY BENEFIT,FG HS MEDICAL SERVICES CONTRACT DEL P,ATOS HEALTHCARE,2033459601,"1,449,409"
Department for Work and Pensions ,Corporate,09/12/2014,TELEPHONY CALL CHARGES,CIO ITLR NETWORK,BT GLOBAL SERVICES,2033432486,"1,407,556"
Department for Work and Pensions ,Corporate,16/12/2014,TREDDS IS IT CONSULTANCY (HOSTING) NON ADVICE,CHG UC PATHFINDER DELIVERY MANAGEMENT,HP ENTERPRISE SERVICES UK LTD,2033445556,"1,313,833"
Department for Work and Pensions ,Corporate,11/12/2014,PIP PAPER BASED ASSESSMENTS,FG HS PIP LOT 3,ATOS IT SERVICES UK LTD,2033437864,"1,297,315"
Department for Work and Pensions ,Corporate,31/12/2014,PRIME FACILITY PRICE,FG CD CAXTON,TELEREAL TRILLIUM,2033470373,"1,294,303"
Department for Work and Pensions ,Corporate,29/12/2014,CONTRACTED OUT ACCOUNTING SERVICES,FG SHARED SERVICES COSTS,SHARED SERVICES CONNECTED LTD,2033467675,"1,266,598"
Department for Work and Pensions ,Corporate,24/12/2014,HOSTING SERVICES,CIO ITLR HOSTING DEL P,HP ENTERPRISE SERVICES UK LTD,2033463142,"1,257,686"
Department for Work and Pensions ,Corporate,08/12/2014,PIP PAPER BASED ASSESSMENTS,FG HS PIP LOT 1,ATOS IT SERVICES UK LTD,2033430424,"1,158,400"
Department for Work and Pensions ,Corporate,16/12/2014,COURIER COSTS,FG CD CENTRAL CONTRACTS,TNT UK LTD,2033446642,"1,130,175"
Department for Work and Pensions ,Corporate,16/12/2014,CONTRACTED OUT OFFICE SERVICES,OPS NET CC CAPITA,CAPITA,2033445790,"1,121,950"
Department for Work and Pensions ,Corporate,15/12/2014,MEDICAL OPINIONS INCAPACITY BENEFIT,FG HS MEDICAL SERVICES CONTRACT DEL P,ATOS HEALTHCARE,2033444360,"1,105,827"
Department for Work and Pensions ,Corporate,24/12/2014,NON-TREDDS IS IT APPS DEV MANDAY,CHG UC PATHFINDER DELIVERY MANAGEMENT,ACCENTURE UK LTD,2033463900,"1,056,435"
Department for Work and Pensions ,Corporate,08/12/2014,VALUATION OFFICE,FG OPS FIN HDD VOA,VALUATION OFFICE AGENCY,2005079,"1,050,000"
Department for Work and Pensions ,Corporate,12/12/2014,RENEWALS OF SOFTWARE SUPPORT AND MAINTENANCE,CHG UC PATHFINDER RECURRENT COSTS,SPECIALIST COMPUTER CENTRES PLC,2033439864,"1,000,027"
Department for Work and Pensions ,Corporate,16/12/2014,OFFICE EQUIPMENT - CURRENT,CHG ELECTRONIC SIGNING,HP ENTERPRISE SERVICES UK LTD,2033445556,"997,341"
Department for Work and Pensions ,Corporate,29/12/2014,NON-TREDDS IS IT SERVICES (AMS),CIO ITPD AM FACILITATING SYS,IBM UNITED KINGDOM LTD,2033466440,"934,020"
Department for Work and Pensions ,Employment Programmes,01/12/2014,REMPLOY RESOURCE GRANT,WWEG EP REMPLOY,REMPLOY LTD,1006839,"900,000"
Department for Work and Pensions ,Corporate,15/12/2014,PRIME VARIABLE CHARGE,FG CD OPS ESTATES PRIME COSTS,TELEREAL TRILLIUM,2033443890,"841,416"
Department for Work and Pensions ,Corporate,31/12/2014,PIP PAPER BASED ASSESSMENTS,FG HS PIP LOT 2,CAPITA BUSINESS SERVICES LTD,1006897,"823,222"
Department for Work and Pensions ,European Social Fund,18/12/2014,MA ESF(D) PROGRAMME EXPENDITURE EC PREFUNDED DWP,WWEG EUROPEAN SOCIAL FUND PROGRAMME 2007-2013,ESF EVAL TEAM SOC JUST EVID & ANALYSIS DIV,5000001762,"788,496"
Department for Work and Pensions ,Housing Benefits,01/12/2014,STATUTORY SICK PAY (SSP) PAYMENTS INTO NATIONAL INSURANCE FUND (NIF),BPD HBRF,HM REVENUE & CUSTOMS,2005068,"750,000"
Department for Work and Pensions ,Corporate,17/12/2014,REMOTE STORAGE COSTS VAT RECOV,FG CD CENTRAL CONTRACTS,CAPITA BUSINESS SERVICES LTD,2033448186,"719,191"
Department for Work and Pensions ,Corporate,24/12/2014,NON-TREDDS IS IT SERVICES (AMS),CIO ITLR AMS,ACCENTURE UK LTD,2033463901,"702,411"
Department for Work and Pensions ,Corporate,11/12/2014,CONTRACTED OUT ORIGINAL RESEARCH,F&C IGS STAT SERVICES,OFFICE FOR NATIONAL STATISTICS,2033437506,"700,000"
Department for Work and Pensions ,Child Maintenance and Enforcement Commission,23/12/2014,CONTRACTED OUT OFFICE SERVICES,EXTERNAL CONTRACTS VERTEX,SERCO PUBLIC SERVICES LTD,1000225856,"687,668"
Department for Work and Pensions ,Corporate,16/12/2014,NON PRIME UTILITIES,FG CD DWP GAS & ELECTRICITY PAYMENTS / RECHARGES,CORONA ENERGY RETAIL 4 LTD SCC UTILITIES ONLY,2033445748,"657,963"
Department for Work and Pensions ,Corporate,12/12/2014,DESKTOP SERVICES,CIO ITLR SUSTAINABLE PRINT SERVICE,XEROX UK LTD 3W,2033439998,"648,248"
Department for Work and Pensions ,Housing Benefits,12/12/2014,HOUSING BENEFIT ADMINISTRATION,HB ENGLAND,BIRMINGHAM CITY COUNCIL,2033438376,"646,826"
Department for Work and Pensions ,Corporate,23/12/2014,NON-TREDDS IS IT SERVICES (AMS),CIO GG SERVICE DELIVERY,ATOS ORIGIN IT SERVICES UK LTD,2033460675,"630,463"
Department for Work and Pensions ,Corporate,05/12/2014,PIP PAPER BASED ASSESSMENTS,FG HS PIP LOT 2,CAPITA BUSINESS SERVICES LTD,2033427611,"620,973"
Department for Work and Pensions ,Corporate,12/12/2014,HOSTING FIXED PRICE CONTRACTS,CIO ITLR HOSTING DEL P,HP ENTERPRISE SERVICES UK LTD,2033439650,"618,063"
Department for Work and Pensions ,Corporate,12/12/2014,RENEWALS OF SOFTWARE SUPPORT AND MAINTENANCE,CIO ITLR SOFTWARE P,SPECIALIST COMPUTER CENTRES PLC,2033439864,"610,883"
Department for Work and Pensions ,Corporate,15/12/2014,CONTRACTED OUT OFFICE SERVICES,FG CD OFFICE SERVICES,COFELY WORKPLACE LTD,2033444554,"588,711"
Department for Work and Pensions ,Corporate,22/12/2014,PIP PAPER BASED ASSESSMENTS,FG HS PIP LOT 2,CAPITA BUSINESS SERVICES LTD,2033458891,"584,075"
Department for Work and Pensions ,Corporate,15/12/2014,CONTRACTED OUT OFFICE SERVICES,CHG MOSAIC RECURRENT,COFELY WORKPLACE LTD,2033444554,"570,022"
Department for Work and Pensions ,Corporate,08/12/2014,POSTAGE,FG CD ACC POSTAGE,ROYAL MAIL GROUP PLC,2033429535,"552,554"
Department for Work and Pensions ,Corporate,19/12/2014,BANK COMMISSION & CHARGES,FG FIN CONT COBAP BANKING,HSBC BANK PLC,2033453085,"546,352"
Department for Work and Pensions ,Corporate,03/12/2014,AMS MANDAYS,CIO ITLR DIRECT COSTS CMG,TATA CONSULTANCY SERVICES LTD,2033419619,"544,962"
Department for Work and Pensions ,Corporate,15/12/2014,TREDDS APPS DEV MANDAYS,CHG PIP IT PHASE 3,HP ENTERPRISE SERVICES UK LTD,2033445445,"526,318"
Department for Work and Pensions ,Corporate,31/12/2014,PRIME FACILITY PRICE,FG CD LEEDS QUARRY HOUSE,TELEREAL TRILLIUM,2033470373,"512,657"
Department for Work and Pensions ,Corporate,29/12/2014,NON-TREDDS IS IT SERVICES (AMS),CIO ITLR AMS,ACCENTURE UK LTD,2033465795,"504,940"
Department for Work and Pensions ,Corporate,30/12/2014,"CREDIT UNION SHSVCS, ADMIN & PRODUCTS",CHG CREDIT UNION EXPANSION AND DEVELOPMENT DELP,THE ASSOCIATION OF BRITISH CREDIT UNIONS LTD,2033471928,"500,790"
Department for Work and Pensions ,Corporate,15/12/2014,STATIONERY/ PUBLICATIONS/IT CONSUMABLES,CHG STATE PENSION REFORM SINGLE TIER,HM REVENUE & CUSTOMS,2005095,"487,810"
Department for Work and Pensions ,Corporate,12/12/2014,CONTRACTED OUT PRINTING & STATIONERY SOLUTIONS,FG CD MANAGEMENT FEE,XEROX UK LTD 3W,2033439997,"480,172"
Department for Work and Pensions ,Corporate,04/12/2014,SIMPLE PAYMENT SERVICE,FG FIN CONT COBAP CHEQUES,CITIBANK GLOBAL CORPORATE BANKING,2033421288,"479,656"
Department for Work and Pensions ,Corporate,11/12/2014,NETWORK SERVICES,CIO ITLR NETWORK,BT GLOBAL SERVICES,2033437298,"467,391"
Department for Work and Pensions ,Housing Benefits,12/12/2014,HOUSING BENEFIT ADMINISTRATION,HB SCOTLAND,CITY OF GLASGOW,2033438205,"465,515"
Department for Work and Pensions ,Corporate,18/12/2014,CONTRACTED OUT ORIGINAL RESEARCH,F&C IGS STAT SERVICES,OFFICE FOR NATIONAL STATISTICS,2033451060,"457,320"
Department for Work and Pensions ,Corporate,11/12/2014,CONNECTIVITY,CIO ITLR PSN CONNECTIVITY,BT GLOBAL SERVICES,2033437298,"450,946"
Department for Work and Pensions ,Corporate,04/12/2014,RENEWALS OF SOFTWARE SUPPORT AND MAINTENANCE,CIO ITLR SOFTWARE P,SPECIALIST COMPUTER CENTRES PLC,2033423819,"443,809"
Department for Work and Pensions ,Corporate,31/12/2014,AR PRIME RECOVERIES,BALANCE SHEET,TELEREAL TRILLIUM,2033470374,"437,110"
Department for Work and Pensions ,Corporate,12/12/2014,ADEP AM SERVICES - VAT NON-RECOVERABLE,CHG SECURE DELIVERY & DESIGN,DETICA LTD,2033439069,"411,717"
Department for Work and Pensions ,Corporate,12/12/2014,CONTRACTORS & STAFF SUBSTITUTIONS,CHG NSP - SECURE DIGITAL CHANGE OF ADDRESS,DELOITTE LLP,2033438831,"405,957"
Department for Work and Pensions ,Corporate,12/12/2014,TREDDS APPS DEV FIXED PRICE CONTRACTS,OPS OPE C&I IT WINTER FUEL,HP ENTERPRISE SERVICES UK LTD,2033439650,"403,125"
Department for Work and Pensions ,Corporate,05/12/2014,CONTRACTED OUT DOCUMENT SCANNING,CHG SCANNING & DIGITAL STORAGE - AGILITY,XEROX UK LTD 3W,2033425566,"398,581"
Department for Work and Pensions ,Employment Programmes,11/12/2014,INNOVATION FUND,WWEG EP NATIONAL,NOTTINGHAM CITY COUNCIL,2033438059,"397,650"
Department for Work and Pensions ,Housing Benefits,12/12/2014,HOUSING BENEFIT ADMINISTRATION,HB ENGLAND,LIVERPOOL CITY COUNCIL,2033438278,"391,915"
Department for Work and Pensions ,Corporate,30/12/2014,CONTRACTED OUT DOCUMENT SCANNING,CHG SCANNING & DIGITAL STORAGE - AGILITY,XEROX UK LTD 3W,2033471529,"390,471"
Department for Work and Pensions ,Employment Programmes,12/12/2014,SERVICE FEE,"WWEG EP SUPPORT LONDON CENTRL, LAMBETH, SOUTHWRK AND WANDSWRTH",A4E LTD,2033439802,"389,163"
Department for Work and Pensions ,Corporate,09/12/2014,NON PRIME PROPERTY COSTS,CHG UC DESIGN & BUILD PROGRAMME MANAGER,DEPARTMENT FOR BUSINESS INNOVATION & SKILLS,2005081,"388,488"
Department for Work and Pensions ,Corporate,24/12/2014,CONTRACTORS & STAFF SUBSTITUTIONS,CHG UC DIRECTOR GENERAL,DELOITTE LLP,2033463003,"386,659"
Department for Work and Pensions ,Housing Benefits,12/12/2014,HOUSING BENEFIT ADMINISTRATION,HB ENGLAND,MANCHESTER CITY COUNCIL,2033438297,"380,722"
Department for Work and Pensions ,European Social Fund,04/12/2014,MA ESF(D) PROGRAMME EXPENDITURE EC PREFUNDED THIRD PARTIES,WWEG EUROPEAN SOCIAL FUND PROGRAMME 2007-2013,UNIVERSITY OF EXETER,5000001758,"378,665"
Department for Work and Pensions ,Employment Programmes,04/12/2014,SERVICE FEE,WWEP EP FG CEP SJ BLACK COUNTRY AND MERCIA,LEARNDIRECT LTD,2033422837,"370,000"
Department for Work and Pensions ,Corporate,09/12/2014,MANAGED SERVICE UNIVERSAL JOBMATCH,OPS NET DIG UNIVERSAL JOBMATCH CONTRACT,MONSTER GOVERNMENT SOLUTIONS,2033434156,"365,558"
Department for Work and Pensions ,Housing Benefits,12/12/2014,HOUSING BENEFIT ADMINISTRATION,HB ENGLAND,LEEDS CITY COUNCIL,2033438159,"364,588"
Department for Work and Pensions ,Corporate,22/12/2014,NON-TREDDS APPS DEV FIXED PRICE CONTRACTS,CIO ITLR DIRECT COSTS CMG,IBM UNITED KINGDOM LTD,2033459521,"363,941"
Department for Work and Pensions ,Corporate,16/12/2014,NON-TREDDS IS IT APPS DEV MANDAY,CHG PIP IT PHASE 3,IBM UNITED KINGDOM LTD,2033447252,"357,682"
Department for Work and Pensions ,Corporate,11/12/2014,NON-TREDDS IS IT SERVICES (HOSTING),CIO GG SERVICE DELIVERY,ATOS ORIGIN IT SERVICES UK LTD,2033437896,"357,051"
Department for Work and Pensions ,Child Maintenance and Enforcement Commission,04/12/2014,CONTRACTORS & STAFF SUBSTITUTIONS,DATA WAREHOUSE PHASE 1,CAPITA BUSINESS SERVICES LTD,1000224368,"352,244"
Department for Work and Pensions ,Corporate,31/12/2014,PRIME BUSINESS RATES,FG CD CAXTON,TELEREAL TRILLIUM,2033470374,"347,003"
Department for Work and Pensions ,Corporate,31/12/2014,PRIME UTILITIES,FG CD OPS ESTATES PRIME COSTS,TELEREAL TRILLIUM,2033470375,"337,194"
Department for Work and Pensions ,Corporate,31/12/2014,PRIME FACILITY PRICE,FG CD PEEL PARK,TELEREAL TRILLIUM,2033470373,"332,887"
Department for Work and Pensions ,Corporate,31/12/2014,PRIME FACILITY PRICE,FG CD MANCHESTER HEYWOOD STORES,TELEREAL TRILLIUM,2033470373,"318,418"
Department for Work and Pensions ,Corporate,09/12/2014,NON-TREDDS IS IT SERVICES (AMS),CIO GG SERVICE DELIVERY,ATOS ORIGIN IT SERVICES UK LTD,2033432076,"315,232"
Department for Work and Pensions ,Corporate,15/12/2014,TREDDS APPS DEV MANDAYS,CHG PIP IT PHASE 4,HP ENTERPRISE SERVICES UK LTD,2033445445,"314,548"
Department for Work and Pensions ,Corporate,15/12/2014,SIAM STAT MANDAYS,CIO ITLR SIAM,HP ENTERPRISE SERVICES UK LTD,2033445445,"306,587"
Department for Work and Pensions ,Corporate,31/12/2014,PRIME BUSINESS RATES,FG CD CMG ESTATES PRIME COSTS,TELEREAL TRILLIUM,2033470374,"301,622"
Department for Work and Pensions ,Housing Benefits,12/12/2014,HOUSING BENEFIT ADMINISTRATION,HB ENGLAND,LONDON BOROUGH OF TOWER HAMLETS,2033438374,"294,256"
Department for Work and Pensions ,Child Maintenance and Enforcement Commission,08/12/2014,CONTRACTED OUT OFFICE SERVICES,OPTIONS,G4S CUSTOMER SUPPORT SERVICES,1000224664,"293,100"
Department for Work and Pensions ,Employment Programmes,22/12/2014,INNOVATION FUND,WWEG EP NATIONAL,ENERGISE INNOVATION LTD,2033459086,"289,152"
Department for Work and Pensions ,Corporate,15/12/2014,NON-TREDDS IS IT SERVICES (AMS),OPS PEN PS TUO ISIT,ATOS ORIGIN IT SERVICES UK LTD,2033444682,"283,144"
Department for Work and Pensions ,Child Maintenance and Enforcement Commission,23/12/2014,CONTRACTED OUT OFFICE SERVICES,OPTIONS,G4S CUSTOMER SUPPORT SERVICES,1000225951,"282,827"
Department for Work and Pensions ,Housing Benefits,12/12/2014,HOUSING BENEFIT ADMINISTRATION,HB ENGLAND,LONDON BOROUGH OF LAMBETH,2033438415,"281,385"
Department for Work and Pensions ,Corporate,05/12/2014,ACCOUNTS PAYABLE UNAPPROVED INVOICES,CHG UC DESIGN & BUILD PROGRAMME MANAGER,DELOITTE LLP,2033424547,"280,603"
Department for Work and Pensions ,Corporate,22/12/2014,CONTRACTED OUT OFFICE SERVICES,OPS NET CC CAPITA,CAPITA BUSINESS SERVICES LTD,2033458092,"279,154"
Department for Work and Pensions ,Housing Benefits,12/12/2014,HOUSING BENEFIT ADMINISTRATION,HB ENGLAND,LONDON BOROUGH OF LEWISHAM,2033438167,"278,521"
Department for Work and Pensions ,Corporate,16/12/2014,DESKTOP SERVICES,CIO ITLR DESKTOP,HP ENTERPRISE SERVICES UK LTD,2033445556,"276,614"
Department for Work and Pensions ,Corporate,29/12/2014,STAFF TRAINING VAT RECOVERABLE,HR CONTRACTUAL L AND D,CAPITA CIVIL SERVICE LEARNING,2033465902,"274,328"
Department for Work and Pensions ,Corporate,16/12/2014,TREDDS APPS DEV MANDAYS,CHG UC PATHFINDER DELIVERY MANAGEMENT,HP ENTERPRISE SERVICES UK LTD,2033445556,"272,763"
Department for Work and Pensions ,Housing Benefits,12/12/2014,HOUSING BENEFIT ADMINISTRATION,HB ENGLAND,BRADFORD METROPOLITAN BOROUGH COUNCIL,2033438436,"271,434"
Department for Work and Pensions ,Employment Programmes,23/12/2014,WP JSA 25+ SUSTAINMENT OUTCOME PAYMENT,WWEG EP W MIDLANDS BIRM SOL BC FOURSTAR EMP AND SKILLS,AVANTA ENTERPRISE LTD,2033461226,"271,115"
Department for Work and Pensions ,Housing Benefits,12/12/2014,HOUSING BENEFIT ADMINISTRATION,HB ENGLAND,HACKNEY LBC,2033438377,"269,625"
Department for Work and Pensions ,Housing Benefits,12/12/2014,HOUSING BENEFIT ADMINISTRATION,HB ENGLAND,DURHAM COUNCIL,2033438450,"267,614"
Department for Work and Pensions ,Employment Programmes,22/12/2014,INNOVATION FUND,WWEG EP NATIONAL,NOTTINGHAM CITY COUNCIL,2033459484,"266,350"
Department for Work and Pensions ,Child Maintenance and Enforcement Commission,16/12/2014,TREDDS APPS DEV MANDAYS,FS PHASE 2 - HPES COSTS,HP ENTERPRISE SERVICES UK LTD,1000225358,"260,263"
Department for Work and Pensions ,Corporate,29/12/2014,CONSULTANTS VAT RECOVERABLE,OPS CCS WCA NEW PROCUREMENT,ERNST & YOUNG LLP,2033465885,"258,631"
Department for Work and Pensions ,Housing Benefits,12/12/2014,HOUSING BENEFIT ADMINISTRATION,HB ENGLAND,LONDON BOROUGH OF SOUTHWARK,2033438320,"255,725"
Department for Work and Pensions ,Housing Benefits,12/12/2014,HOUSING BENEFIT ADMINISTRATION,HB ENGLAND,SHEFFIELD CITY COUNCIL,2033438462,"252,120"
Department for Work and Pensions ,Corporate,16/12/2014,TREDDS APPS DEV FIXED PRICE CONTRACTS,CHG ELECTRONIC SIGNING,HP ENTERPRISE SERVICES UK LTD,2033445556,"249,089"
Department for Work and Pensions ,Corporate,22/12/2014,HOSTING SERVICES,CIO ITLR HOSTING DEL P,HP ENTERPRISE SERVICES UK LTD,2033459025,"247,074"
Department for Work and Pensions ,Corporate,04/12/2014,NON-TREDDS IS IT SERVICES (AMS),OPS PEN PS TUO ISIT,ATOS ORIGIN IT SERVICES UK LTD,2033421715,"241,038"
Department for Work and Pensions ,Housing Benefits,12/12/2014,HOUSING BENEFIT ADMINISTRATION,HB ENGLAND,BRISTOL CITY COUNCIL,2033438445,"235,177"
Department for Work and Pensions ,Housing Benefits,12/12/2014,HOUSING BENEFIT ADMINISTRATION,HB ENGLAND,CORNWALL COUNCIL,2033438451,"233,440"
Department for Work and Pensions ,Housing Benefits,12/12/2014,HOUSING BENEFIT ADMINISTRATION,HB ENGLAND,LONDON BOROUGH OF BRENT,2033438327,"231,991"
Department for Work and Pensions ,Corporate,11/12/2014,NON-TREDDS APPS DEV FIXED PRICE CONTRACTS,CIO GG SERVICE DELIVERY,ATOS ORIGIN IT SERVICES UK LTD,2033437896,"228,854"
Department for Work and Pensions ,Corporate,10/12/2014,CONTRACTORS & STAFF SUBSTITUTIONS,CHG UC DESIGN & BUILD PROGRAMME MANAGER,CAPITA BUSINESS SERVICES LTD,2033434303,"226,975"
Department for Work and Pensions ,Corporate,15/12/2014,PRIME BILLABLE EXTRAS PRIME CONTRACT MANAGEMENT (PCM),CHG ESTATES RATIONALISATION FORMER JCP OPS,TELEREAL TRILLIUM,2033443891,"220,213"
Department for Work and Pensions ,Housing Benefits,12/12/2014,HOUSING BENEFIT ADMINISTRATION,HB ENGLAND,CROYDON PEO%,2033438423,"215,018"
Department for Work and Pensions ,Housing Benefits,12/12/2014,HOUSING BENEFIT ADMINISTRATION,HB SCOTLAND,EDINBURGH DISTRICT COUNCIL,2033438206,"214,518"
Department for Work and Pensions ,Employment Programmes,18/12/2014,RESIDENTIAL TRAINING COSTS,WWEG EP DELIVERY WELFARE TO WORK PRODUCT SUPPORT,FINCHALE TRAINING COLLEGE,2033450473,"214,392"
Department for Work and Pensions ,Housing Benefits,12/12/2014,HOUSING BENEFIT ADMINISTRATION,HB ENGLAND,LONDON BOROUGH OF NEWHAM,2033438325,"211,186"
Department for Work and Pensions ,Housing Benefits,12/12/2014,HOUSING BENEFIT ADMINISTRATION,HB ENGLAND,LONDON BOROUGH OF HARINGEY,2033438326,"209,933"
Department for Work and Pensions ,Employment Programmes,11/12/2014,INNOVATION FUND,WWEG EP NATIONAL,TRIODOS NEW HORIZONS LTD,2033437675,"209,273"
Department for Work and Pensions ,Housing Benefits,12/12/2014,HOUSING BENEFIT ADMINISTRATION,HB ENGLAND,LONDON BOROUGH OF ENFIELD,2033438293,"208,427"
Department for Work and Pensions ,Corporate,08/12/2014,PROFESSIONAL ADVICE & OPINION VAT RECOVERABLE,STR LEGAL SERVICES,TREASURY SOLICITOR TSOL,2033431484,"203,804"
Department for Work and Pensions ,Housing Benefits,12/12/2014,HOUSING BENEFIT ADMINISTRATION,HB ENGLAND,LONDON BOROUGH OF EALING,2033438329,"202,916"
Department for Work and Pensions ,Housing Benefits,12/12/2014,HOUSING BENEFIT ADMINISTRATION,HB ENGLAND,NOTTINGHAM CITY COUNCIL,2033438305,"201,659"
Department for Work and Pensions ,Housing Benefits,12/12/2014,HOUSING BENEFIT ADMINISTRATION,HB ENGLAND,LONDON BOROUGH OF ISLINGTON,2033438384,"199,556"
Department for Work and Pensions ,Employment Programmes,04/12/2014,SERVICE FEE,WWEP EP FG CEP SJ SURREY AND SUSSEX,SKILLS TRAINING UK LIMITED,2033422709,"198,181"
Department for Work and Pensions ,Corporate,04/12/2014,NON-TREDDS APPS DEV FIXED PRICE CONTRACTS,OPS PEN PS TUO ISIT,ATOS ORIGIN IT SERVICES UK LTD,2033421715,"196,936"
Department for Work and Pensions ,Corporate,15/12/2014,RECRUITMENT & ASSESSMENT SERVICES AGENCY,HR CSR,HM REVENUE & CUSTOMS,2005092,"195,000"
Department for Work and Pensions ,Housing Benefits,12/12/2014,HOUSING BENEFIT ADMINISTRATION,HB ENGLAND,LONDON BOROUGH OF GREENWICH,2033438352,"194,927"
Department for Work and Pensions ,Corporate,16/12/2014,CONTRACTORS & STAFF SUBSTITUTIONS,CHG UC DESIGN & BUILD PROGRAMME MANAGER,CAPITA BUSINESS SERVICES LTD,2033445794,"194,907"
Department for Work and Pensions ,Corporate,23/12/2014,NON ICONS NETWORK SERVICES,CIO ITLR DIRECT COSTS CMG,CAPGEMINI UK PLC,2033460137,"189,427"
Department for Work and Pensions ,Housing Benefits,12/12/2014,HOUSING BENEFIT ADMINISTRATION,HB ENGLAND,LONDON BOROUGH OF BARNET,2033438294,"185,442"
Department for Work and Pensions ,Housing Benefits,12/12/2014,HOUSING BENEFIT ADMINISTRATION,HB ENGLAND,LONDON BOROUGH OF WANDSWORTH,2033438190,"184,118"
Department for Work and Pensions ,Housing Benefits,12/12/2014,HOUSING BENEFIT ADMINISTRATION,HB ENGLAND,WAKEFIELD  DISTRICT COUNCIL,2033438419,"180,697"
Department for Work and Pensions ,Housing Benefits,12/12/2014,HOUSING BENEFIT ADMINISTRATION,HB ENGLAND,SANDWELL BOROUGH COUNCIL,2033438182,"180,337"
Department for Work and Pensions ,Housing Benefits,12/12/2014,HOUSING BENEFIT ADMINISTRATION,HB ENGLAND,LEICESTER CITY COUNCIL,2033438492,"179,804"
Department for Work and Pensions ,Housing Benefits,12/12/2014,HOUSING BENEFIT ADMINISTRATION,HB ENGLAND,SUNDERLAND CITY COUNCIL,2033438183,"178,958"
Department for Work and Pensions ,Corporate,19/12/2014,CONTRACTORS & STAFF SUBSTITUTIONS,CHG UC DESIGN & BUILD PROGRAMME MANAGER,CAPITA BUSINESS SERVICES LTD,2033454186,"178,239"
Department for Work and Pensions ,Housing Benefits,12/12/2014,HOUSING BENEFIT ADMINISTRATION,HB ENGLAND,KIRKLEES METROPOLITAN BOROUGH COUNCIL,2033438434,"176,854"
Department for Work and Pensions ,Corporate,15/12/2014,PACS INTER-VOTE CREDITOR,BALANCE SHEET,DWP MANUAL PAYMENTS,2005099,"175,164"
Department for Work and Pensions ,Housing Benefits,12/12/2014,HOUSING BENEFIT ADMINISTRATION,HB ENGLAND,CITY OF WESTMINSTER,2033438220,"174,509"
Department for Work and Pensions ,Housing Benefits,12/12/2014,HOUSING BENEFIT ADMINISTRATION,HB ENGLAND,KINGSTON UPON HULL CITY COUNCIL,2033438253,"174,345"
Department for Work and Pensions ,Housing Benefits,12/12/2014,HOUSING BENEFIT ADMINISTRATION,HB ENGLAND,COVENTRY CITY COUNCIL,2033438402,"173,037"
Department for Work and Pensions ,Housing Benefits,12/12/2014,HOUSING BENEFIT ADMINISTRATION,HB ENGLAND,LONDON BOROUGH OF CAMDEN,2033438464,"171,970"
Department for Work and Pensions ,European Social Fund,11/12/2014,MA ESF(D) PROGRAMME EXPENDITURE EC PREFUNDED L A's,WWEG EUROPEAN SOCIAL FUND PROGRAMME 2007-2013,CORNWALL COUNCIL,5000001760,"171,282"
Department for Work and Pensions ,Employment Programmes,19/12/2014,RESIDENTIAL TRAINING COSTS,WWEG EP DELIVERY WELFARE TO WORK PRODUCT SUPPORT,QUEEN ELIZABETH'S FOUNDATION,2033453886,"170,619"
Department for Work and Pensions ,Housing Benefits,12/12/2014,HOUSING BENEFIT ADMINISTRATION,HB ENGLAND,WIRRAL BOROUGH COUNCIL,2033438276,"170,084"
Department for Work and Pensions ,Housing Benefits,12/12/2014,HOUSING BENEFIT ADMINISTRATION,HB SCOTLAND,NORTH LANARKSHIRE COUNCIL,2033438514,"169,245"
Department for Work and Pensions ,Housing Benefits,12/12/2014,HOUSING BENEFIT ADMINISTRATION,HB ENGLAND,NEWCASTLE CITY COUNCIL,2033438214,"168,093"
Department for Work and Pensions ,Housing Benefits,12/12/2014,HOUSING BENEFIT ADMINISTRATION,HB ENGLAND,SALFORD CITY COUNCIL,2033438430,"166,363"
Department for Work and Pensions ,Corporate,29/12/2014,NON-TREDDS IS IT APPS DEV MANDAY,CHG STATE PENSION REFORM SINGLE TIER,ACCENTURE UK LTD,2033465794,"166,337"
Department for Work and Pensions ,Corporate,15/12/2014,SIAM MANAGEMENT SERVICES,CHG STATE PENSION REFORM SINGLE TIER,HM REVENUE & CUSTOMS,2005095,"165,160"
Department for Work and Pensions ,Housing Benefits,12/12/2014,HOUSING BENEFIT ADMINISTRATION,HB ENGLAND,BRIGHTON & HOVE COUNCIL,2033438460,"164,318"
Department for Work and Pensions ,Housing Benefits,12/12/2014,HOUSING BENEFIT ADMINISTRATION,HB ENGLAND,LONDON BOROUGH OF WALTHAM FOREST,2033438522,"164,313"
Department for Work and Pensions ,Corporate,24/12/2014,NON-TREDDS IS IT APPS DEV MANDAY,CHG SCANNING & DIGITAL STORAGE,ACCENTURE UK LTD,2033463900,"162,986"
Department for Work and Pensions ,Employment Programmes,04/12/2014,SERVICE FEE,WWEP EP FG CEP SJ WEST YORKSHIRE,G4S REGIONAL MANAGEMENT UK & I LTD,2033421817,"162,516"
Department for Work and Pensions ,Corporate,16/12/2014,CONTRACTED OUT ORIGINAL RESEARCH,F&C IGS STAT SERVICES,NATIONAL CENTRE FOR SOCIAL RESEARCH,2033446014,"162,257"
Department for Work and Pensions ,Housing Benefits,12/12/2014,HOUSING BENEFIT ADMINISTRATION,HB ENGLAND,WALSALL BOROUGH COUNCIL,2033438181,"162,018"
Department for Work and Pensions ,Corporate,12/12/2014,PROFESSIONAL ADVICE & OPINION VAT RECOVERABLE,STR LEGAL SERVICES,TREASURY SOLICITORS DEPT,2033439086,"161,604"
Department for Work and Pensions ,Housing Benefits,12/12/2014,HOUSING BENEFIT ADMINISTRATION,HB SCOTLAND,FIFE COUNCIL,2033438324,"161,304"
Department for Work and Pensions ,Corporate,01/12/2014,TREDDS APPS DEV MANDAYS,CMG CPRG CMG PORTFOLIO - HPES COSTS,HP ENTERPRISE SERVICES UK LTD,2033413672,"159,846"
Department for Work and Pensions ,Corporate,24/12/2014,CONTRACTORS & STAFF SUBSTITUTIONS,CHG UC PROGRAMME INTEGRATION & APPROVALS,DELOITTE LLP,2033463003,"159,763"
Department for Work and Pensions ,Housing Benefits,12/12/2014,HOUSING BENEFIT ADMINISTRATION,HB WALES,CARDIFF CITY COUNCIL,2033438195,"156,677"
Department for Work and Pensions ,Housing Benefits,12/12/2014,HOUSING BENEFIT ADMINISTRATION,HB ENGLAND,DONCASTER METROPOLITAN BOROUGH COUNCIL,2033438416,"156,450"
Department for Work and Pensions ,European Social Fund,02/12/2014,MA ESF(D) PROGRAMME EXPENDITURE EC PREFUNDED L A's,WWEG EUROPEAN SOCIAL FUND PROGRAMME 2007-2013,LUTON BOROUGH COUNCIL,5000001756,"155,367"
Department for Work and Pensions ,Housing Benefits,12/12/2014,HOUSING BENEFIT ADMINISTRATION,HB ENGLAND,WILTSHIRE COUNCIL,2033438431,"151,051"
Department for Work and Pensions ,Housing Benefits,12/12/2014,HOUSING BENEFIT ADMINISTRATION,HB ENGLAND,BOLTON METROPOLITAN BOROUGH COUNCIL,2033438239,"150,470"
Department for Work and Pensions ,Housing Benefits,12/12/2014,HOUSING BENEFIT ADMINISTRATION,HB ENGLAND,WOLVERHAMPTON CITY COUNCIL,2033438422,"149,472"
Department for Work and Pensions ,Corporate,04/12/2014,NON-TREDDS IS IT SERVICES (HOSTING),CIO GG SERVICE DELIVERY,ATOS ORIGIN IT SERVICES UK LTD,2033421715,"146,832"
Department for Work and Pensions ,Corporate,18/12/2014,CONSULTANTS VAT RECOVERABLE,CHG DIGITAL TRANSFORMATION DG OFFICE,PA CONSULTING GROUP LTD,2033451672,"146,810"
Department for Work and Pensions ,Housing Benefits,12/12/2014,HOUSING BENEFIT ADMINISTRATION,HB ENGLAND,PLYMOUTH CITY COUNCIL,2033438382,"146,294"
Department for Work and Pensions ,Corporate,16/12/2014,AMS SERVICES,CIO ITLR AMS,HP ENTERPRISE SERVICES UK LTD,2033445556,"143,913"
Department for Work and Pensions ,Housing Benefits,12/12/2014,HOUSING BENEFIT ADMINISTRATION,HB ENGLAND,WIGAN BOROUGH COUNCIL,2033438263,"143,778"
Department for Work and Pensions ,Corporate,19/12/2014,CONTRACTED OUT OFFICE SERVICES,FG OPS FIN DM ENFORCEMENT,COMMERCIAL COLLECTION SERVICES LTD,2033453810,"140,173"
Department for Work and Pensions ,Employment Programmes,15/12/2014,RESIDENTIAL TRAINING COSTS,WWEG EP DELIVERY WELFARE TO WORK PRODUCT SUPPORT,ST LOYES COLLEGE FOUNDATION,2033444100,"139,849"
Department for Work and Pensions ,Corporate,29/12/2014,FSF - SUPPORT CONTRACT MODULES FOR JSA JOBSEEKERS,OPS WDC WSD CE BLACK COUNTRY DISTRICT OFFICE,A4E LTD,2033466299,"139,458"
Department for Work and Pensions ,Corporate,19/12/2014,VOCA Charges,FG FIN CONT COBAP BANKING,VOCALINK,2033454237,"138,925"
Department for Work and Pensions ,Housing Benefits,12/12/2014,HOUSING BENEFIT ADMINISTRATION,HB ENGLAND,LONDON BOROUGH OF HILLINGDON,2033438244,"136,791"
Department for Work and Pensions ,Housing Benefits,12/12/2014,HOUSING BENEFIT ADMINISTRATION,HB ENGLAND,LONDON BOROUGH OF HOUNSLOW,2033438267,"136,096"
Department for Work and Pensions ,Corporate,10/12/2014,FSF - REMOVING OTHER BARRIERS TO WORK  - JSA JOBSEEKERS,OPS WDC WSD NW MERSEYSIDE DISTRICT OFFICE,MERSEYTRAVEL,2033435226,"135,329"
Department for Work and Pensions ,Housing Benefits,12/12/2014,HOUSING BENEFIT ADMINISTRATION,HB ENGLAND,LONDON BOROUGH OF HAMMERSMITH & FULHAM,2033438480,"134,665"
Department for Work and Pensions ,Corporate,05/12/2014,CONSULTANTS VAT RECOVERABLE,F&C CD STRATEGY AND BUSINESS MANAGEMENT,PRICE WATERHOUSE COOPER LLP,2033428329,"133,052"
Department for Work and Pensions ,Housing Benefits,12/12/2014,HOUSING BENEFIT ADMINISTRATION,HB ENGLAND,NORTHUMBERLAND COUNCIL,2033438449,"132,994"
Department for Work and Pensions ,Housing Benefits,12/12/2014,HOUSING BENEFIT ADMINISTRATION,HB SCOTLAND,SOUTH LANARKSHIRE COUNCIL,2033438349,"132,928"
Department for Work and Pensions ,Corporate,15/12/2014,CONTRACTED OUT OFFICE SERVICES,FG OPS FIN DM CONTRACTS,COFELY WORKPLACE LTD,2033444554,"132,608"
Department for Work and Pensions ,Housing Benefits,12/12/2014,HOUSING BENEFIT ADMINISTRATION,HB ENGLAND,SOUTHAMPTON CITY COUNCIL,2033438274,"132,570"
Department for Work and Pensions ,Housing Benefits,12/12/2014,HOUSING BENEFIT ADMINISTRATION,HB ENGLAND,STOKE ON TRENT CITY COUNCIL,2033438401,"132,241"
Department for Work and Pensions ,Housing Benefits,12/12/2014,HOUSING BENEFIT ADMINISTRATION,HB ENGLAND,SEFTON METROPOLITAN BOROUGH COUNCIL,2033438295,"132,193"
Department for Work and Pensions ,Corporate,04/12/2014,BBC TV LIC O/75'S,STR BBC TV LIC O 75s DEL P,BBC PUBLIC SERVICE BROADCASTING,1006847,"131,210"
Department for Work and Pensions ,Corporate,24/12/2014,CONTRACTED OUT OFFICE SERVICES,FG OPS FIN DEBT OPS CENTRAL,EXPERIAN LTD,2033463449,"130,943"
Department for Work and Pensions ,Corporate,31/12/2014,PRIME FACILITY PRICE,FG CD BIRCHWOOD,TELEREAL TRILLIUM,2033470373,"129,827"
Department for Work and Pensions ,Corporate,17/12/2014,TREDDS IS IT CONSULTANCY (HOSTING) NON ADVICE,CIO INFRASTRUCTURE & SERVICE REMEDIATION,HP ENTERPRISE SERVICES UK LTD,2033449419,"128,853"
Department for Work and Pensions ,Employment Programmes,12/12/2014,SERVICE FEE,"WWEG EP SUPPORT ESSEX, BEDFORSHIRE AND HERTFORDSHIRE",SEETEC BUSINESS TECHNOLOGY CENTRE LTD,2033439763,"128,454"
Department for Work and Pensions ,Housing Benefits,12/12/2014,HOUSING BENEFIT ADMINISTRATION,HB ENGLAND,MILTON KEYNES BOROUGH COUNCIL,2033438314,"128,135"
Department for Work and Pensions ,Housing Benefits,12/12/2014,HOUSING BENEFIT ADMINISTRATION,HB ENGLAND,TAMESIDE BOROUGH COUNCIL,2033438212,"127,192"
Department for Work and Pensions ,Employment Programmes,12/12/2014,SERVICE FEE,WWEG EP SUPPORT WEST OF ENGLAND,PINNACLE PEOPLE,2033438757,"126,597"
Department for Work and Pensions ,Housing Benefits,12/12/2014,HOUSING BENEFIT ADMINISTRATION,HB ENGLAND,DUDLEY METROPOLITAN BOROUGH COUNCIL,2033438306,"126,391"
Department for Work and Pensions ,Housing Benefits,12/12/2014,HOUSING BENEFIT ADMINISTRATION,HB ENGLAND,PORTSMOUTH CITY COUNCIL,2033438351,"125,582"
Department for Work and Pensions ,Employment Programmes,29/12/2014,INNOVATION FUND,WWEG EP NATIONAL,ADVANCED PERSONNEL MANAGEMENT,2033466594,"124,704"
Department for Work and Pensions ,Corporate,24/12/2014,NETWORK SERVICES,CIO ITLR NETWORK,BT GLOBAL SERVICES,2033463450,"124,488"
Department for Work and Pensions ,Housing Benefits,12/12/2014,HOUSING BENEFIT ADMINISTRATION,HB ENGLAND,ROCHDALE BOROUGH COUNCIL,2033438236,"124,316"
Department for Work and Pensions ,Housing Benefits,12/12/2014,HOUSING BENEFIT ADMINISTRATION,HB ENGLAND,CHESHIRE WEST & CHESTER COUNCIL,2033438452,"123,032"
Department for Work and Pensions ,Employment Programmes,12/12/2014,SERVICE FEE,"WWEG EP SUPPORT CAMBRDIGE AND SUFFOLK, NORFOLK, LINCOLN AND RUTLAND",TNG LTD,2033438960,"122,951"
Department for Work and Pensions ,Corporate,11/12/2014,CIVIL SERVICE OCCUPATIONAL HEALTH SERVICE,HR OHS,OH ASSIST,2033437044,"121,881"
Department for Work and Pensions ,Housing Benefits,12/12/2014,HOUSING BENEFIT ADMINISTRATION,HB ENGLAND,OLDHAM BOROUGH COUNCIL,2033438237,"121,691"
Department for Work and Pensions ,Housing Benefits,12/12/2014,HOUSING BENEFIT ADMINISTRATION,HB ENGLAND,LONDON BOROUGH OF BARKING & DAGENHAM,2033438350,"121,622"
Department for Work and Pensions ,Housing Benefits,12/12/2014,HOUSING BENEFIT ADMINISTRATION,HB ENGLAND,MEDWAY TOWNS COUNCIL,2033438201,"121,256"
Department for Work and Pensions ,Corporate,31/12/2014,PIP GP FACTUAL REPORTS,FG HS PIP LOT 2,CAPITA BUSINESS SERVICES LTD,1006897,"120,835"
Department for Work and Pensions ,Corporate,22/12/2014,TREDDS IS IT CONSULTANCY (HOSTING) NON ADVICE,CIO INFRASTRUCTURE & SERVICE REMEDIATION,HP ENTERPRISE SERVICES UK LTD,2033459025,"120,796"
Department for Work and Pensions ,Corporate,24/12/2014,NETWORK SERVICES,OPS NET CC NETWORK MANAGEMENT TEAM,BT GLOBAL SERVICES,2033463450,"120,528"
Department for Work and Pensions ,Corporate,31/12/2014,PRIME FACILITY PRICE,FG CD SHEFFIELD KINGS COURT,TELEREAL TRILLIUM,2033470373,"118,603"
Department for Work and Pensions ,Housing Benefits,12/12/2014,HOUSING BENEFIT ADMINISTRATION,HB ENGLAND,ROTHERHAM BOROUGH COUNCIL,2033438209,"118,374"
Department for Work and Pensions ,Corporate,15/12/2014,PRIME BILLABLE EXTRAS PRIME CONTRACT MANAGEMENT (PCM),CHG DIGITAL JOBCENTRES,TELEREAL TRILLIUM,2033443891,"117,813"
Department for Work and Pensions ,Corporate,10/12/2014,CONTRACTORS & STAFF SUBSTITUTIONS,CHG IT TRANSFORMATION PROG,CAPITA BUSINESS SERVICES LTD,2033434303,"117,741"
Department for Work and Pensions ,Housing Benefits,12/12/2014,HOUSING BENEFIT ADMINISTRATION,HB ENGLAND,LONDON BOROUGH OF BROMLEY,2033438353,"117,741"
Department for Work and Pensions ,Housing Benefits,12/12/2014,HOUSING BENEFIT ADMINISTRATION,HB ENGLAND,EAST RIDING OF YORKSHIRE BOROUGH COUNCIL,2033438230,"117,477"
Department for Work and Pensions ,Housing Benefits,12/12/2014,HOUSING BENEFIT ADMINISTRATION,HB ENGLAND,CHESHIRE EAST BOROUGH COUNCIL,2033438453,"116,839"
Department for Work and Pensions ,Corporate,22/12/2014,PIP GP FACTUAL REPORTS,FG HS PIP LOT 2,CAPITA BUSINESS SERVICES LTD,2033458891,"116,714"
Department for Work and Pensions ,Corporate,09/12/2014,ACCOUNTS PAYABLE UNAPPROVED INVOICES,OPS WDC WSD SE DEVON CORNWALL & SOMERSET DISTRICT,CAREERS SOUTH WEST LTD,2033433016,"116,317"
Department for Work and Pensions ,Housing Benefits,12/12/2014,HOUSING BENEFIT ADMINISTRATION,HB ENGLAND,LONDON BOROUGH OF KENSINGTON & CHELSEA,2033438432,"116,235"
Department for Work and Pensions ,Housing Benefits,12/12/2014,HOUSING BENEFIT ADMINISTRATION,HB ENGLAND,BARNSLEY BOROUGH COUNCIL,2033438210,"115,860"
Department for Work and Pensions ,Child Maintenance and Enforcement Commission,15/12/2014,CONTRACTORS & STAFF SUBSTITUTIONS,FIN AND REP SERVICES DIRECTORS OFFICE,CAPITA BUSINESS SERVICES LTD,1000225304,"115,853"
Department for Work and Pensions ,Corporate,16/12/2014,RECRUITMENT & ASSESSMENT SERVICES AGENCY,HR CSR,HM REVENUE & CUSTOMS,2005103,"115,731"
Department for Work and Pensions ,Housing Benefits,12/12/2014,HOUSING BENEFIT ADMINISTRATION,HB ENGLAND,LONDON BOROUGH OF HARROW,2033438519,"115,692"
Department for Work and Pensions ,Corporate,02/12/2014,CONSULTANTS VAT RECOVERABLE,CHG PIP PROG MANAGEMENT,CAPGEMINI UK PLC,2033417309,"115,653"
Department for Work and Pensions ,Corporate,09/12/2014,CONTRACTORS & STAFF SUBSTITUTIONS,CHG UC DESIGN & BUILD PROGRAMME MANAGER,CABINET OFFICE,1006865,"114,900"
Department for Work and Pensions ,Corporate,08/12/2014,NON-TREDDS APPS DEV FIXED PRICE CONTRACTS,CIO GG SERVICE DELIVERY,ATOS ORIGIN IT SERVICES UK LTD,2033429061,"114,427"
Department for Work and Pensions ,Housing Benefits,12/12/2014,HOUSING BENEFIT ADMINISTRATION,HB ENGLAND,BLACKPOOL BOROUGH COUNCIL,2033438328,"114,002"
Department for Work and Pensions ,Corporate,19/12/2014,CONTRACTORS & STAFF SUBSTITUTIONS,CIO ADC DIRECTOR,CAPITA BUSINESS SERVICES LTD,2033454186,"113,863"
Department for Work and Pensions ,Corporate,01/12/2014,CONTRACTORS & STAFF SUBSTITUTIONS,CHG UC DESIGN & BUILD PROGRAMME MANAGER,CAPITA BUSINESS SERVICES LTD,2033414704,"113,517"
Department for Work and Pensions ,Housing Benefits,12/12/2014,HOUSING BENEFIT ADMINISTRATION,HB ENGLAND,DERBY CITY COUNCIL,2033438248,"112,833"
Department for Work and Pensions ,Employment Programmes,12/12/2014,SERVICE FEE,"WWEG EP SUPPORT GRTR MANCHESTER CNTRL, GRTR MANCHESTER E AND W",STANDGUIDE LTD,2033438577,"112,091"
Department for Work and Pensions ,Employment Programmes,23/12/2014,WP JSA 18-24 JOB SUSTAINMENT OUTCOME PAYMENT,WWEG EP W MIDLANDS BIRM SOL BC FOURSTAR EMP AND SKILLS,AVANTA ENTERPRISE LTD,2033461226,"111,520"
Department for Work and Pensions ,Employment Programmes,23/12/2014,WP JSA 25+ JOB OUTCOME PAYMENTWP JSA 25+ JOB OUTCOME PAYMENT,WWEG EP W MIDLANDS BIRM SOL BC FOURSTAR EMP AND SKILLS,AVANTA ENTERPRISE LTD,2033461226,"111,180"
Department for Work and Pensions ,European Social Fund,02/12/2014,MA ESF(D) PROGRAMME EXPENDITURE EC PREFUNDED L A's,WWEG EUROPEAN SOCIAL FUND PROGRAMME 2007-2013,LOCAL AUTHORITIES IN THE EAST MIDLANDS,5000001755,"110,808"
Department for Work and Pensions ,Corporate,16/12/2014,PUBLICITY ADVERTISING MEDIA,CHG ERSP COMMS,M4C,2033447768,"110,696"
Department for Work and Pensions ,Corporate,03/12/2014,RENEWALS OF SOFTWARE SUPPORT AND MAINTENANCE,CIO ITLR SOFTWARE P,SPECIALIST COMPUTER CENTRES PLC,2033419585,"110,676"
Department for Work and Pensions ,Housing Benefits,12/12/2014,HOUSING BENEFIT ADMINISTRATION,HB WALES,RHONDDA CYNON TAFF COUNTY BOROUGH COUNCIL,2033438234,"110,356"
Department for Work and Pensions ,Employment Programmes,12/12/2014,SERVICE FEE,"WWEG EP SUPPORT KENT, SURREY AND SUSSEX",PINNACLE PEOPLE,2033438757,"110,187"
Department for Work and Pensions ,Housing Benefits,12/12/2014,HOUSING BENEFIT ADMINISTRATION,HB ENGLAND,PETERBOROUGH CITY COUNCIL,2033438463,"107,919"
Department for Work and Pensions ,Housing Benefits,12/12/2014,HOUSING BENEFIT ADMINISTRATION,HB ENGLAND,LONDON BOROUGH OF REDBRIDGE,2033438252,"107,906"
Department for Work and Pensions ,Corporate,16/12/2014,CONTRACTORS & STAFF SUBSTITUTIONS,CHG IT TRANSFORMATION PROG,CAPITA BUSINESS SERVICES LTD,2033445794,"107,717"
Department for Work and Pensions ,Employment Programmes,12/12/2014,SERVICE FEE,"WWEG EP SUPPORT CHESHIRE, HALTON AND WARR, MERSEYSIDE",REED IN PARTNERSHIP LTD,2033439533,"107,713"
Department for Work and Pensions ,Corporate,19/12/2014,CONTRACTORS & STAFF SUBSTITUTIONS,CHG UC DESIGN & BUILD PROGRAMME MANAGER,CABINET OFFICE,1006886,"106,800"
Department for Work and Pensions ,Housing Benefits,12/12/2014,HOUSING BENEFIT ADMINISTRATION,HB WALES,SWANSEA CITY COUNCIL,2033438233,"106,523"
Department for Work and Pensions ,Housing Benefits,12/12/2014,HOUSING BENEFIT ADMINISTRATION,HB ENGLAND,GATESHEAD BOROUGH COUNCIL,2033438208,"106,277"
Department for Work and Pensions ,Corporate,05/12/2014,POSTAGE,CHG CLASS 3A VOLUNTARY NATIONAL INSURANCE CONTS,HM REVENUE & CUSTOMS,2005078,"104,593"
Department for Work and Pensions ,Corporate,24/12/2014,NON-TREDDS IS IT APPS DEV MANDAY,CIO INFRASTRUCTURE & SERVICE REMEDIATION,ACCENTURE UK LTD,2033463900,"103,517"
Department for Work and Pensions ,Housing Benefits,12/12/2014,HOUSING BENEFIT ADMINISTRATION,HB ENGLAND,STOCKPORT BOROUGH COUNCIL,2033438213,"103,345"
Department for Work and Pensions ,Corporate,15/12/2014,TREDDS APPS DEV MANDAYS,F&C IGS INFO SERVICES,HP ENTERPRISE SERVICES UK LTD,2033445445,"103,297"
Department for Work and Pensions ,Housing Benefits,12/12/2014,HOUSING BENEFIT ADMINISTRATION,HB ENGLAND,BOURNEMOUTH BOROUGH COUNCIL,2033438461,"103,219"
Department for Work and Pensions ,Child Maintenance and Enforcement Commission,02/12/2014,CONTRACTORS & STAFF SUBSTITUTIONS,DATA WAREHOUSE PHASE 1,CAPITA BUSINESS SERVICES LTD,1000224206,"102,454"
Department for Work and Pensions ,Corporate,22/12/2014,NON-TREDDS IS IT APPS DEV MANDAY,CIO CIS RELEASE 2,IBM UNITED KINGDOM LTD,2033459521,"102,272"
Department for Work and Pensions ,Housing Benefits,12/12/2014,HOUSING BENEFIT ADMINISTRATION,HB ENGLAND,MIDDLESBROUGH COUNCIL,2033438442,"102,115"
Department for Work and Pensions ,Corporate,11/12/2014,NON-TREDDS IS IT SERVICES (AMS),CIO ITPD AM PROTOTYPE & STANDALONE SYS,CAPGEMINI UK PLC,2033437372,"102,114"
Department for Work and Pensions ,Housing Benefits,12/12/2014,HOUSING BENEFIT ADMINISTRATION,HB ENGLAND,CALDERDALE BOROUGH COUNCIL,2033438435,"101,678"
Department for Work and Pensions ,Corporate,10/12/2014,CONTRACTORS & STAFF SUBSTITUTIONS,CIO COO IT DIRECTOR,CAPITA BUSINESS SERVICES LTD,2033434303,"101,016"
Department for Work and Pensions ,Housing Benefits,12/12/2014,HOUSING BENEFIT ADMINISTRATION,HB ENGLAND,SHROPSHIRE COUNCIL,2033438448,"100,692"
Department for Work and Pensions ,Employment Programmes,23/12/2014,ESF 2011-13 SUPPORT FOR FAMILIES WITH MULTIPLE PROBLEMS JSA CUSTOMERS. FIRST PROGRESS MEASURE PAYMENT.,CPA12 YORKS AND HUMBER EOS WORKS LTD FORMERLY FOURSTAR,AVANTA ENTERPRISE LTD,2033461226,"100,514"
Department for Work and Pensions ,Corporate,02/12/2014,PROFESSIONAL ADVICE & OPINION VAT RECOVERABLE,STR LEGAL SERVICES,LOVELLS,1006841,"100,165"
Department for Work and Pensions ,Housing Benefits,12/12/2014,HOUSING BENEFIT ADMINISTRATION,HB ENGLAND,KNOWSLEY BOROUGH COUNCIL,2033438302,"100,009"
Department for Work and Pensions ,Housing Benefits,12/12/2014,HOUSING BENEFIT ADMINISTRATION,HB ENGLAND,STOCKTON  BOROUGH COUNCIL,2033438285,"99,631"
Department for Work and Pensions ,Corporate,01/12/2014,CONTRACTORS & STAFF SUBSTITUTIONS,CIO ADC DIRECTOR,CAPITA BUSINESS SERVICES LTD,2033414704,"99,586"
Department for Work and Pensions ,Employment Programmes,12/12/2014,SERVICE FEE,"WWEG EP SUPPORT N AND E YORKSHIRE AND HUMBER, TEES VALLEY",PERTEMPS,2033439098,"99,121"
Department for Work and Pensions ,Housing Benefits,12/12/2014,HOUSING BENEFIT ADMINISTRATION,HB ENGLAND,NORTH TYNESIDE BOROUGH COUNCIL,2033438185,"99,018"
Department for Work and Pensions ,Corporate,30/12/2014,COURIER COSTS,FG OPS FIN DM CONTRACTS,DX NETWORK SERVICES LTD,2033471021,"98,803"
Department for Work and Pensions ,Corporate,12/12/2014,RENEWALS OF SOFTWARE SUPPORT AND MAINTENANCE,CIO ITLR SOFTWARE EXT SUPPORT CMG DEL P,SPECIALIST COMPUTER CENTRES PLC,2033439864,"98,713"
Department for Work and Pensions ,Employment Programmes,17/12/2014,RESIDENTIAL TRAINING COSTS,WWEG EP DELIVERY WELFARE TO WORK PRODUCT SUPPORT,PORTLAND COLLEGE,2033450247,"98,693"
Department for Work and Pensions ,Corporate,15/12/2014,AR PRIME RECOVERIES,BALANCE SHEET,TELEREAL TRILLIUM,2033443890,"97,545"
Department for Work and Pensions ,Housing Benefits,12/12/2014,HOUSING BENEFIT ADMINISTRATION,HB SCOTLAND,DUNDEE CITY COUNCIL,2033438440,"97,070"
Department for Work and Pensions ,Child Maintenance and Enforcement Commission,09/12/2014,PROFESSIONAL SERVICES NON VAT RECOVERABLE,FAMILY SUPPORT SERVICES,ONE PLUS ONE MARRIAGE & PARTNERSHIP RESEARCH,1000224829,"96,860"
Department for Work and Pensions ,Housing Benefits,12/12/2014,HOUSING BENEFIT ADMINISTRATION,HB ENGLAND,ST HELENS BOROUGH COUNCIL,2033438211,"95,057"
Department for Work and Pensions ,Housing Benefits,12/12/2014,HOUSING BENEFIT ADMINISTRATION,HB ENGLAND,LUTON BOROUGH COUNCIL,2033438495,"94,899"
Department for Work and Pensions ,Corporate,01/12/2014,CONTRACTORS & STAFF SUBSTITUTIONS,CHG IT TRANSFORMATION PROG,CAPITA BUSINESS SERVICES LTD,2033414704,"94,744"
Department for Work and Pensions ,Employment Programmes,23/12/2014,ESF 2011-13 SUPPORT FOR FAMILIES WITH MULTIPLE PROBLEMS JSA CUSTOMERS PROGRESS MEASURE - INITIAL 25% PAYMENT,CPA12 YORKS AND HUMBER EOS WORKS LTD FORMERLY FOURSTAR,AVANTA ENTERPRISE LTD,2033461226,"94,715"
Department for Work and Pensions ,Housing Benefits,12/12/2014,HOUSING BENEFIT ADMINISTRATION,HB ENGLAND,NORTHAMPTON BOROUGH COUNCIL,2033438517,"94,618"
Department for Work and Pensions ,Housing Benefits,12/12/2014,HOUSING BENEFIT ADMINISTRATION,HB ENGLAND,NORTH EAST LINCOLNSHIRE COUNCIL,2033438300,"94,533"
Department for Work and Pensions ,Housing Benefits,12/12/2014,HOUSING BENEFIT ADMINISTRATION,HB ENGLAND,SOUTHEND ON SEA BOROUGH COUNCIL,2033438378,"93,837"
Department for Work and Pensions ,Corporate,05/12/2014,STAFF TRAINING VAT RECOVERABLE,HR CONTRACTUAL L AND D,CAPITA CIVIL SERVICE LEARNING,2033426076,"93,070"
Department for Work and Pensions ,Employment Programmes,12/12/2014,SERVICE FEE,"WWEG EP SUPPORT HAMPSHIRE AND ISLE OF WIGHT, BERKS, BUCKS AND OXON",A4E LTD,2033439802,"93,043"
Department for Work and Pensions ,Corporate,16/12/2014,DESKTOP FIXED PRICE CONTRACTS,CIO ITLR DESKTOP,HP ENTERPRISE SERVICES UK LTD,2033445556,"93,010"
Department for Work and Pensions ,Housing Benefits,12/12/2014,HOUSING BENEFIT ADMINISTRATION,HB SCOTLAND,RENFREWSHIRE COUNCIL,2033438160,"92,646"
Department for Work and Pensions ,Employment Programmes,12/12/2014,SERVICE FEE,"WWEG EP SUPPORT COVENTRY AND WARWICKSHIRE, MARCHES, STAFFORDSHIRE",LEARNDIRECT LTD,2033439716,"91,360"
Department for Work and Pensions ,European Social Fund,18/12/2014,MA ESF(D) PROGRAMME EXPENDITURE EC PREFUNDED L A's,WWEG EUROPEAN SOCIAL FUND PROGRAMME 2007-2013,LUTON BOROUGH COUNCIL,5000001764,"91,318"
Department for Work and Pensions ,Housing Benefits,12/12/2014,HOUSING BENEFIT ADMINISTRATION,HB ENGLAND,LONDON BOROUGH OF BEXLEY,2033438354,"91,253"
Department for Work and Pensions ,Housing Benefits,12/12/2014,HOUSING BENEFIT ADMINISTRATION,HB ENGLAND,THANET DISTRICT COUNCIL,2033438224,"91,127"
Department for Work and Pensions ,Corporate,31/12/2014,PRIME FACILITY PRICE,FG CD BRADFORD AMBLER MILL,TELEREAL TRILLIUM,2033470373,"91,114"
Department for Work and Pensions ,Corporate,15/12/2014,TREDDS APPS DEV MANDAYS,CHG ELECTRONIC SIGNING,HP ENTERPRISE SERVICES UK LTD,2033445445,"90,936"
Department for Work and Pensions ,Employment Programmes,12/12/2014,SERVICE FEE,WWEG EP SUPPORT WEST YORKSHIRE,A4E LTD,2033439802,"90,807"
Department for Work and Pensions ,Employment Programmes,12/12/2014,SERVICE FEE,"WWEG EP SUPPORT NORTHUMBRIA, SOUTH TYNE AND WEAR VALLEY",ESG HOLDINGS LTD,2033438756,"90,581"
Department for Work and Pensions ,Housing Benefits,12/12/2014,HOUSING BENEFIT ADMINISTRATION,HB ENGLAND,LONDON BOROUGH OF MERTON,2033438426,"90,534"
Department for Work and Pensions ,Corporate,31/12/2014,PRIME FACILITY PRICE,FG CD DEARNE VALLEY DISCOVERY HOUSE,TELEREAL TRILLIUM,2033470373,"89,777"
Department for Work and Pensions ,Corporate,31/12/2014,PRIME BUSINESS RATES,FG CD LEEDS QUARRY HOUSE,TELEREAL TRILLIUM,2033470374,"89,692"
Department for Work and Pensions ,Corporate,31/12/2014,PRIME FACILITY PRICE,FG CD MANCHESTER ANCHORAGE HOUSE,TELEREAL TRILLIUM,2033470373,"89,279"
Department for Work and Pensions ,Housing Benefits,12/12/2014,HOUSING BENEFIT ADMINISTRATION,HB ENGLAND,SOUTH GLOUCESTERSHIRE COUNCIL,2033438410,"89,087"
Department for Work and Pensions ,Corporate,23/12/2014,FSF - SUPPORT CONTRACT MODULES FOR JSA JOBSEEKERS,OPS WDC WSD WL SOUTH EAST WALES DISTRICT OFFICE,A4E LTD,2033462408,"88,976"
Department for Work and Pensions ,Housing Benefits,12/12/2014,HOUSING BENEFIT ADMINISTRATION,HB ENGLAND,SOUTH TYNESIDE METROPOLITAN BOROUGH COUNCIL,2033438184,"88,830"
Department for Work and Pensions ,Housing Benefits,12/12/2014,HOUSING BENEFIT ADMINISTRATION,HB ENGLAND,TORBAY  COUNCIL,2033438505,"88,198"
Department for Work and Pensions ,Housing Benefits,12/12/2014,HOUSING BENEFIT ADMINISTRATION,HB SCOTLAND,HIGHLAND COUNCIL,2033438264,"88,148"
Department for Work and Pensions ,Employment Programmes,12/12/2014,WP JSA 25+ SUSTAINMENT OUTCOME PAYMENT,WWEG EP EAST OF ENGLAND INGEUS UK,INGEUS UK LTD,2033440056,"87,290"
Department for Work and Pensions ,Housing Benefits,12/12/2014,HOUSING BENEFIT ADMINISTRATION,HB ENGLAND,NORTH SOMERSET COUNCIL,2033438385,"87,034"
Department for Work and Pensions ,Housing Benefits,12/12/2014,HOUSING BENEFIT ADMINISTRATION,HB ENGLAND,BOROUGH OF TELFORD & WREKIN COUNCIL,2033438509,"86,878"
Department for Work and Pensions ,Corporate,17/12/2014,POSTAGE,FG CD ACC POSTAGE,G3 WORLDWIDE MAIL UK LTD,2033448945,"86,818"
Department for Work and Pensions ,Corporate,12/12/2014,NON-TREDDS IS IT APPS DEV MANDAY,CHG UC PATHFINDER DELIVERY MANAGEMENT,CAPGEMINI UK PLC,2033439652,"86,398"
Department for Work and Pensions ,Corporate,31/12/2014,PRIME FACILITY PRICE,FG CD SHEFFIELD ROCKINGHAM HOUSE,TELEREAL TRILLIUM,2033470373,"86,110"
Department for Work and Pensions ,Corporate,16/12/2014,NON-TREDDS APPS DEV FIXED PRICE CONTRACTS,CHG MIGRANTS ACCESS TO BENEFITS,CAPGEMINI UK PLC,2033445707,"85,843"
Department for Work and Pensions ,Housing Benefits,12/12/2014,HOUSING BENEFIT ADMINISTRATION,HB ENGLAND,NORWICH CITY COUNCIL,2033438478,"85,421"
Department for Work and Pensions ,Employment Programmes,05/12/2014,WP JSA 25+ SUSTAINMENT OUTCOME PAYMENT,WWEG EP EAST OF ENGLAND INGEUS UK,INGEUS UK LTD,2033425314,"84,925"
Department for Work and Pensions ,Housing Benefits,12/12/2014,HOUSING BENEFIT ADMINISTRATION,HB ENGLAND,TRAFFORD BOROUGH COUNCIL,2033438516,"84,725"
Department for Work and Pensions ,Employment Programmes,12/12/2014,SERVICE FEE,"WWEG EP SUPPORT DERBYSHIRE, SOUTH YORKSHIRE",A4E LTD,2033439802,"84,600"
Department for Work and Pensions ,Corporate,23/12/2014,PRIME BILLABLE EXTRAS PRIME CONTRACT MANAGEMENT (PCM),CHG UC PATHFINDER DELIVERY MANAGEMENT,TELEREAL TRILLIUM,2033462396,"84,406"
Department for Work and Pensions ,Corporate,18/12/2014,FSF - REMOVING OTHER BARRIERS TO WORK  - JSA JOBSEEKERS,OPS WDC WSD SE DEVON CORNWALL & SOMERSET DISTRICT,CAREERS SOUTH WEST LTD,2033451793,"84,313"
Department for Work and Pensions ,Corporate,22/12/2014,CONSULTANTS VAT RECOVERABLE,CHG IT TRANSFORMATION PROG,ADVALUS LTD,2033459178,"84,250"
Department for Work and Pensions ,Corporate,19/12/2014,RECURRENT PUBLICITY,CHG MOBILE REGIONAL TASKFORCE,ENTER HERE LLP,2033453793,"83,774"
Department for Work and Pensions ,Housing Benefits,12/12/2014,HOUSING BENEFIT ADMINISTRATION,HB ENGLAND,SWINDON BOROUGH COUNCIL,2033438242,"83,732"
Department for Work and Pensions ,Corporate,08/12/2014,MOTABILITY ADMINISTRATION GRANT,STR MOTABILITY,MOTABILITY,2033429468,"83,330"
Department for Work and Pensions ,Employment Programmes,15/12/2014,RESIDENTIAL TRAINING COSTS,WWEG EP DELIVERY WELFARE TO WORK PRODUCT SUPPORT,RNCB HEREFORD,2033445065,"82,847"
Department for Work and Pensions ,Corporate,09/12/2014,NETWORK SERVICES,CIO AD HOC ITLR PROJECTS,BT GLOBAL SERVICES,2033432486,"82,821"
Department for Work and Pensions ,Housing Benefits,12/12/2014,HOUSING BENEFIT ADMINISTRATION,HB ENGLAND,LONDON BOROUGH OF HAVERING,2033438251,"82,361"
Department for Work and Pensions ,Employment Programmes,12/12/2014,SERVICE FEE,WWEG EP SUPPORT BIRMINGHAM AND SOLIHULL,INGEUS UK LTD,2033440056,"82,233"
Department for Work and Pensions ,Employment Programmes,30/12/2014,WP JSA 25+ SUSTAINMENT OUTCOME PAYMENT,WWEG EP EAST OF ENGLAND INGEUS UK,INGEUS UK LTD,2033473043,"81,915"
Department for Work and Pensions ,Housing Benefits,12/12/2014,HOUSING BENEFIT ADMINISTRATION,HB ENGLAND,READING BOROUGH COUNCIL,2033438166,"81,122"
Department for Work and Pensions ,Child Maintenance and Enforcement Commission,23/12/2014,TREDDS APPS DEV MANDAYS,FS PHASE 2 - HPES COSTS,HP ENTERPRISE SERVICES UK LTD,1000225895,"80,935"
Department for Work and Pensions ,Housing Benefits,12/12/2014,HOUSING BENEFIT ADMINISTRATION,HB ENGLAND,LONDON BOROUGH OF SUTTON,2033438266,"80,867"
Department for Work and Pensions ,Corporate,30/12/2014,CONTRACTED OUT OFFICE SERVICES,FG CD CENTRAL CONTRACTS,XEROX UK LTD 3W,2033471529,"80,683"
Department for Work and Pensions ,Employment Programmes,19/12/2014,WP JSA 25+ SUSTAINMENT OUTCOME PAYMENT,WWEG EP EAST OF ENGLAND INGEUS UK,INGEUS UK LTD,2033452830,"80,625"
Department for Work and Pensions ,Corporate,24/12/2014,MEDICAL SERVICES FIXED COSTS,FG HS MEDICAL SERVICES CONTRACT EXIT COSTS,ATOS HEALTHCARE,2033463238,"80,551"
Department for Work and Pensions ,Corporate,29/12/2014,PRINTING/BINDING,FG CD CORPORATE CHARGES,XEROX UK LTD 3W,2033467122,"80,422"
Department for Work and Pensions ,Corporate,16/12/2014,CONTRACTORS & STAFF SUBSTITUTIONS,CIO ADC DIRECTOR,CAPITA BUSINESS SERVICES LTD,2033445794,"80,412"
Department for Work and Pensions ,Corporate,31/12/2014,PRIME FACILITY PRICE,FG CD NUNEATON DISCOVERY HOUSE,TELEREAL TRILLIUM,2033470373,"80,279"
Department for Work and Pensions ,Housing Benefits,12/12/2014,HOUSING BENEFIT ADMINISTRATION,HB SCOTLAND,WEST LOTHIAN COUNCIL,2033438437,"80,020"
Department for Work and Pensions ,Employment Programmes,12/12/2014,SERVICE FEE,"WWEG EP SUPPORT ADGI,EDIN,LOTH AND BORDRS,LNRK AND EAST DUN",LEARNDIRECT LTD,2033439716,"80,012"
Department for Work and Pensions ,Employment Programmes,23/12/2014,ESF 2011-13 SUPPORT FOR FAMILIES WITH MULTIPLE PROBLEMS JSA CUSTOMERS SECOND PROGRESS MEASURE PAYMENT,CPA12 YORKS AND HUMBER EOS WORKS LTD FORMERLY FOURSTAR,AVANTA ENTERPRISE LTD,2033461226,"79,896"
Department for Work and Pensions ,Housing Benefits,12/12/2014,HOUSING BENEFIT ADMINISTRATION,HB SCOTLAND,NORTH AYRSHIRE COUNCIL,2033438357,"79,851"
Department for Work and Pensions ,Housing Benefits,12/12/2014,HOUSING BENEFIT ADMINISTRATION,HB ENGLAND,BURY METROPOLITAN BOROUGH COUNCIL,2033438238,"79,607"
Department for Work and Pensions ,Corporate,19/12/2014,STAFF RELATED COSTS,CIO PROFESSIONAL CAPABILITY GRADUATES,HM REVENUE & CUSTOMS,2005113,"79,200"
Department for Work and Pensions ,Corporate,02/12/2014,CONTRACTED OUT OFFICE SERVICES,FG OPS FIN DM ENFORCEMENT,AKINIKA,2033417181,"78,987"
Department for Work and Pensions ,Corporate,30/12/2014,TREDDS APPS DEV MANDAYS,CIO IT OGD SPVA,HP ENTERPRISE SERVICES UK LTD,2033472482,"78,908"
Department for Work and Pensions ,Employment Programmes,12/12/2014,SERVICE FEE,"WWEG EP SUPP H ISLS,C COAST AND GRAM,F VALL,FIFE AND TSID",LEARNDIRECT LTD,2033439716,"78,658"
Department for Work and Pensions ,Corporate,18/12/2014,HOSTING SERVICES,CIO ITLR HOSTING DEL P,HP ENTERPRISE SERVICES UK LTD,2033452152,"78,255"
Department for Work and Pensions ,Housing Benefits,12/12/2014,HOUSING BENEFIT ADMINISTRATION,HB ENGLAND,BASILDON DISTRICT COUNCIL,2033438491,"78,096"
Department for Work and Pensions ,Housing Benefits,12/12/2014,HOUSING BENEFIT ADMINISTRATION,HB ENGLAND,WARRINGTON BOROUGH COUNCIL,2033438406,"77,610"
Department for Work and Pensions ,Housing Benefits,12/12/2014,HOUSING BENEFIT ADMINISTRATION,HB ENGLAND,REDCAR & CLEVELAND BOROUGH  COUNCIL,2033438262,"77,385"
Department for Work and Pensions ,Corporate,09/12/2014,TREDDS APPS DEV MANDAYS,F&C IGS DIRECTOR AND SUPPORT,HP ENTERPRISE SERVICES UK LTD,2033432771,"77,075"
Department for Work and Pensions ,Corporate,15/12/2014,RENEWALS OF SOFTWARE SUPPORT AND MAINTENANCE,CIO ITLR SOFTWARE CMG DEL P,SPECIALIST COMPUTER CENTRES PLC,2033445079,"76,866"
Department for Work and Pensions ,European Social Fund,18/12/2014,MA ESF(D) PROGRAMME EXPENDITURE EC PREFUNDED L A's,WWEG EUROPEAN SOCIAL FUND PROGRAMME 2007-2013,LOCAL AUTHORITIES IN THE EAST MIDLANDS,5000001763,"76,778"
Department for Work and Pensions ,Housing Benefits,12/12/2014,HOUSING BENEFIT ADMINISTRATION,HB SCOTLAND,ABERDEEN CITY COUNCIL,2033438348,"76,501"
Department for Work and Pensions ,Housing Benefits,12/12/2014,HOUSING BENEFIT ADMINISTRATION,HB ENGLAND,SLOUGH BOROUGH COUNCIL,2033438476,"76,369"
Department for Work and Pensions ,Housing Benefits,12/12/2014,HOUSING BENEFIT ADMINISTRATION,HB ENGLAND,CENTRAL BEDFORDSHIRE DISTRICT COUNCIL,2033438444,"76,081"
Department for Work and Pensions ,Housing Benefits,12/12/2014,HOUSING BENEFIT ADMINISTRATION,HB WALES,CAERPHILLY COUNTY BOROUGH COUNCIL,2033438223,"75,767"
Department for Work and Pensions ,Corporate,15/12/2014,NEW ENTERPRISE ALLOWANCE MENTOR MATCHING,OPS WDC WSD LN BEDS AND HERTS DISTRICT OFFICE,WENTA,2033444474,"75,160"
Department for Work and Pensions ,Corporate,04/12/2014,RENEWALS OF SOFTWARE SUPPORT AND MAINTENANCE,CHG PIP RECURRENT,SPECIALIST COMPUTER CENTRES PLC,2033423819,"75,088"
Department for Work and Pensions ,Housing Benefits,12/12/2014,HOUSING BENEFIT ADMINISTRATION,HB ENGLAND,NORTH LINCOLNSHIRE COUNCIL,2033438356,"74,453"
Department for Work and Pensions ,Corporate,19/12/2014,CONTRACTORS & STAFF SUBSTITUTIONS,CHG IT TRANSFORMATION PROG,CAPITA BUSINESS SERVICES LTD,2033454186,"74,416"
Department for Work and Pensions ,Housing Benefits,12/12/2014,HOUSING BENEFIT ADMINISTRATION,HB SCOTLAND,DUMFRIES & GALLOWAY COUNCIL,2033438218,"74,237"
Department for Work and Pensions ,Employment Programmes,12/12/2014,WP JSA 25+ SUSTAINMENT OUTCOME PAYMENT,WWEG EP SCOTLAND INGEUS UK,INGEUS UK LTD,2033440056,"73,530"
Department for Work and Pensions ,Housing Benefits,12/12/2014,HOUSING BENEFIT ADMINISTRATION,HB ENGLAND,TENDRING DISTRICT COUNCIL,2033438340,"73,448"
Department for Work and Pensions ,Corporate,18/12/2014,RENEWALS OF SOFTWARE SUPPORT AND MAINTENANCE,F&C CD STRATEGY AND BUSINESS MANAGEMENT,SPECIALIST COMPUTER CENTRES PLC,2033451374,"73,404"
Department for Work and Pensions ,Housing Benefits,12/12/2014,HOUSING BENEFIT ADMINISTRATION,HB ENGLAND,BLACKBURN BOROUGH COUNCIL,2033438196,"73,248"
Department for Work and Pensions ,Housing Benefits,12/12/2014,HOUSING BENEFIT ADMINISTRATION,HB WALES,NEWPORT CITY COUNCIL,2033438347,"73,237"
Department for Work and Pensions ,Corporate,08/12/2014,NEW ENTERPRISE ALLOWANCE MENTOR MATCHING,OPS WDC WSD NW GREATER MANCHESTER E AND W DO,BLUE ORCHID SUPPORT SERVICES,2033429105,"72,833"
Department for Work and Pensions ,Housing Benefits,12/12/2014,HOUSING BENEFIT ADMINISTRATION,HB ENGLAND,HALTON BOROUGH COUNCIL,2033438323,"72,695"
Department for Work and Pensions ,Housing Benefits,12/12/2014,HOUSING BENEFIT ADMINISTRATION,HB ENGLAND,BEDFORD BOROUGH COUNCIL,2033438518,"72,681"
Department for Work and Pensions ,Corporate,08/12/2014,POSTAGE,STR WAB DIRECTOR AND SUPPORT,ROYAL MAIL GROUP PLC,2033429535,"72,250"
Department for Work and Pensions ,Employment Programmes,30/12/2014,WP JSA 25+ SUSTAINMENT OUTCOME PAYMENT,WWEG EP SCOTLAND INGEUS UK,INGEUS UK LTD,2033473043,"72,025"
Department for Work and Pensions ,Employment Programmes,16/12/2014,WP JSA 25+ SUSTAINMENT OUTCOME PAYMENT,WWEG EP EAST LONDON CAREERS DEVELOPMENT GROUP,CAREERS DEVELOPMENT GROUP,2033446616,"71,810"
Department for Work and Pensions ,Corporate,03/12/2014,STAFF TRAINING VAT RECOVERABLE,HR CONTRACTUAL L AND D,CAPITA CIVIL SERVICE LEARNING,2033419693,"71,575"
Department for Work and Pensions ,Corporate,08/12/2014,POSTAGE,OPS BEN DD SERVICE CENTRE 5 - SPECIALIST OPERATIONS,ROYAL MAIL GROUP PLC,2033429535,"71,255"
Department for Work and Pensions ,Corporate,24/12/2014,STAFF TRAINING VAT RECOVERABLE,HR CONTRACTUAL L AND D,CAPITA CIVIL SERVICE LEARNING,2033464458,"70,738"
Department for Work and Pensions ,Employment Programmes,12/12/2014,WP JSA 25+ SUSTAINMENT OUTCOME PAYMENT,WWEG EP EAST MIDLANDS INGEUS UK,INGEUS UK LTD,2033440056,"70,735"
Department for Work and Pensions ,Housing Benefits,12/12/2014,HOUSING BENEFIT ADMINISTRATION,HB ENGLAND,ISLE OF WIGHT COUNTY COUNCIL,2033438229,"70,499"
Department for Work and Pensions ,Housing Benefits,12/12/2014,HOUSING BENEFIT ADMINISTRATION,HB WALES,NEATH PORT TALBOT COUNTY BOROUGH COUNCIL,2033438193,"70,099"
Department for Work and Pensions ,Housing Benefits,12/12/2014,HOUSING BENEFIT ADMINISTRATION,HB SCOTLAND,ABERDEENSHIRE COUNCIL,2033438439,"69,745"
Department for Work and Pensions ,Corporate,05/12/2014,RECURRENT PUBLICITY,CHG STATE PENSION REFORM SINGLE TIER,XEROX UK LTD 3W,2033425566,"69,670"
Department for Work and Pensions ,Employment Programmes,05/12/2014,WP JSA 25+ SUSTAINMENT OUTCOME PAYMENT,WWEG EP SCOTLAND INGEUS UK,INGEUS UK LTD,2033425314,"69,230"
Department for Work and Pensions ,Housing Benefits,12/12/2014,HOUSING BENEFIT ADMINISTRATION,HB WALES,CARMARTHENSHIRE COUNTY COUNCIL,2033438479,"69,164"
Department for Work and Pensions ,Housing Benefits,12/12/2014,HOUSING BENEFIT ADMINISTRATION,HB SCOTLAND,FALKIRK DISTRICT COUNCIL,2033438231,"68,578"
Department for Work and Pensions ,Employment Programmes,04/12/2014,WP JSA 25+ SUSTAINMENT OUTCOME PAYMENT,WWEG EP EAST LONDON A4E,A4E LTD,2033421645,"68,370"
Department for Work and Pensions ,Corporate,15/12/2014,ACCOUNTS PAYABLE UNAPPROVED INVOICES,F&C BM&I CORE,CIPFA BUSINESS LTD,2033444058,"68,340"
Department for Work and Pensions ,Corporate,16/12/2014,TREDDS APPS DEV MANDAYS,CHG PIP IT PHASE 4,HP ENTERPRISE SERVICES UK LTD,2033445556,"68,281"
Department for Work and Pensions ,Housing Benefits,12/12/2014,HOUSING BENEFIT ADMINISTRATION,HB ENGLAND,PRESTON BOROUGH COUNCIL,2033438192,"67,922"
Department for Work and Pensions ,Housing Benefits,12/12/2014,HOUSING BENEFIT ADMINISTRATION,HB ENGLAND,THURROCK BOROUGH COUNCIL,2033438408,"67,788"
Department for Work and Pensions ,Corporate,15/12/2014,MEDICAL SERVICES FIXED COSTS,FG HS MEDICAL SERVICES CONTRACT DEL P,ATOS HEALTHCARE,2033444360,"67,359"
Department for Work and Pensions ,Corporate,08/12/2014,FSF - TRAVEL COSTS TO ADVISER INTERVIEWS - JSA CLIENTS,OPS WDC WSD NW GREATER MANCHESTER E AND W DO,GREATER MANCHESTER TRAVELCARDS LTD,2033431690,"67,015"
Department for Work and Pensions ,Housing Benefits,12/12/2014,HOUSING BENEFIT ADMINISTRATION,HB ENGLAND,HASTINGS BOROUGH COUNCIL,2033438429,"66,895"
Department for Work and Pensions ,Housing Benefits,12/12/2014,HOUSING BENEFIT ADMINISTRATION,HB ENGLAND,SOLIHULL METROPOLITAN BOROUGH COUNCIL,2033438513,"66,881"
Department for Work and Pensions ,Corporate,30/12/2014,FSF - SUPPORT CONTRACT MODULES FOR JSA JOBSEEKERS,OPS WDC WSD LN WEST LONDON DISTRICT OFFICE,A4ENTERPRISE LTD,2033471022,"66,500"
Department for Work and Pensions ,Housing Benefits,12/12/2014,HOUSING BENEFIT ADMINISTRATION,HB ENGLAND,IPSWICH BOROUGH COUNCIL,2033438457,"66,356"
Department for Work and Pensions ,Employment Programmes,05/12/2014,WP JSA 25+ SUSTAINMENT OUTCOME PAYMENT,WWEG EP EAST OF ENGLAND SEETEC,SEETEC BUSINESS TECHNOLOGY CENTRE LTD,2033424557,"66,005"
Department for Work and Pensions ,Corporate,04/12/2014,NON PRIME PROPERTY COSTS,CHG UC DESIGN & BUILD PROGRAMME MANAGER,DEPARTMENT FOR BUSINESS INNOVATION & SKILLS,2005075,"65,996"
Department for Work and Pensions ,Employment Programmes,23/12/2014,ESF 2011-13 SUPPORT FOR FAMILIES WITH MULTIPLE PROBLEMS JSA CUSTOMERS JOB OUTCOME PAYMENT,CPA12 YORKS AND HUMBER EOS WORKS LTD FORMERLY FOURSTAR,AVANTA ENTERPRISE LTD,2033461226,"65,896"
Department for Work and Pensions ,Housing Benefits,12/12/2014,HOUSING BENEFIT ADMINISTRATION,HB ENGLAND,EAST LINDSEY DISTRICT COUNCIL,2033438187,"65,464"
Department for Work and Pensions ,Housing Benefits,12/12/2014,HOUSING BENEFIT ADMINISTRATION,HB ENGLAND,OXFORD CITY COUNCIL,2033438333,"65,202"
Department for Work and Pensions ,Corporate,15/12/2014,CIVIL SERVICE OCCUPATIONAL HEALTH SERVICE,HR OHS,OH ASSIST,2033445405,"65,063"
Department for Work and Pensions ,Housing Benefits,12/12/2014,HOUSING BENEFIT ADMINISTRATION,HB ENGLAND,HEREFORDSHIRE COUNCIL,2033438307,"65,017"
Department for Work and Pensions ,Corporate,02/12/2014,NON-TREDDS IS IT CONSULTANCY (HOSTING) NON ADVICE,CIO ITLR DIGITAL TOWER DEL P,VALTECH LTD,2033417286,"65,007"
Department for Work and Pensions ,Employment Programmes,29/12/2014,WP JSA 25+ SUSTAINMENT OUTCOME PAYMENT,WWEG EP EAST MIDLANDS A4E,A4E LTD,2033466298,"64,930"
Department for Work and Pensions ,Employment Programmes,12/12/2014,SERVICE FEE,WWEG EP SUPPORT CUMBRIA AND LANCASHIRE,LEARNDIRECT LTD,2033439716,"64,886"
Department for Work and Pensions ,Corporate,16/12/2014,NON-TREDDS IS IT APPS DEV MANDAY,CHG UC PATHFINDER DELIVERY MANAGEMENT,IBM UNITED KINGDOM LTD,2033447252,"64,806"
Department for Work and Pensions ,Corporate,05/12/2014,PIP GP FACTUAL REPORTS,FG HS PIP LOT 2,CAPITA BUSINESS SERVICES LTD,2033427611,"64,555"
Department for Work and Pensions ,Housing Benefits,12/12/2014,HOUSING BENEFIT ADMINISTRATION,HB ENGLAND,HARTLEPOOL BOROUGH COUNCIL,2033438270,"64,437"
Department for Work and Pensions ,Employment Programmes,12/12/2014,WP JSA 25+ SUSTAINMENT OUTCOME PAYMENT,WWEG EP NORTH WEST MERS HAL CUMB AND LANCS INGEUS UK,INGEUS UK LTD,2033440056,"64,285"
Department for Work and Pensions ,Housing Benefits,12/12/2014,HOUSING BENEFIT ADMINISTRATION,HB SCOTLAND,WEST DUNBARTONSHIRE COUNCIL,2033438370,"64,224"
Department for Work and Pensions ,Housing Benefits,12/12/2014,HOUSING BENEFIT ADMINISTRATION,HB ENGLAND,LONDON BOROUGH OF RICHMOND UPON THAMES,2033438414,"64,213"
Department for Work and Pensions ,Housing Benefits,12/12/2014,HOUSING BENEFIT ADMINISTRATION,HB SCOTLAND,EAST AYRSHIRE COUNCIL FINANCE DEPARTMENT,2033438203,"64,100"
Department for Work and Pensions ,Corporate,31/12/2014,AR PRIME RECOVERIES,BALANCE SHEET,TELEREAL TRILLIUM,2033470375,"63,984"
Department for Work and Pensions ,Employment Programmes,30/12/2014,WP JSA 25+ SUSTAINMENT OUTCOME PAYMENT,WWEG EP NORTH WEST MERS HAL CUMB AND LANCS INGEUS UK,INGEUS UK LTD,2033473043,"63,855"
Department for Work and Pensions ,Housing Benefits,12/12/2014,HOUSING BENEFIT ADMINISTRATION,HB ENGLAND,COLCHESTER BOROUGH COUNCIL,2033438164,"63,683"
Department for Work and Pensions ,Corporate,12/12/2014,RENEWALS OF SOFTWARE SUPPORT AND MAINTENANCE,CIO ITLR HOSTING DEL P,HP ENTERPRISE SERVICES UK LTD,2033439650,"63,569"
Department for Work and Pensions ,Employment Programmes,23/12/2014,WP JSA NEET SUSTAINMENT OUTCOME PAYMENT,WWEG EP W MIDLANDS BIRM SOL BC FOURSTAR EMP AND SKILLS,AVANTA ENTERPRISE LTD,2033461226,"63,250"
Department for Work and Pensions ,Employment Programmes,19/12/2014,WP JSA 25+ SUSTAINMENT OUTCOME PAYMENT,WWEG EP SCOTLAND INGEUS UK,INGEUS UK LTD,2033452830,"62,995"
Department for Work and Pensions ,Employment Programmes,19/12/2014,WP JSA 25+ SUSTAINMENT OUTCOME PAYMENT,WWEG EP NORTH WEST MERS HAL CUMB AND LANCS INGEUS UK,INGEUS UK LTD,2033452830,"62,995"
Department for Work and Pensions ,Corporate,15/12/2014,PRIME VARIABLE CHARGE,FG CD CMG ESTATES PRIME COSTS,TELEREAL TRILLIUM,2033443890,"62,973"
Department for Work and Pensions ,Corporate,16/12/2014,NON-TREDDS IS IT APPS DEV MANDAY,CIO CIS RELEASE 2,IBM UNITED KINGDOM LTD,2033447252,"62,848"
Department for Work and Pensions ,Employment Programmes,23/12/2014,ESF 2011-13 SUPPORT FOR FAMILIES WITH MULTIPLE PROBLEMS JSA CUSTOMERS THIRD PROGRESS MEASURE PAYMENT,CPA12 YORKS AND HUMBER EOS WORKS LTD FORMERLY FOURSTAR,AVANTA ENTERPRISE LTD,2033461226,"62,821"
Department for Work and Pensions ,Corporate,04/12/2014,FSF - TRAINING PAYMENTS TO PROVIDERS - JSA JOBSEEKERS,OPS WDC WSD SC GLASGOW LANARKSHIRE E DUMBARTONSHIRE DO,THE WISE GROUP,2033422583,"62,798"
Department for Work and Pensions ,Housing Benefits,12/12/2014,HOUSING BENEFIT ADMINISTRATION,HB ENGLAND,BATH & NORTH EAST SOMERSET COUNCIL,2033438521,"62,682"
Department for Work and Pensions ,Child Maintenance and Enforcement Commission,11/12/2014,CONTRACTORS & STAFF SUBSTITUTIONS,DATA WAREHOUSE PHASE 1,CAPITA BUSINESS SERVICES LTD,1000225040,"62,606"
Department for Work and Pensions ,Corporate,19/12/2014,FSF - SUPPORT CONTRACT MODULES FOR JSA JOBSEEKERS,OPS WDC WSD WL NORTH AND MID WALES DISTRICT OFFICE,A4E LTD,2033453413,"62,553"
Department for Work and Pensions ,Employment Programmes,12/12/2014,SERVICE FEE,WWEG EP SUPPORT BLACK COUNTRY,A4E LTD,2033439802,"62,320"
Department for Work and Pensions ,Housing Benefits,12/12/2014,HOUSING BENEFIT ADMINISTRATION,HB WALES,BRIDGEND COUNTY BOROUGH COUNCIL,2033438427,"62,211"
Department for Work and Pensions ,Corporate,03/12/2014,NEW ENTERPRISE ALLOWANCE MENTOR MATCHING,OPS WDC WSD NW MERSEYSIDE DISTRICT OFFICE,BLUE ORCHID SUPPORT SERVICES,2033420086,"61,448"
Department for Work and Pensions ,Employment Programmes,05/12/2014,WP JSA 25+ SUSTAINMENT OUTCOME PAYMENT,WWEG EP NORTH WEST MERS HAL CUMB AND LANCS INGEUS UK,INGEUS UK LTD,2033425314,"61,060"
Department for Work and Pensions ,Housing Benefits,12/12/2014,HOUSING BENEFIT ADMINISTRATION,HB ENGLAND,SOUTH SOMERSET DISTRICT COUNCIL,2033438488,"61,040"
Department for Work and Pensions ,Housing Benefits,12/12/2014,HOUSING BENEFIT ADMINISTRATION,HB ENGLAND,CITY OF YORK COUNCIL,2033438407,"60,994"
Department for Work and Pensions ,Housing Benefits,12/12/2014,HOUSING BENEFIT ADMINISTRATION,HB ENGLAND,ARUN DISTRICT COUNCIL,2033438243,"60,621"
Department for Work and Pensions ,Housing Benefits,12/12/2014,HOUSING BENEFIT ADMINISTRATION,HB ENGLAND,SWALE BOROUGH COUNCIL,2033438199,"60,591"
Department for Work and Pensions ,Corporate,22/12/2014,TREDDS APPS DEV FIXED PRICE CONTRACTS,CHG PIP RECURRENT,HP ENTERPRISE SERVICES UK LTD,2033459025,"60,463"
Department for Work and Pensions ,Corporate,31/12/2014,PRIME FACILITY PRICE,FG CD CORBY DISCOVERY HOUSE,TELEREAL TRILLIUM,2033470373,"60,317"
Department for Work and Pensions ,Corporate,31/12/2014,PRIME BUSINESS RATES,FG CD PEEL PARK,TELEREAL TRILLIUM,2033470374,"60,246"
Department for Work and Pensions ,Corporate,31/12/2014,PRIME FACILITY PRICE,FG CD PRESTON HOLBORN HOUSE,TELEREAL TRILLIUM,2033470373,"60,220"
Department for Work and Pensions ,Corporate,15/12/2014,TREDDS APPS DEV MANDAYS,CHG ANNUAL VERIFICATION (CONDITIONALITY),HP ENTERPRISE SERVICES UK LTD,2033445445,"60,190"
Department for Work and Pensions ,Corporate,03/12/2014,NON PRIME WORKS - VAT NON- RECOVERABLE,CHG ESTATES RATIONALISATION FORMER JCP OPS,HEREFORDSHIRE COUNCIL,2033419432,"60,000"
Department for Work and Pensions ,Employment Programmes,30/12/2014,WP JSA 25+ SUSTAINMENT OUTCOME PAYMENT,WWEG EP EAST MIDLANDS INGEUS UK,INGEUS UK LTD,2033473043,"59,770"
Department for Work and Pensions ,Housing Benefits,12/12/2014,HOUSING BENEFIT ADMINISTRATION,HB ENGLAND,GLOUCESTER CITY COUNCIL,2033438443,"59,688"
Department for Work and Pensions ,Corporate,15/12/2014,STAFF TRAINING VAT RECOVERABLE,OPS BEN DD DISABILITY CSD SUPPORT,CAPITA CIVIL SERVICE LEARNING,2033444118,"59,633"
Department for Work and Pensions ,Housing Benefits,12/12/2014,HOUSING BENEFIT ADMINISTRATION,HB ENGLAND,SCARBOROUGH BOROUGH COUNCIL,2033438375,"59,619"
Department for Work and Pensions ,Corporate,09/12/2014,POSTAGE,FG CD NEWCASTLE ESTATE,UK MAIL,2033432487,"59,188"
Department for Work and Pensions ,Housing Benefits,12/12/2014,HOUSING BENEFIT ADMINISTRATION,HB ENGLAND,ROYAL BOROUGH OF KINGSTON UPON THAMES,2033438418,"59,167"
Department for Work and Pensions ,Employment Programmes,12/12/2014,WP JSA 25+ SUSTAINMENT OUTCOME PAYMENT,WWEG EP EAST OF ENGLAND SEETEC,SEETEC BUSINESS TECHNOLOGY CENTRE LTD,2033439763,"59,125"
Department for Work and Pensions ,Employment Programmes,19/12/2014,WP JSA 25+ SUSTAINMENT OUTCOME PAYMENT,WWEG EP EAST MIDLANDS INGEUS UK,INGEUS UK LTD,2033452830,"59,125"
Department for Work and Pensions ,Corporate,23/12/2014,NEW ENTERPRISE ALLOWANCE MENTOR MATCHING,OPS WDC WSD LN EAST LONDON DISTRICT OFFICE,NETWORK PROJECTS LTD,2033462192,"58,786"
Department for Work and Pensions ,Employment Programmes,05/12/2014,WP JSA 25+ SUSTAINMENT OUTCOME PAYMENT,WWEG EP EAST MIDLANDS INGEUS UK,INGEUS UK LTD,2033425314,"58,480"
Department for Work and Pensions ,Corporate,15/12/2014,CONNECTIVITY,CIO ITLR PSN CONNECTIVITY,BT GLOBAL SERVICES,2033445219,"58,440"
Department for Work and Pensions ,Corporate,30/12/2014,NON-TREDDS IS IT SERVICES (AMS),CIO ADEP ITLR HISTORIC PREMIUM & TRANSFORMATION,ACCENTURE UK LTD,2033472553,"58,415"
Department for Work and Pensions ,Corporate,31/12/2014,PRIME FACILITY PRICE,FG CD CLARKE HOUSE,TELEREAL TRILLIUM,2033470373,"58,402"
Department for Work and Pensions ,Corporate,16/12/2014,CONTRACTORS & STAFF SUBSTITUTIONS,CIO COO IT DIRECTOR,CAPITA BUSINESS SERVICES LTD,2033445794,"58,382"
Department for Work and Pensions ,Housing Benefits,12/12/2014,HOUSING BENEFIT ADMINISTRATION,HB ENGLAND,BASINGSTOKE DISTRICT COUNCIL,2033438336,"58,363"
Department for Work and Pensions ,Employment Programmes,04/12/2014,WP JSA 25+ SUSTAINMENT OUTCOME PAYMENT,WWEG EP NORTH WEST MERS HAL CUMB AND LANCS A4E,A4E LTD,2033421645,"57,835"
Department for Work and Pensions ,Corporate,15/12/2014,TREDDS APPS DEV MANDAYS,CHG STATE PENSION REFORM SINGLE TIER,HP ENTERPRISE SERVICES UK LTD,2033445445,"57,637"
Department for Work and Pensions ,Employment Programmes,10/12/2014,WP JSA 25+ SUSTAINMENT OUTCOME PAYMENT,WWEG EP NORTH WEST GM CHES AND WARR G4S,G4S REGIONAL MANAGEMENT UK & I LTD,2033436357,"57,620"
Department for Work and Pensions ,Employment Programmes,11/12/2014,WP JSA 25+ SUSTAINMENT OUTCOME PAYMENT,WWEG EP EAST MIDLANDS A4E,A4E LTD,2033437316,"57,620"
Department for Work and Pensions ,Housing Benefits,12/12/2014,HOUSING BENEFIT ADMINISTRATION,HB ENGLAND,KINGS LYNN & WEST NORFOLK BOROUGH COUNCIL,2033438482,"57,485"
Department for Work and Pensions ,Employment Programmes,11/12/2014,INNOVATION FUND,WWEG EP NATIONAL,PREVISTA LTD,2033437011,"57,340"
Department for Work and Pensions ,Employment Programmes,22/12/2014,WP JSA 25+ SUSTAINMENT OUTCOME PAYMENT,WWEG EP NORTH WEST GM CHES AND WARR G4S,G4S REGIONAL MANAGEMENT UK & I LTD,2033457946,"57,190"
Department for Work and Pensions ,Corporate,03/12/2014,GENERAL OFFICE EXPENSES VAT RECOVERABLE,FG CD ECCMB COSTS,DEPARTMENT FOR ENERGY & CLIMATE CHANGE,2033419451,"56,951"
Department for Work and Pensions ,Corporate,09/12/2014,FSF - SUPPORT CONTRACT MODULES FOR JSA JOBSEEKERS,OPS WDC WSD SE SURREY AND SUSSEX EXTERNAL RELATIONS TEAM,PINNACLE PEOPLE,2033432390,"56,760"
Department for Work and Pensions ,Housing Benefits,12/12/2014,HOUSING BENEFIT ADMINISTRATION,HB ENGLAND,GREAT YARMOUTH COUNCIL,2033438484,"56,678"
Department for Work and Pensions ,Employment Programmes,12/12/2014,WP JSA 25+ SUSTAINMENT OUTCOME PAYMENT,WWEG EP NORTH EAST INGEUS UK,INGEUS UK LTD,2033440056,"56,545"
Department for Work and Pensions ,Employment Programmes,18/12/2014,WP JSA 25+ SUSTAINMENT OUTCOME PAYMENT,WWEG EP EAST MIDLANDS A4E,A4E LTD,2033452301,"56,545"
Department for Work and Pensions ,Child Maintenance and Enforcement Commission,04/12/2014,CONTRACTORS & STAFF SUBSTITUTIONS,FIN AND REP SERVICES DIRECTORS OFFICE,CAPITA BUSINESS SERVICES LTD,1000224368,"56,490"
Department for Work and Pensions ,Employment Programmes,02/12/2014,WP JSA 25+ SUSTAINMENT OUTCOME PAYMENT,WWEG EP NORTH WEST GM CHES AND WARR G4S,G4S REGIONAL MANAGEMENT UK & I LTD,2033416896,"56,330"
Department for Work and Pensions ,Employment Programmes,23/12/2014,WP JSA 25+ SUSTAINMENT OUTCOME PAYMENT,WWEG EP SCOTLAND WORKING LINKS,WORKING LINKS,2033460538,"56,330"
Department for Work and Pensions ,Employment Programmes,12/12/2014,SERVICE FEE,"WWEG EP SUPPORT SOUTH EAST WALES, NORTH AND MID WALES",A4E LTD,2033439802,"56,174"
Department for Work and Pensions ,Employment Programmes,29/12/2014,WP JSA 25+ SUSTAINMENT OUTCOME PAYMENT,WWEG EP EAST LONDON A4E,A4E LTD,2033466298,"56,115"
Department for Work and Pensions ,Employment Programmes,23/12/2014,WP JSA CLAIMING 22 OF 24MTHS SUSTAINMENT OUTCOME PAYMENT,WWEG EP W MIDLANDS BIRM SOL BC FOURSTAR EMP AND SKILLS,AVANTA ENTERPRISE LTD,2033461226,"56,000"
Department for Work and Pensions ,Corporate,18/12/2014,NON-TREDDS IS IT CONSULTANCY (HOSTING) NON ADVICE,CIO ITLR DIGITAL TOWER DEL P,VALTECH LTD,2033450675,"55,931"
Department for Work and Pensions ,Employment Programmes,18/12/2014,WP JSA 25+ SUSTAINMENT OUTCOME PAYMENT,WWEG EP EAST LONDON A4E,A4E LTD,2033452301,"55,685"
Department for Work and Pensions ,Housing Benefits,12/12/2014,HOUSING BENEFIT ADMINISTRATION,HB ENGLAND,BURNLEY BOROUGH COUNCIL,2033438493,"55,367"
Department for Work and Pensions ,Employment Programmes,11/12/2014,WP JSA 25+ SUSTAINMENT OUTCOME PAYMENT,WWEG EP NORTH WEST MERS HAL CUMB AND LANCS A4E,A4E LTD,2033437316,"55,255"
Department for Work and Pensions ,Housing Benefits,12/12/2014,HOUSING BENEFIT ADMINISTRATION,HB ENGLAND,WYCOMBE DISTRICT COUNCIL,2033438289,"55,097"
Department for Work and Pensions ,Housing Benefits,12/12/2014,HOUSING BENEFIT ADMINISTRATION,HB ENGLAND,BRAINTREE DISTRICT COUNCIL,2033438275,"54,836"
Department for Work and Pensions ,Employment Programmes,11/12/2014,WP JSA 25+ SUSTAINMENT OUTCOME PAYMENT,WWEG EP EAST LONDON A4E,A4E LTD,2033437316,"54,825"
Department for Work and Pensions ,Housing Benefits,12/12/2014,HOUSING BENEFIT ADMINISTRATION,HB ENGLAND,EASTBOURNE BOROUGH COUNCIL,2033438386,"54,707"
Department for Work and Pensions ,Housing Benefits,12/12/2014,HOUSING BENEFIT ADMINISTRATION,HB SCOTLAND,PERTH & KINROSS COUNCIL,2033438355,"54,211"
Department for Work and Pensions ,Housing Benefits,12/12/2014,HOUSING BENEFIT ADMINISTRATION,HB ENGLAND,HUNTINGDON DISTRICT COUNCIL,2033438287,"54,087"
Department for Work and Pensions ,Child Maintenance and Enforcement Commission,15/12/2014,PROFESSIONAL SERVICES NON VAT RECOVERABLE,FAMILY SUPPORT SERVICES,SILLS & BETTERIDGE SOLICITORS,1000225306,"54,086"
Department for Work and Pensions ,Corporate,18/12/2014,FSF - SUPPORT CONTRACT MODULES FOR JSA JOBSEEKERS,OPS WDC WSD LN SOUTH LONDON DISTRICT OFFICE,A4E LTD,2033452300,"53,950"
Department for Work and Pensions ,Employment Programmes,23/12/2014,WP JSA 18-24 JOB OUTCOME PAYMENT,WWEG EP W MIDLANDS BIRM SOL BC FOURSTAR EMP AND SKILLS,AVANTA ENTERPRISE LTD,2033461226,"53,856"
Department for Work and Pensions ,Employment Programmes,05/12/2014,WP JSA 25+ JOB OUTCOME PAYMENTWP JSA 25+ JOB OUTCOME PAYMENT,WWEG EP NORTH WEST GM CHES AND WARR G4S,G4S REGIONAL MANAGEMENT UK & I LTD,2033424699,"53,598"
Department for Work and Pensions ,Employment Programmes,04/12/2014,WP JSA 25+ SUSTAINMENT OUTCOME PAYMENT,WWEG EP EAST MIDLANDS A4E,A4E LTD,2033421645,"53,535"
Department for Work and Pensions ,Housing Benefits,12/12/2014,HOUSING BENEFIT ADMINISTRATION,HB ENGLAND,AYLESBURY VALE DISTRICT COUNCIL,2033438292,"53,488"
Department for Work and Pensions ,Housing Benefits,12/12/2014,HOUSING BENEFIT ADMINISTRATION,HB WALES,WREXHAM COUNTY BOROUGH COUNCIL,2033438494,"53,357"
Department for Work and Pensions ,Housing Benefits,12/12/2014,HOUSING BENEFIT ADMINISTRATION,HB ENGLAND,LANCASTER CITY COUNCIL,2033438296,"53,248"
Department for Work and Pensions ,Housing Benefits,12/12/2014,HOUSING BENEFIT ADMINISTRATION,HB ENGLAND,WAVENEY DISTRICT COUNCIL,2033438322,"53,190"
Department for Work and Pensions ,Employment Programmes,05/12/2014,WP JSA 25+ SUSTAINMENT OUTCOME PAYMENT,WWEG EP NORTH EAST INGEUS UK,INGEUS UK LTD,2033425314,"53,105"
Department for Work and Pensions ,Corporate,02/12/2014,FSF - TRAINING PAYMENTS TO PROVIDERS - JSA JOBSEEKERS,OPS WDC WSD WL SOUTH EAST WALES DISTRICT OFFICE,WORKING LINKS,2033417329,"53,045"
Department for Work and Pensions ,Employment Programmes,22/12/2014,WP JSA 25+ SUSTAINMENT OUTCOME PAYMENT,WWEG EP SOUTH EAST SURR SUSSX AND KENT G4S,G4S REGIONAL MANAGEMENT UK & I LTD,2033457946,"52,890"
Department for Work and Pensions ,Housing Benefits,12/12/2014,HOUSING BENEFIT ADMINISTRATION,HB ENGLAND,DARLINGTON BOROUGH COUNCIL,2033438161,"52,780"
Department for Work and Pensions ,Corporate,10/12/2014,CONTRACTORS & STAFF SUBSTITUTIONS,CIO ADC DIRECTOR,CAPITA BUSINESS SERVICES LTD,2033434303,"52,636"
Department for Work and Pensions ,Employment Programmes,29/12/2014,WP JSA 25+ SUSTAINMENT OUTCOME PAYMENT,WWEG EP NORTH WEST MERS HAL CUMB AND LANCS A4E,A4E LTD,2033466298,"52,460"
Department for Work and Pensions ,Housing Benefits,12/12/2014,HOUSING BENEFIT ADMINISTRATION,HB SCOTLAND,INVERCLYDE DISTRICT COUNCIL,2033438204,"52,418"
Department for Work and Pensions ,Housing Benefits,12/12/2014,HOUSING BENEFIT ADMINISTRATION,HB ENGLAND,CRAWLEY BOROUGH COUNCIL,2033438317,"52,346"
Department for Work and Pensions ,Housing Benefits,12/12/2014,HOUSING BENEFIT ADMINISTRATION,HB ENGLAND,DACORUM BOROUGH COUNCIL,2033438249,"52,275"
Department for Work and Pensions ,Employment Programmes,23/12/2014,ESF 2011-13 SUPPORT FOR FAMILIES WITH MULTIPLE PROBLEMS JSA CUSTOMERS. FIRST PROGRESS MEASURE PAYMENT.,CPA11 WEST MIDLANDS EOS WORKS LTD FORMERLY FOURSTAR,AVANTA ENTERPRISE LTD,2033461226,"52,059"
Department for Work and Pensions ,Employment Programmes,30/12/2014,WP JSA 25+ SUSTAINMENT OUTCOME PAYMENT,WWEG EP NORTH EAST INGEUS UK,INGEUS UK LTD,2033473043,"52,030"
Department for Work and Pensions ,Housing Benefits,12/12/2014,HOUSING BENEFIT ADMINISTRATION,HB ENGLAND,POOLE BOROUGH COUNCIL,2033438390,"52,012"
Department for Work and Pensions ,Employment Programmes,23/12/2014,WP JSA 25+ SUSTAINMENT OUTCOME PAYMENT,WWEG EP EAST OF ENGLAND SEETEC,SEETEC BUSINESS TECHNOLOGY CENTRE LTD,2033461147,"51,815"
Department for Work and Pensions ,Housing Benefits,12/12/2014,HOUSING BENEFIT ADMINISTRATION,HB ENGLAND,EXETER CITY COUNCIL,2033438150,"51,814"
Department for Work and Pensions ,Housing Benefits,12/12/2014,HOUSING BENEFIT ADMINISTRATION,HB SCOTLAND,SOUTH AYRSHIRE COUNCIL,2033438216,"51,719"
Department for Work and Pensions ,Housing Benefits,12/12/2014,HOUSING BENEFIT ADMINISTRATION,HB WALES,FLINTSHIRE COUNTY COUNCIL,2033438241,"51,699"
Department for Work and Pensions ,Housing Benefits,12/12/2014,HOUSING BENEFIT ADMINISTRATION,HB ENGLAND,LINCOLN CITY COUNCIL,2033438499,"51,471"
Department for Work and Pensions ,Corporate,16/12/2014,AGENCY PAYMENTS TO LOCAL AUTHORITIES & PARTNERSHIPS,CHG UC PROGRAMME RECHARGES,BURY METROPOLITAN BOROUGH COUNCIL,2033446289,"51,203"
Department for Work and Pensions ,Housing Benefits,12/12/2014,HOUSING BENEFIT ADMINISTRATION,HB ENGLAND,MAIDSTONE BOROUGH COUNCIL,2033438225,"51,184"
Department for Work and Pensions ,Employment Programmes,18/12/2014,WP JSA 25+ SUSTAINMENT OUTCOME PAYMENT,WWEG EP NORTH WEST MERS HAL CUMB AND LANCS A4E,A4E LTD,2033452301,"51,170"
Department for Work and Pensions ,Housing Benefits,12/12/2014,HOUSING BENEFIT ADMINISTRATION,HB ENGLAND,CHELMSFORD BOROUGH COUNCIL,2033438360,"51,120"
Department for Work and Pensions ,Employment Programmes,12/12/2014,SERVICE FEE,WWEG EP SUPPORT LEICESTERSHIRE AND NORTHAMPTONSHIRE,INGEUS UK LTD,2033440056,"51,038"
Department for Work and Pensions ,Housing Benefits,12/12/2014,HOUSING BENEFIT ADMINISTRATION,HB SCOTLAND,SCOTTISH BORDERS COUNCIL,2033438272,"51,007"
Department for Work and Pensions ,Employment Programmes,12/12/2014,WP JSA 25+ SUSTAINMENT OUTCOME PAYMENT,WWEG EP WEST LONDON INGEUS UK,INGEUS UK LTD,2033440056,"50,740"
Department for Work and Pensions ,Child Maintenance and Enforcement Commission,11/12/2014,AMS MANDAYS,FS PHASE 2 - HPES COSTS,HP ENTERPRISE SERVICES UK LTD,1000224973,"50,554"
Department for Work and Pensions ,Corporate,04/12/2014,STAFF TRAINING VAT RECOVERABLE,HR CONTRACTUAL L AND D,CAPITA CIVIL SERVICE LEARNING,2033421890,"50,416"
Department for Work and Pensions ,Employment Programmes,12/12/2014,WP JSA 25+ SUSTAINMENT OUTCOME PAYMENT,WWEG EP EAST LONDON SEETEC,SEETEC BUSINESS TECHNOLOGY CENTRE LTD,2033439763,"50,310"
Department for Work and Pensions ,Child Maintenance and Enforcement Commission,05/12/2014,CONTRACTORS & STAFF SUBSTITUTIONS,DATA WAREHOUSE PHASE 1,CAPITA BUSINESS SERVICES LTD,1000224600,"50,227"
Department for Work and Pensions ,Employment Programmes,22/12/2014,WP JSA 25+ SUSTAINMENT OUTCOME PAYMENT,WWEG EP EAST LONDON SEETEC,SEETEC BUSINESS TECHNOLOGY CENTRE LTD,2033459313,"50,095"
Department for Work and Pensions ,Child Maintenance and Enforcement Commission,18/12/2014,NON-TREDDS IS IT SERVICES (AMS),FS PHASE 2 - TCS COSTS,TATA CONSULTANCY SERVICES LTD,1000225536,"50,050"
Department for Work and Pensions ,Employment Programmes,23/12/2014,ESF 2011-13 SUPPORT FOR FAMILIES WITH MULTIPLE PROBLEMS JSA CUSTOMERS SECOND PROGRESS MEASURE PAYMENT,CPA11 WEST MIDLANDS EOS WORKS LTD FORMERLY FOURSTAR,AVANTA ENTERPRISE LTD,2033461226,"49,945"
Department for Work and Pensions ,Corporate,12/12/2014,NON-TREDDS IS IT SERVICES (HOSTING),CHG DIGITAL ACADEMY,SALESFORCE COM,2033439469,"49,920"
Department for Work and Pensions ,Employment Programmes,12/12/2014,SERVICE FEE,WWEG EP SUPPORT CORNWALL AND DEVON,WORKING LINKS,2033440178,"49,813"
Department for Work and Pensions ,Corporate,04/12/2014,NEW ENTERPRISE ALLOWANCE MENTOR MATCHING,OPS WDC WSD CE LINCOLNSHIRE NOTTINGHAMSHIRE RUTLAND DO,NBV ENTERPRISE SOLUTIONS LTD,2033422828,"49,718"
Department for Work and Pensions ,Housing Benefits,12/12/2014,HOUSING BENEFIT ADMINISTRATION,HB ENGLAND,NUNEATON BOROUGH COUNCIL,2033438345,"49,675"
Department for Work and Pensions ,Housing Benefits,12/12/2014,HOUSING BENEFIT ADMINISTRATION,HB ENGLAND,CHESTERFIELD BOROUGH COUNCIL,2033438246,"49,514"
Department for Work and Pensions ,Housing Benefits,12/12/2014,HOUSING BENEFIT ADMINISTRATION,HB WALES,CONWY COUNTY BOROUGH  COUNCIL,2033438403,"49,474"
Department for Work and Pensions ,Housing Benefits,12/12/2014,HOUSING BENEFIT ADMINISTRATION,HB ENGLAND,SHEPWAY DISTRICT COUNCIL,2033438271,"49,347"
Department for Work and Pensions ,Housing Benefits,12/12/2014,HOUSING BENEFIT ADMINISTRATION,HB ENGLAND,NORTH HERTFORDSHIRE DISTRICT COUNCIL,2033438417,"49,314"
Department for Work and Pensions ,Housing Benefits,12/12/2014,HOUSING BENEFIT ADMINISTRATION,HB ENGLAND,NEW FOREST DISTRICT COUNCIL,2033438308,"49,311"
Department for Work and Pensions ,Employment Programmes,10/12/2014,WP JSA 25+ SUSTAINMENT OUTCOME PAYMENT,WWEG EP SCOTLAND WORKING LINKS,WORKING LINKS,2033434608,"49,020"
Department for Work and Pensions ,Housing Benefits,12/12/2014,HOUSING BENEFIT ADMINISTRATION,HB ENGLAND,CANTERBURY CITY COUNCIL,2033438227,"48,906"
Department for Work and Pensions ,Corporate,10/12/2014,FSF - TRAVEL COSTS TO ADVISER INTERVIEWS - JSA CLIENTS,OPS WDC WSD SC GLASGOW LANARKSHIRE E DUMBARTONSHIRE DO,FIRST GLASGOW,2033436233,"48,880"
Department for Work and Pensions ,Housing Benefits,12/12/2014,HOUSING BENEFIT ADMINISTRATION,HB ENGLAND,DOVER DISTRICT COUNCIL,2033438226,"48,826"
Department for Work and Pensions ,Housing Benefits,12/12/2014,HOUSING BENEFIT ADMINISTRATION,HB ENGLAND,ASHFIELD DISTRICT COUNCIL,2033438441,"48,754"
Department for Work and Pensions ,Housing Benefits,12/12/2014,HOUSING BENEFIT ADMINISTRATION,HB ENGLAND,BRECKLAND DISTRICT COUNCIL,2033438496,"48,716"
Department for Work and Pensions ,Employment Programmes,02/12/2014,WP JSA 25+ SUSTAINMENT OUTCOME PAYMENT,WWEG EP SCOTLAND WORKING LINKS,WORKING LINKS,2033417330,"48,590"
Department for Work and Pensions ,Housing Benefits,12/12/2014,HOUSING BENEFIT ADMINISTRATION,HB ENGLAND,CHARNWOOD BOROUGH COUNCIL,2033438404,"48,583"
Department for Work and Pensions ,Corporate,23/12/2014,PUBLICITY RES'H/EVAL,CHG UC STAKEHOLDER & PARTNERS,TNS BMRB,2033460414,"48,555"
Department for Work and Pensions ,Housing Benefits,12/12/2014,HOUSING BENEFIT ADMINISTRATION,HB WALES,GWYNEDD COUNCIL,2033438399,"48,501"
Department for Work and Pensions ,Housing Benefits,12/12/2014,HOUSING BENEFIT ADMINISTRATION,HB ENGLAND,TEIGNBRIDGE DISTRICT COUNCIL,2033438507,"48,394"
Department for Work and Pensions ,Housing Benefits,12/12/2014,HOUSING BENEFIT ADMINISTRATION,HB ENGLAND,MANSFIELD DISTRICT COUNCIL,2033438245,"48,355"
Department for Work and Pensions ,Housing Benefits,12/12/2014,HOUSING BENEFIT ADMINISTRATION,HB WALES,TORFAEN BOROUGH COUNCIL,2033438259,"48,014"
Department for Work and Pensions ,Housing Benefits,12/12/2014,HOUSING BENEFIT ADMINISTRATION,HB ENGLAND,WYRE BOROUGH COUNCIL,2033438298,"47,916"
Department for Work and Pensions ,Employment Programmes,23/12/2014,ESF 2011-13 SUPPORT FOR FAMILIES WITH MULTIPLE PROBLEMS JSA CUSTOMERS JOB OUTCOME PAYMENT,CPA11 WEST MIDLANDS EOS WORKS LTD FORMERLY FOURSTAR,AVANTA ENTERPRISE LTD,2033461226,"47,875"
Department for Work and Pensions ,Housing Benefits,12/12/2014,HOUSING BENEFIT ADMINISTRATION,HB ENGLAND,WEST BERKSHIRE COUNCIL,2033438412,"47,698"
Department for Work and Pensions ,Corporate,10/12/2014,MEDICAL SERVICES FIXED COSTS,OPS BEN DD DISABILITY CSD SUPPORT,ATOS HEALTHCARE,2033435278,"47,587"
Department for Work and Pensions ,Corporate,19/12/2014,MEDICAL SERVICES FIXED COSTS,OPS BEN DD DISABILITY CSD SUPPORT,ATOS HEALTHCARE,2033453880,"47,587"
Department for Work and Pensions ,Employment Programmes,23/12/2014,ESF 2011-13 SUPPORT FOR FAMILIES WITH MULTIPLE PROBLEMS JSA CUSTOMERS PROGRESS MEASURE - INITIAL 25% PAYMENT,CPA11 WEST MIDLANDS EOS WORKS LTD FORMERLY FOURSTAR,AVANTA ENTERPRISE LTD,2033461226,"47,567"
Department for Work and Pensions ,Housing Benefits,12/12/2014,HOUSING BENEFIT ADMINISTRATION,HB ENGLAND,CHERWELL DISTRICT COUNCIL,2033438319,"47,278"
Department for Work and Pensions ,Housing Benefits,12/12/2014,HOUSING BENEFIT ADMINISTRATION,HB ENGLAND,SEDGEMOOR DISTRICT COUNCIL,2033438250,"47,181"
Department for Work and Pensions ,Employment Programmes,15/12/2014,WP JSA 25+ SUSTAINMENT OUTCOME PAYMENT,WWEG EP SCOTLAND WORKING LINKS,WORKING LINKS,2033445365,"47,085"
Department for Work and Pensions ,Housing Benefits,12/12/2014,HOUSING BENEFIT ADMINISTRATION,HB ENGLAND,HAVANT BOROUGH COUNCIL,2033438168,"46,931"
Department for Work and Pensions ,Corporate,16/12/2014,NETWORK SERVICES,CHG UC PATHFINDER DELIVERY MANAGEMENT,BT GLOBAL SERVICES,2033447682,"46,797"
Department for Work and Pensions ,Corporate,05/12/2014,SECURE PRINTING,OPS OPE SDM ENABLER 1,XEROX UK LTD 3W,2033425566,"46,694"
Department for Work and Pensions ,Employment Programmes,01/12/2014,WP JSA 25+ SUSTAINMENT OUTCOME PAYMENT,WWEG EP WEST LONDON REED IN PARTNERSHIP,REED IN PARTNERSHIP LTD,2033414732,"46,440"
Department for Work and Pensions ,Housing Benefits,12/12/2014,HOUSING BENEFIT ADMINISTRATION,HB ENGLAND,PENDLE BOROUGH COUNCIL,2033438428,"46,326"
Department for Work and Pensions ,Employment Programmes,23/12/2014,ESF 2011-13 SUPPORT FOR FAMILIES WITH MULTIPLE PROBLEMS JSA CUSTOMERS THIRD PROGRESS MEASURE PAYMENT,CPA11 WEST MIDLANDS EOS WORKS LTD FORMERLY FOURSTAR,AVANTA ENTERPRISE LTD,2033461226,"46,246"
Department for Work and Pensions ,Housing Benefits,12/12/2014,HOUSING BENEFIT ADMINISTRATION,HB ENGLAND,HYNDBURN BOROUGH COUNCIL,2033438174,"46,130"
Department for Work and Pensions ,Child Maintenance and Enforcement Commission,23/12/2014,AMS MANDAYS,FS PHASE 2 - HPES COSTS,HP ENTERPRISE SERVICES UK LTD,1000225895,"46,127"
Department for Work and Pensions ,Employment Programmes,30/12/2014,WP JSA 25+ SUSTAINMENT OUTCOME PAYMENT,WWEG EP EAST OF ENGLAND SEETEC,SEETEC BUSINESS TECHNOLOGY CENTRE LTD,2033471677,"46,010"
Department for Work and Pensions ,Employment Programmes,30/12/2014,WP JSA 25+ SUSTAINMENT OUTCOME PAYMENT,WWEG EP WEST YORKSHIRE INGEUS UK,INGEUS UK LTD,2033473043,"46,010"
Department for Work and Pensions ,Corporate,16/12/2014,AMS STAT MANDAYS,CIO ITLR AMS,HP ENTERPRISE SERVICES UK LTD,2033445556,"45,994"
Department for Work and Pensions ,Corporate,24/12/2014,OUTCOME FEE,STR EMPLOYMENT PROGRAMMES - REMPLOY,REMPLOY LIMITED,1006888,"45,900"
Department for Work and Pensions ,Corporate,15/12/2014,TREDDS APPS DEV MANDAYS,CHG PIP ORG DESIGN & REASSESSMENT,HP ENTERPRISE SERVICES UK LTD,2033445445,"45,744"
Department for Work and Pensions ,Housing Benefits,12/12/2014,HOUSING BENEFIT ADMINISTRATION,HB ENGLAND,HARLOW DISTRICT COUNCIL,2033438358,"45,706"
Department for Work and Pensions ,Housing Benefits,12/12/2014,HOUSING BENEFIT ADMINISTRATION,HB ENGLAND,NEWCASTLE UNDER LYME BOROUGH COUNCIL,2033438474,"45,611"
Department for Work and Pensions ,Housing Benefits,12/12/2014,HOUSING BENEFIT ADMINISTRATION,HB WALES,VALE OF GLAMORGAN COUNCIL,2033438447,"45,095"
Department for Work and Pensions ,Corporate,11/12/2014,FSF - PARTNERSHIP GRANTS - TO HELP JSA CLIENTS INTO WORK,OPS WDC WSD SC DUNDEE WELLGATE JOBCENTRE PLUS,DUNDEE CITY COUNCIL,2033437067,"45,000"
Department for Work and Pensions ,Corporate,17/12/2014,NON-TREDDS IS IT SERVICES (HOSTING),CHG D-CIRC NATIONAL CYBER SECURITY PROGRAMME,DELL SECUREWORKS,2033448553,"45,000"
Department for Work and Pensions ,Corporate,15/12/2014,NETWORK SERVICES,CIO ITLR NETWORK,BT GLOBAL SERVICES,2033445219,"44,968"
Department for Work and Pensions ,Corporate,22/12/2014,PUBLICITY ADVERTISING MEDIA,CHG FRAUD & ERROR STRATEGY,M4C,2033458504,"44,737"
Department for Work and Pensions ,Housing Benefits,12/12/2014,HOUSING BENEFIT ADMINISTRATION,HB WALES,PEMBROKESHIRE COUNTY COUNCIL,2033438186,"44,736"
Department for Work and Pensions ,Housing Benefits,12/12/2014,HOUSING BENEFIT ADMINISTRATION,HB ENGLAND,BASSETLAW DISTRICT COUNCIL,2033438156,"44,729"
Department for Work and Pensions ,Housing Benefits,12/12/2014,HOUSING BENEFIT ADMINISTRATION,HB SCOTLAND,ANGUS COUNCIL,2033438304,"44,727"
Department for Work and Pensions ,Corporate,31/12/2014,PRIME UTILITIES,FG CD CMG ESTATES PRIME COSTS,TELEREAL TRILLIUM,2033470375,"44,723"
Department for Work and Pensions ,Corporate,19/12/2014,NON PRIME PROPERTY COSTS,FG CD OPS ESTATES NON-PRIME COSTS,HINCKLEY & BOSWORTH COUNCIL,2033453904,"44,598"
Department for Work and Pensions ,Housing Benefits,12/12/2014,HOUSING BENEFIT ADMINISTRATION,HB WALES,POWYS COUNTY COUNCIL,2033438331,"44,348"
Department for Work and Pensions ,Corporate,10/12/2014,CONTRACTORS & STAFF SUBSTITUTIONS,CIO IT SERVICES SERVICE TRANSITION,CAPITA BUSINESS SERVICES LTD,2033434303,"44,223"
Department for Work and Pensions ,Housing Benefits,12/12/2014,HOUSING BENEFIT ADMINISTRATION,HB ENGLAND,AMBER VALLEY BOROUGH COUNCIL,2033438421,"44,206"
Department for Work and Pensions ,Corporate,08/12/2014,POSTAGE,OPS BEN DD SFSB WEMBLEY,ROYAL MAIL GROUP PLC,2033429535,"44,155"
Department for Work and Pensions ,Housing Benefits,12/12/2014,HOUSING BENEFIT ADMINISTRATION,HB ENGLAND,FENLAND DISTRICT COUNCIL,2033438409,"44,102"
Department for Work and Pensions ,Employment Programmes,05/12/2014,WP JSA 25+ SUSTAINMENT OUTCOME PAYMENT,WWEG EP SCOTLAND WORKING LINKS,WORKING LINKS,2033425318,"44,075"
Department for Work and Pensions ,Housing Benefits,12/12/2014,HOUSING BENEFIT ADMINISTRATION,HB ENGLAND,CAMBRIDGE CITY COUNCIL,2033438273,"43,851"
Department for Work and Pensions ,Housing Benefits,12/12/2014,HOUSING BENEFIT ADMINISTRATION,HB ENGLAND,WELWYN HATFIELD DISTRICT COUNCIL,2033438254,"43,795"
Department for Work and Pensions ,Employment Programmes,15/12/2014,RESIDENTIAL TRAINING COSTS,WWEG EP DELIVERY WELFARE TO WORK PRODUCT SUPPORT,RNIB,2033444037,"43,627"
Department for Work and Pensions ,Child Maintenance and Enforcement Commission,18/12/2014,CONTRACTORS & STAFF SUBSTITUTIONS,DATA WAREHOUSE PHASE 1,CAPITA BUSINESS SERVICES LTD,1000225603,"43,482"
Department for Work and Pensions ,Housing Benefits,12/12/2014,HOUSING BENEFIT ADMINISTRATION,HB ENGLAND,SOUTH KESTEVEN DISTRICT COUNCIL,2033438498,"43,446"
Department for Work and Pensions ,Employment Programmes,19/12/2014,WP JSA 25+ SUSTAINMENT OUTCOME PAYMENT,WWEG EP NORTH EAST INGEUS UK,INGEUS UK LTD,2033452830,"43,430"
Department for Work and Pensions ,Housing Benefits,12/12/2014,HOUSING BENEFIT ADMINISTRATION,HB ENGLAND,HARROGATE BOROUGH COUNCIL,2033438465,"43,388"
Department for Work and Pensions ,Housing Benefits,12/12/2014,HOUSING BENEFIT ADMINISTRATION,HB ENGLAND,CITY OF CARLISLE DISTRICT COUNCIL,2033438202,"43,303"
Department for Work and Pensions ,Employment Programmes,30/12/2014,WP JSA 25+ SUSTAINMENT OUTCOME PAYMENT,WWEG EP W MIDLANDS BIRM SOL BC NEWCASTLE COLLEGE GROUP,NEWCASTLE COLLEGE GROUP,2033472876,"43,215"
Department for Work and Pensions ,Corporate,19/12/2014,NON PRIME PROPERTY COSTS,FG CD OPS ESTATES NON-PRIME COSTS,COPELAND BOROUGH COUNCIL,2033453932,"43,175"
Department for Work and Pensions ,Housing Benefits,12/12/2014,HOUSING BENEFIT ADMINISTRATION,HB ENGLAND,WATFORD BOROUGH COUNCIL,2033438301,"43,123"
Department for Work and Pensions ,Corporate,31/12/2014,PRIME FACILITY PRICE,FG CD TOMLINSON HOUSE,TELEREAL TRILLIUM,2033470373,"43,051"
Department for Work and Pensions ,Housing Benefits,12/12/2014,HOUSING BENEFIT ADMINISTRATION,HB ENGLAND,ASHFORD BOROUGH COUNCIL,2033438228,"43,035"
Department for Work and Pensions ,Housing Benefits,12/12/2014,HOUSING BENEFIT ADMINISTRATION,HB ENGLAND,WORCESTER CITY COUNCIL,2033438520,"42,859"
Department for Work and Pensions ,Employment Programmes,12/12/2014,WP JSA 25+ SUSTAINMENT OUTCOME PAYMENT,WWEG EP WEST YORKSHIRE INGEUS UK,INGEUS UK LTD,2033440056,"42,785"
Department for Work and Pensions ,Housing Benefits,12/12/2014,HOUSING BENEFIT ADMINISTRATION,HB ENGLAND,EREWASH BOROUGH COUNCIL,2033438178,"42,769"
Department for Work and Pensions ,Corporate,15/12/2014,TREDDS APPS DEV MANDAYS,CHG VIRTUAL MACHINE ENVIRONMENT REPLACEMENT,HP ENTERPRISE SERVICES UK LTD,2033445445,"42,758"
Department for Work and Pensions ,Housing Benefits,12/12/2014,HOUSING BENEFIT ADMINISTRATION,HB ENGLAND,CHELTENHAM BOROUGH COUNCIL,2033438372,"42,742"
Department for Work and Pensions ,Corporate,09/12/2014,CONNECTIVITY,CIO ITLR PSN CONNECTIVITY,BT GLOBAL SERVICES,2033432486,"42,706"
Department for Work and Pensions ,Housing Benefits,12/12/2014,HOUSING BENEFIT ADMINISTRATION,HB ENGLAND,REIGATE & BANSTEAD BOROUGH COUNCIL,2033438369,"42,675"
Department for Work and Pensions ,Housing Benefits,12/12/2014,HOUSING BENEFIT ADMINISTRATION,HB ENGLAND,TAUNTON DEANE BOROUGH COUNCIL,2033438490,"42,668"
Department for Work and Pensions ,Employment Programmes,01/12/2014,WP JSA 25+ SUSTAINMENT OUTCOME PAYMENT,WWEG EP EAST OF ENGLAND SEETEC,SEETEC BUSINESS TECHNOLOGY CENTRE LTD,2033414229,"42,570"
Department for Work and Pensions ,Housing Benefits,12/12/2014,HOUSING BENEFIT ADMINISTRATION,HB ENGLAND,WORTHING BOROUGH COUNCIL,2033438315,"42,536"
Department for Work and Pensions ,Housing Benefits,12/12/2014,HOUSING BENEFIT ADMINISTRATION,HB WALES,BLAENAU GWENT COUNTY BOROUGH COUNCIL,2033438477,"42,516"
Department for Work and Pensions ,Housing Benefits,12/12/2014,HOUSING BENEFIT ADMINISTRATION,HB ENGLAND,WYRE FOREST DISTRICT COUNCIL,2033438280,"42,407"
Department for Work and Pensions ,Employment Programmes,04/12/2014,WP JSA 25+ SUSTAINMENT OUTCOME PAYMENT,WWEG EP NORTH WEST GM CHES AND WARR AVANTA ENTERPRISE,AVANTA ENTERPRISE,2033421484,"42,355"
Department for Work and Pensions ,Housing Benefits,12/12/2014,HOUSING BENEFIT ADMINISTRATION,HB ENGLAND,GEDLING BOROUGH COUNCIL,2033438154,"42,146"
Department for Work and Pensions ,Employment Programmes,04/12/2014,WP JSA 25+ SUSTAINMENT OUTCOME PAYMENT,WWEG EP SOUTH EAST TV HANTS AND IOW A4E,A4E LTD,2033421645,"42,140"
Department for Work and Pensions ,Employment Programmes,19/12/2014,WP JSA 25+ SUSTAINMENT OUTCOME PAYMENT,WWEG EP WEST YORKSHIRE INGEUS UK,INGEUS UK LTD,2033452830,"42,140"
Department for Work and Pensions ,Employment Programmes,30/12/2014,WP JSA 25+ SUSTAINMENT OUTCOME PAYMENT,WWEG EP WEST LONDON INGEUS UK,INGEUS UK LTD,2033473043,"42,140"
Department for Work and Pensions ,Corporate,05/12/2014,NON-TREDDS IS IT SERVICES (AMS),OPS PEN PS TUO ISIT,ATOS ORIGIN IT SERVICES UK LTD,2033424423,"42,106"
Department for Work and Pensions ,Employment Programmes,08/12/2014,WP JSA 25+ SUSTAINMENT OUTCOME PAYMENT,WWEG EP NORTH EAST AVANTA ENTERPRISE,AVANTA ENTERPRISE,2033431553,"41,925"
Department for Work and Pensions ,Housing Benefits,12/12/2014,HOUSING BENEFIT ADMINISTRATION,HB ENGLAND,MENDIP DISTRICT COUNCIL,2033438508,"41,904"
Department for Work and Pensions ,Housing Benefits,12/12/2014,HOUSING BENEFIT ADMINISTRATION,HB WALES,DENBIGHSHIRE COUNTY COUNCIL,2033438194,"41,869"
Department for Work and Pensions ,Housing Benefits,12/12/2014,HOUSING BENEFIT ADMINISTRATION,HB ENGLAND,GOSPORT BOROUGH COUNCIL,2033438310,"41,724"
Department for Work and Pensions ,Employment Programmes,04/12/2014,WP JSA 25+ SUSTAINMENT OUTCOME PAYMENT,WWEG EP NORTH EAST AVANTA ENTERPRISE,AVANTA ENTERPRISE,2033421484,"41,710"
Department for Work and Pensions ,Housing Benefits,12/12/2014,HOUSING BENEFIT ADMINISTRATION,HB ENGLAND,GRAVESHAM BOROUGH COUNCIL,2033438221,"41,663"
Department for Work and Pensions ,Housing Benefits,12/12/2014,HOUSING BENEFIT ADMINISTRATION,HB ENGLAND,EAST STAFFORDSHIRE DISTRICT COUNCIL,2033438486,"41,595"
Department for Work and Pensions ,Corporate,16/12/2014,COURIER COSTS,FG CD COURIER,TNT UK LTD,2033446642,"41,552"
Department for Work and Pensions ,Child Maintenance and Enforcement Commission,08/12/2014,TREDDS APPS DEV MANDAYS,FS PHASE 2 - HPES COSTS,HP ENTERPRISE SERVICES UK LTD,1000224704,"41,330"
Department for Work and Pensions ,Employment Programmes,05/12/2014,WP JSA 25+ SUSTAINMENT OUTCOME PAYMENT,WWEG EP WEST YORKSHIRE INGEUS UK,INGEUS UK LTD,2033425314,"41,280"
Department for Work and Pensions ,Employment Programmes,23/12/2014,WP JSA 25+ SUSTAINMENT OUTCOME PAYMENT,WWEG EP NORTH EAST AVANTA ENTERPRISE,AVANTA ENTERPRISE,2033459934,"41,280"
Department for Work and Pensions ,Child Maintenance and Enforcement Commission,23/12/2014,TREDDS APPS DEV MANDAYS,MI PROJECT TACTICAL,HP ENTERPRISE SERVICES UK LTD,1000225895,"41,213"
Department for Work and Pensions ,Housing Benefits,12/12/2014,HOUSING BENEFIT ADMINISTRATION,HB ENGLAND,HERTSMERE BOROUGH COUNCIL,2033438257,"41,191"
Department for Work and Pensions ,Housing Benefits,12/12/2014,HOUSING BENEFIT ADMINISTRATION,HB ENGLAND,GUILDFORD BOROUGH COUNCIL,2033438392,"41,190"
Department for Work and Pensions ,Corporate,19/12/2014,CONTRACTORS & STAFF SUBSTITUTIONS,CIO COO IT DIRECTOR,CAPITA BUSINESS SERVICES LTD,2033454186,"41,144"
Department for Work and Pensions ,Corporate,15/12/2014,RECRUITMENT & ASSESSMENT SERVICES AGENCY,HR CSR,HM REVENUE & CUSTOMS,2005093,"41,000"
Department for Work and Pensions ,Housing Benefits,12/12/2014,HOUSING BENEFIT ADMINISTRATION,HB ENGLAND,RUSHMOOR BOROUGH COUNCIL,2033438284,"40,951"
Department for Work and Pensions ,Employment Programmes,11/12/2014,WP JSA 25+ SUSTAINMENT OUTCOME PAYMENT,WWEG EP SOUTH EAST TV HANTS AND IOW A4E,A4E LTD,2033437316,"40,850"
Department for Work and Pensions ,Housing Benefits,12/12/2014,HOUSING BENEFIT ADMINISTRATION,HB ENGLAND,EAST HERTFORDSHIRE DISTRICT COUNCIL,2033438163,"40,808"
Department for Work and Pensions ,Housing Benefits,12/12/2014,HOUSING BENEFIT ADMINISTRATION,HB ENGLAND,EAST DEVON DISTRICT COUNCIL,2033438151,"40,758"
Department for Work and Pensions ,Corporate,02/12/2014,FSF - TRAINING RELATED TRAVEL COSTS - JSA JOBSEEKERS,OPS WDC WSD NE WEST YORKSHIRE DISTRICT OFFICE,WEST YORKSHIRE COMBINED AUTHORITY,2033417601,"40,669"
Department for Work and Pensions ,Employment Programmes,15/12/2014,WP JSA 25+ JOB OUTCOME PAYMENTWP JSA 25+ JOB OUTCOME PAYMENT,WWEG EP EAST OF ENGLAND INGEUS UK,INGEUS UK LTD,2033445254,"40,395"
Department for Work and Pensions ,Housing Benefits,12/12/2014,HOUSING BENEFIT ADMINISTRATION,HB ENGLAND,CANNOCK CHASE DISTRICT COUNCIL,2033438487,"40,276"
Department for Work and Pensions ,Housing Benefits,12/12/2014,HOUSING BENEFIT ADMINISTRATION,HB ENGLAND,NORTH DEVON DISTRICT COUNCIL,2033438149,"40,207"
Department for Work and Pensions ,Employment Programmes,30/12/2014,WP JSA 25+ SUSTAINMENT OUTCOME PAYMENT,WWEG EP WEST LONDON MAXIMUS EMPLOYMENT UK,MAXIMUS EMPLOYMENT UK LTD,2033472771,"40,205"
Department for Work and Pensions ,Housing Benefits,12/12/2014,HOUSING BENEFIT ADMINISTRATION,HB ENGLAND,BRACKNELL FOREST BOROUGH COUNCIL,2033438413,"40,155"
Department for Work and Pensions ,Employment Programmes,19/12/2014,WP JSA 25+ SUSTAINMENT OUTCOME PAYMENT,WWEG EP WEST LONDON INGEUS UK,INGEUS UK LTD,2033452830,"39,990"
Department for Work and Pensions ,Housing Benefits,12/12/2014,HOUSING BENEFIT ADMINISTRATION,HB ENGLAND,WINDSOR & MAIDENHEAD BOROUGH COUNCIL,2033438411,"39,986"
Department for Work and Pensions ,Corporate,08/12/2014,POSTAGE,CHG SCANNING & DIGITAL STORAGE - AGILITY,ROYAL MAIL GROUP PLC,2033429535,"39,975"
Department for Work and Pensions ,Employment Programmes,08/12/2014,WP JSA 25+ SUSTAINMENT OUTCOME PAYMENT,WWEG EP NORTH WEST GM CHES AND WARR AVANTA ENTERPRISE,AVANTA ENTERPRISE,2033431553,"39,775"
Department for Work and Pensions ,Housing Benefits,12/12/2014,HOUSING BENEFIT ADMINISTRATION,HB ENGLAND,STEVENAGE BOROUGH COUNCIL,2033438256,"39,660"
Department for Work and Pensions ,Employment Programmes,05/12/2014,WP JSA 25+ SUSTAINMENT OUTCOME PAYMENT,WWEG EP WEST LONDON MAXIMUS EMPLOYMENT UK,MAXIMUS EMPLOYMENT UK LTD,2033424259,"39,560"
Department for Work and Pensions ,Employment Programmes,01/12/2014,ACCESS TO WORK - PAYMENT FOR SUPPORT WORKERS,WWEG EP LONDON REGION,SOUTH WEST LONDON & ST GEORGES NHS TRUST,2033414007,"39,517"
Department for Work and Pensions ,Housing Benefits,12/12/2014,HOUSING BENEFIT ADMINISTRATION,HB ENGLAND,BROXBOURNE BOROUGH COUNCIL,2033438279,"39,442"
Department for Work and Pensions ,Housing Benefits,12/12/2014,HOUSING BENEFIT ADMINISTRATION,HB ENGLAND,WEST LANCASHIRE DISTRICT COUNCIL,2033438170,"39,375"
Department for Work and Pensions ,Employment Programmes,08/12/2014,WP JSA 25+ SUSTAINMENT OUTCOME PAYMENT,WWEG EP SOUTH EAST SURR SUSSX AND KENT G4S,G4S REGIONAL MANAGEMENT UK & I LTD,2033430889,"39,345"
Department for Work and Pensions ,Employment Programmes,12/12/2014,WP JSA 25+ SUSTAINMENT OUTCOME PAYMENT,WWEG EP NORTH EAST AVANTA ENTERPRISE,AVANTA ENTERPRISE,2033439871,"39,345"
Department for Work and Pensions ,Employment Programmes,12/12/2014,WP JSA 25+ SUSTAINMENT OUTCOME PAYMENT,WWEG EP SOUTH EAST TV HANTS AND IOW MAXIMUS EMPLOYMENT,MAXIMUS EMPLOYMENT UK LTD,2033440414,"39,345"
Department for Work and Pensions ,Corporate,11/12/2014,FSF - SUPPORT CONTRACT MODULES FOR JSA JOBSEEKERS,OPS WDC WSD WL SOUTH EAST WALES DISTRICT OFFICE,A4ENTERPRISE LTD,2033438000,"39,321"
Department for Work and Pensions ,Employment Programmes,12/12/2014,SERVICE FEE,WWEG EP SUPPORT NOTTINGHAM,INGEUS UK LTD,2033440056,"39,214"
Department for Work and Pensions ,Employment Programmes,01/12/2014,WP JSA 25+ SUSTAINMENT OUTCOME PAYMENT,WWEG EP NORTH EAST AVANTA ENTERPRISE,AVANTA ENTERPRISE,2033414076,"39,130"
Department for Work and Pensions ,Employment Programmes,22/12/2014,WP JSA 25+ SUSTAINMENT OUTCOME PAYMENT,WWEG EP SCOTLAND WORKING LINKS,WORKING LINKS,2033459494,"38,915"
Department for Work and Pensions ,Corporate,11/12/2014,PRIME UTILITIES INITIATIVES COSTS,FG CD UTILITIES INITIATIVES COSTS,TRILLIUM PRIME LTD,2033438062,"38,853"
Department for Work and Pensions ,Housing Benefits,12/12/2014,HOUSING BENEFIT ADMINISTRATION,HB ENGLAND,CORBY BOROUGH COUNCIL,2033438420,"38,793"
Department for Work and Pensions ,Employment Programmes,30/12/2014,WP JSA 25+ SUSTAINMENT OUTCOME PAYMENT,WWEG EP NORTH EAST AVANTA ENTERPRISE,AVANTA ENTERPRISE,2033471611,"38,700"
Department for Work and Pensions ,Housing Benefits,12/12/2014,HOUSING BENEFIT ADMINISTRATION,HB SCOTLAND,EAST LOTHIAN DISTRICT COUNCIL,2033438207,"38,616"
Department for Work and Pensions ,Housing Benefits,12/12/2014,HOUSING BENEFIT ADMINISTRATION,HB SCOTLAND,ARGYLL & BUTE COUNCIL,2033438515,"38,521"
Department for Work and Pensions ,Employment Programmes,12/12/2014,WP JSA 25+ SUSTAINMENT OUTCOME PAYMENT,WWEG EP WEST LONDON MAXIMUS EMPLOYMENT UK,MAXIMUS EMPLOYMENT UK LTD,2033440414,"38,485"
Department for Work and Pensions ,Corporate,15/12/2014,AMS FIXED PRICE CONTRACTS,CIO ITLR AMS,HP ENTERPRISE SERVICES UK LTD,2033445445,"38,420"
Department for Work and Pensions ,Child Maintenance and Enforcement Commission,15/12/2014,PROFESSIONAL SERVICES NON VAT RECOVERABLE,FAMILY SUPPORT SERVICES,HOWELLS LLP,1000225316,"38,346"
Department for Work and Pensions ,Corporate,16/12/2014,NON-TREDDS IS IT APPS DEV MANDAY,CHG STATE PENSION REFORM SINGLE TIER,IBM UNITED KINGDOM LTD,2033447252,"38,221"
Department for Work and Pensions ,Employment Programmes,02/12/2014,WP JSA 25+ SUSTAINMENT OUTCOME PAYMENT,WWEG EP EAST LONDON CAREERS DEVELOPMENT GROUP,CAREERS DEVELOPMENT GROUP,2033416973,"38,055"
Department for Work and Pensions ,Employment Programmes,18/12/2014,WP JSA 25+ SUSTAINMENT OUTCOME PAYMENT,WWEG EP SOUTH EAST TV HANTS AND IOW A4E,A4E LTD,2033452301,"38,055"
Department for Work and Pensions ,Corporate,18/12/2014,PROFESSIONAL ADVICE & OPINION VAT RECOVERABLE,STR INTERNATIONAL,FOREIGN & COMMONWEALTH OFFICE,2005106,"37,995"
Department for Work and Pensions ,Housing Benefits,12/12/2014,HOUSING BENEFIT ADMINISTRATION,HB ENGLAND,CHICHESTER DISTRICT COUNCIL,2033438318,"37,962"
Department for Work and Pensions ,Corporate,01/12/2014,CONTRACTORS & STAFF SUBSTITUTIONS,CIO COO IT DIRECTOR,CAPITA BUSINESS SERVICES LTD,2033414704,"37,932"
Department for Work and Pensions ,Employment Programmes,30/12/2014,ESF 2011-13 SUPPORT FOR FAMILIES WITH MULTIPLE PROBLEMS JSA CUSTOMERS PROGRESS MEASURE - INITIAL 25% PAYMENT,CPA8 SOUTH EAST SKILLS TRAINING UK,SKILLS TRAINING UK LIMITED,2033471223,"37,915"
Department for Work and Pensions ,Housing Benefits,12/12/2014,HOUSING BENEFIT ADMINISTRATION,HB ENGLAND,NORTH NORFOLK DISTRICT COUNCIL,2033438483,"37,909"
Department for Work and Pensions ,Employment Programmes,08/12/2014,WP JSA 25+ SUSTAINMENT OUTCOME PAYMENT,WWEG EP EAST LONDON CAREERS DEVELOPMENT GROUP,CAREERS DEVELOPMENT GROUP,2033429405,"37,840"
Department for Work and Pensions ,Housing Benefits,12/12/2014,HOUSING BENEFIT ADMINISTRATION,HB ENGLAND,STAFFORD BOROUGH COUNCIL,2033438397,"37,652"
Department for Work and Pensions ,Housing Benefits,12/12/2014,HOUSING BENEFIT ADMINISTRATION,HB ENGLAND,TONBRIDGE & MALLING DISTRICT COUNCIL,2033438198,"37,522"
Department for Work and Pensions ,Employment Programmes,15/12/2014,RESIDENTIAL TRAINING COSTS,WWEG EP DELIVERY WELFARE TO WORK PRODUCT SUPPORT,DONCASTER DEAF TRUST,2033443756,"37,495"
Department for Work and Pensions ,Housing Benefits,12/12/2014,HOUSING BENEFIT ADMINISTRATION,HB ENGLAND,EPPING FOREST DISTRICT COUNCIL,2033438359,"37,442"
Department for Work and Pensions ,Housing Benefits,12/12/2014,HOUSING BENEFIT ADMINISTRATION,HB ENGLAND,ALLERDALE DISTRICT COUNCIL,2033438261,"37,405"
Department for Work and Pensions ,Corporate,16/12/2014,NON-TREDDS IS IT APPS DEV MANDAY,CIO INFRASTRUCTURE & SERVICE REMEDIATION,IBM UNITED KINGDOM LTD,2033447252,"37,285"
Department for Work and Pensions ,Corporate,19/12/2014,NON PRIME PROPERTY COSTS,FG CD OPS ESTATES NON-PRIME COSTS,HM REVENUE & CUSTOMS,2033454157,"37,255"
Department for Work and Pensions ,Child Maintenance and Enforcement Commission,24/12/2014,OVERTIME,DEBT ENF AREA MANAGEMENT OFFICE,DSD GROUP ACCOUNT,1001921,"37,113"
Department for Work and Pensions ,Corporate,19/12/2014,CONTRACTORS & STAFF SUBSTITUTIONS,CHG STATE PENSION REFORM SINGLE TIER,CAPITA BUSINESS SERVICES LTD,2033454186,"37,098"
Department for Work and Pensions ,Housing Benefits,12/12/2014,HOUSING BENEFIT ADMINISTRATION,HB ENGLAND,WARWICK DISTRICT COUNCIL,2033438396,"37,091"
Department for Work and Pensions ,Employment Programmes,03/12/2014,WP JSA 25+ SUSTAINMENT OUTCOME PAYMENT,WWEG EP WALES WORKING LINKS WALES,WORKING LINKS,2033419033,"36,980"
Department for Work and Pensions ,Employment Programmes,10/12/2014,WP JSA 25+ SUSTAINMENT OUTCOME PAYMENT,WWEG EP EAST LONDON CAREERS DEVELOPMENT GROUP,CAREERS DEVELOPMENT GROUP,2033434728,"36,980"
Department for Work and Pensions ,Housing Benefits,12/12/2014,HOUSING BENEFIT ADMINISTRATION,HB ENGLAND,NEWARK DISTRICT COUNCIL,2033438153,"36,814"
Department for Work and Pensions ,Corporate,04/12/2014,FSF - TRAINING PAYMENTS TO PROVIDERS - JSA JOBSEEKERS,OPS WDC WSD WL SOUTH EAST WALES DISTRICT OFFICE,WORKING LINKS,2033421376,"36,773"
Department for Work and Pensions ,Housing Benefits,12/12/2014,HOUSING BENEFIT ADMINISTRATION,HB ENGLAND,TUNBRIDGE WELLS BOROUGH COUNCIL,2033438197,"36,741"
Department for Work and Pensions ,Corporate,16/12/2014,CIVIL SERVICE OCCUPATIONAL HEALTH SERVICE,HR OHS,ATOS ORIGIN IT SERVICES UK LTD,2033446338,"36,660"
Department for Work and Pensions ,Housing Benefits,12/12/2014,HOUSING BENEFIT ADMINISTRATION,HB ENGLAND,WEALDEN DISTRICT COUNCIL,2033438363,"36,583"
Department for Work and Pensions ,Employment Programmes,15/12/2014,WP JSA 25+ SUSTAINMENT OUTCOME PAYMENT,WWEG EP NORTH WEST GM CHES AND WARR AVANTA ENTERPRISE,AVANTA ENTERPRISE,2033444200,"36,550"
Department for Work and Pensions ,Corporate,24/12/2014,HOSTING GMS SERVICES,OPS OPE C&I IT WINTER FUEL,HP ENTERPRISE SERVICES UK LTD,2033463142,"36,516"
Department for Work and Pensions ,Employment Programmes,23/12/2014,WP JSA 25+ SUSTAINMENT OUTCOME PAYMENT,WWEG EP WEST LONDON MAXIMUS EMPLOYMENT UK,MAXIMUS EMPLOYMENT UK LTD,2033459837,"36,335"
Department for Work and Pensions ,Corporate,24/12/2014,IT Owned Additions Cost,CHG UC DESIGN & BUILD PROGRAMME MANAGER,SPECIALIST COMPUTER CENTRES PLC,2033463494,"36,137"
Department for Work and Pensions ,Employment Programmes,30/12/2014,WP JSA 25+ SUSTAINMENT OUTCOME PAYMENT,WWEG EP EAST LONDON SEETEC,SEETEC BUSINESS TECHNOLOGY CENTRE LTD,2033471677,"36,120"
Department for Work and Pensions ,Employment Programmes,30/12/2014,WP JSA 25+ SUSTAINMENT OUTCOME PAYMENT,WWEG EP SOUTH EAST TV HANTS AND IOW MAXIMUS EMPLOYMENT,MAXIMUS EMPLOYMENT UK LTD,2033472771,"36,120"
Department for Work and Pensions ,Housing Benefits,12/12/2014,HOUSING BENEFIT ADMINISTRATION,HB ENGLAND,SOUTH NORFOLK DISTRICT COUNCIL,2033438290,"36,054"
Department for Work and Pensions ,Housing Benefits,12/12/2014,HOUSING BENEFIT ADMINISTRATION,HB ENGLAND,EASTLEIGH BOROUGH COUNCIL,2033438312,"36,037"
Department for Work and Pensions ,Housing Benefits,12/12/2014,HOUSING BENEFIT ADMINISTRATION,HB SCOTLAND,MIDLOTHIAN COUNCIL,2033438438,"36,018"
Department for Work and Pensions ,Housing Benefits,12/12/2014,HOUSING BENEFIT ADMINISTRATION,HB ENGLAND,ELMBRIDGE BOROUGH COUNCIL,2033438454,"35,969"
Department for Work and Pensions ,Employment Programmes,08/12/2014,WP JSA 25+ SUSTAINMENT OUTCOME PAYMENT,WWEG EP EAST LONDON SEETEC,SEETEC BUSINESS TECHNOLOGY CENTRE LTD,2033431423,"35,905"
Department for Work and Pensions ,Employment Programmes,29/12/2014,WP JSA 25+ SUSTAINMENT OUTCOME PAYMENT,WWEG EP SOUTH EAST TV HANTS AND IOW A4E,A4E LTD,2033466298,"35,905"
Department for Work and Pensions ,Housing Benefits,12/12/2014,HOUSING BENEFIT ADMINISTRATION,HB ENGLAND,CHORLEY BOROUGH COUNCIL,2033438175,"35,869"
Department for Work and Pensions ,Corporate,15/12/2014,TREDDS IS IT CONSULTANCY (HOSTING) NON ADVICE,CHG VME WFES-R,HP ENTERPRISE SERVICES UK LTD,2033445445,"35,775"
Department for Work and Pensions ,Housing Benefits,12/12/2014,HOUSING BENEFIT ADMINISTRATION,HB ENGLAND,TEST VALLEY BOROUGH COUNCIL,2033438169,"35,769"
Department for Work and Pensions ,Employment Programmes,23/12/2014,ESF 2011-13 SUPPORT FOR FAMILIES WITH MULTIPLE PROBLEMS ESA/NON CLAIMANTS CUSTOMERS PROGRESS MEASURE - INITIAL 25% PAYMENT,CPA12 YORKS AND HUMBER EOS WORKS LTD FORMERLY FOURSTAR,AVANTA ENTERPRISE LTD,2033461226,"35,760"
Department for Work and Pensions ,Employment Programmes,01/12/2014,WP JSA 25+ SUSTAINMENT OUTCOME PAYMENT,WWEG EP EAST LONDON CAREERS DEVELOPMENT GROUP,CAREERS DEVELOPMENT GROUP,2033414237,"35,690"
Department for Work and Pensions ,Employment Programmes,05/12/2014,WP JSA 25+ SUSTAINMENT OUTCOME PAYMENT,WWEG EP WEST LONDON INGEUS UK,INGEUS UK LTD,2033425314,"35,690"
Department for Work and Pensions ,Employment Programmes,09/12/2014,WP JSA 25+ SUSTAINMENT OUTCOME PAYMENT,WWEG EP SOUTH EAST SURR SUSSX AND KENT AVANTA ENTERPRISE,AVANTA ENTERPRISE,2033433323,"35,690"
Department for Work and Pensions ,Employment Programmes,19/12/2014,WP JSA 25+ SUSTAINMENT OUTCOME PAYMENT,WWEG EP WEST YORKSHIRE BEST LTD,INTERSERVE WORKING FUTURES,2033453386,"35,690"
Department for Work and Pensions ,Employment Programmes,19/12/2014,WP JSA 25+ SUSTAINMENT OUTCOME PAYMENT,WWEG EP EAST LONDON CAREERS DEVELOPMENT GROUP,CAREERS DEVELOPMENT GROUP,2033453392,"35,690"
Department for Work and Pensions ,Employment Programmes,22/12/2014,INNOVATION FUND,WWEG EP NATIONAL,INDIGO PROJECT SOLUTIONS LTD,2033459624,"35,610"
Department for Work and Pensions ,Housing Benefits,12/12/2014,HOUSING BENEFIT ADMINISTRATION,HB ENGLAND,ST EDMUNDSBURY BOROUGH COUNCIL,2033438381,"35,585"
Department for Work and Pensions ,Housing Benefits,12/12/2014,HOUSING BENEFIT ADMINISTRATION,HB ENGLAND,KETTERING BOROUGH COUNCIL,2033438469,"35,504"
Department for Work and Pensions ,Housing Benefits,12/12/2014,HOUSING BENEFIT ADMINISTRATION,HB ENGLAND,RUGBY BOROUGH COUNCIL,2033438344,"35,340"
Department for Work and Pensions ,Employment Programmes,05/12/2014,WP JSA 25+ SUSTAINMENT OUTCOME PAYMENT,WWEG EP NORTH WEST GM CHES AND WARR SEETEC,SEETEC BUSINESS TECHNOLOGY CENTRE LTD,2033424557,"35,045"
Department for Work and Pensions ,Employment Programmes,12/12/2014,WP JSA 25+ SUSTAINMENT OUTCOME PAYMENT,WWEG EP NORTH WEST GM CHES AND WARR SEETEC,SEETEC BUSINESS TECHNOLOGY CENTRE LTD,2033439763,"35,045"
Department for Work and Pensions ,Employment Programmes,16/12/2014,WP JSA 25+ SUSTAINMENT OUTCOME PAYMENT,WWEG EP SCOTLAND WORKING LINKS,WORKING LINKS,2033446216,"35,045"
Department for Work and Pensions ,Housing Benefits,12/12/2014,HOUSING BENEFIT ADMINISTRATION,HB ENGLAND,WYCHAVON DISTRICT COUNCIL,2033438383,"34,923"
Department for Work and Pensions ,Housing Benefits,12/12/2014,HOUSING BENEFIT ADMINISTRATION,HB ENGLAND,SUFFOLK COASTAL DISTRICT COUNCIL,2033438455,"34,564"
Department for Work and Pensions ,Housing Benefits,12/12/2014,HOUSING BENEFIT ADMINISTRATION,HB ENGLAND,STRATFORD ON AVON DISTRICT COUNCIL,2033438343,"34,510"
Department for Work and Pensions ,Corporate,24/12/2014,NETWORK SERVICES,CHG UC DESIGN & BUILD PROGRAMME MANAGER,BT GLOBAL SERVICES,2033463450,"34,483"
Department for Work and Pensions ,Housing Benefits,12/12/2014,HOUSING BENEFIT ADMINISTRATION,HB ENGLAND,WEYMOUTH & PORTLAND BOROUGH COUNCIL,2033438387,"34,451"
Department for Work and Pensions ,Employment Programmes,05/12/2014,WP JSA 25+ SUSTAINMENT OUTCOME PAYMENT,WWEG EP EAST LONDON SEETEC,SEETEC BUSINESS TECHNOLOGY CENTRE LTD,2033424557,"34,400"
Department for Work and Pensions ,Employment Programmes,10/12/2014,WP JSA 25+ SUSTAINMENT OUTCOME PAYMENT,WWEG EP SOUTH EAST SURR SUSSX AND KENT G4S,G4S REGIONAL MANAGEMENT UK & I LTD,2033436357,"34,400"
Department for Work and Pensions ,Employment Programmes,12/12/2014,WP JSA 25+ SUSTAINMENT OUTCOME PAYMENT,WWEG EP WEST YORKSHIRE BEST LTD,INTERSERVE WORKING FUTURES,2033439759,"34,400"
Department for Work and Pensions ,Corporate,12/12/2014,NEW ENTERPRISE ALLOWANCE MENTOR MATCHING,OPS WDC WSD SE GREATER WESSEX DISTRICT OFFICE,OUTSET CIC,2033440232,"34,358"
Department for Work and Pensions ,Housing Benefits,12/12/2014,HOUSING BENEFIT ADMINISTRATION,HB ENGLAND,WEST LINDSEY DISTRICT COUNCIL,2033438497,"34,331"
Department for Work and Pensions ,Corporate,24/12/2014,FSF - PARTNERSHIP GRANTS - TO HELP JSA CLIENTS INTO WORK,OPS WDC WSD LN BEDS AND HERTS DISTRICT OFFICE,STEVENAGE BOROUGH COUNCIL,2033463777,"34,300"
Department for Work and Pensions ,Housing Benefits,12/12/2014,HOUSING BENEFIT ADMINISTRATION,HB ENGLAND,ROTHER DISTRICT COUNCIL,2033438364,"34,268"
Department for Work and Pensions ,Child Maintenance and Enforcement Commission,08/12/2014,POSTAGE,CS CENTRALLY HELD BUDGETS FACILITIES CONTRACTS,ROYAL MAIL GROUP PLC,1000224703,"34,231"
Department for Work and Pensions ,Employment Programmes,05/12/2014,WP JSA 25+ SUSTAINMENT OUTCOME PAYMENT,WWEG EP SOUTH EAST TV HANTS AND IOW MAXIMUS EMPLOYMENT,MAXIMUS EMPLOYMENT UK LTD,2033424259,"34,185"
Department for Work and Pensions ,Employment Programmes,18/12/2014,WP JSA 25+ SUSTAINMENT OUTCOME PAYMENT,WWEG EP SOUTH EAST SURR SUSSX AND KENT G4S,G4S REGIONAL MANAGEMENT UK & I LTD,2033451040,"34,185"
Department for Work and Pensions ,Employment Programmes,23/12/2014,WP JSA 25+ SUSTAINMENT OUTCOME PAYMENT,WWEG EP EAST LONDON SEETEC,SEETEC BUSINESS TECHNOLOGY CENTRE LTD,2033461147,"34,185"
Department for Work and Pensions ,Housing Benefits,12/12/2014,HOUSING BENEFIT ADMINISTRATION,HB ENGLAND,BOROUGH OF WELLINGBOROUGH,2033438467,"34,179"
Department for Work and Pensions ,Corporate,23/12/2014,FSF - SUPPORT CONTRACT MODULES FOR JSA JOBSEEKERS,OPS WDC WSD WL NORTH AND MID WALES DISTRICT OFFICE,A4E LTD,2033462408,"34,120"
Department for Work and Pensions ,Corporate,24/12/2014,FSF - SUPPORT CONTRACT MODULES FOR JSA JOBSEEKERS,OPS WDC WSD NW GREATER MANCHESTER E AND W DO,STANDGUIDE LTD,2033463795,"34,084"
Department for Work and Pensions ,Corporate,08/12/2014,MEDICAL SERVICES FIXED COSTS,FG HS MEDICAL SERVICES CONTRACT EXIT COSTS,ATOS HEALTHCARE,2033429914,"34,028"
Department for Work and Pensions ,Housing Benefits,12/12/2014,HOUSING BENEFIT ADMINISTRATION,HB ENGLAND,HIGH PEAK BOROUGH COUNCIL,2033438177,"33,855"
Department for Work and Pensions ,Corporate,12/12/2014,MEDICAL SERVICES FIXED COSTS,CHG PIP ORG DESIGN & REASSESSMENT,CAPITA BUSINESS SERVICES LTD,2033439720,"33,789"
Department for Work and Pensions ,Housing Benefits,12/12/2014,HOUSING BENEFIT ADMINISTRATION,HB ENGLAND,LEWES DISTRICT COUNCIL,2033438321,"33,774"
Department for Work and Pensions ,Corporate,17/12/2014,PUBLICITY RES'H/EVAL,CHG STATE PENSION REFORM SINGLE TIER,MARKET & OPINION RESEARCH INTERNATIONAL T/A IPSOS MORI,2033448947,"33,625"
Department for Work and Pensions ,Housing Benefits,12/12/2014,HOUSING BENEFIT ADMINISTRATION,HB ENGLAND,DARTFORD BOROUGH COUNCIL,2033438291,"33,617"
Department for Work and Pensions ,Corporate,16/12/2014,RECRUITMENT & ASSESSMENT SERVICES AGENCY,HR DWP GENERAL FAST STREAM,HM REVENUE & CUSTOMS,2005104,"33,600"
Department for Work and Pensions ,Housing Benefits,12/12/2014,HOUSING BENEFIT ADMINISTRATION,HB ENGLAND,BROXTOWE BOROUGH COUNCIL,2033438155,"33,592"
Department for Work and Pensions ,Employment Programmes,04/12/2014,WP JSA 25+ SUSTAINMENT OUTCOME PAYMENT,WWEG EP SCOTLAND WORKING LINKS,WORKING LINKS,2033421472,"33,540"
Department for Work and Pensions ,Child Maintenance and Enforcement Commission,15/12/2014,PROFESSIONAL SERVICES NON VAT RECOVERABLE,FAMILY SUPPORT SERVICES,RESOLUTION,1000225310,"33,457"
Department for Work and Pensions ,Housing Benefits,12/12/2014,HOUSING BENEFIT ADMINISTRATION,HB ENGLAND,SOUTH RIBBLE BOROUGH COUNCIL C,2033438171,"33,436"
Department for Work and Pensions ,Corporate,19/12/2014,CONTRACTORS & STAFF SUBSTITUTIONS,F&C OPS FIN FBP WORK AND CSS,CAPITA BUSINESS SERVICES LTD,2033454186,"33,372"
Department for Work and Pensions ,Employment Programmes,01/12/2014,WP JSA 25+ SUSTAINMENT OUTCOME PAYMENT,WWEG EP EAST LONDON SEETEC,SEETEC BUSINESS TECHNOLOGY CENTRE LTD,2033414229,"33,325"
Department for Work and Pensions ,Housing Benefits,12/12/2014,HOUSING BENEFIT ADMINISTRATION,HB ENGLAND,BOROUGH OF REDDITCH,2033438281,"33,223"
Department for Work and Pensions ,Housing Benefits,12/12/2014,HOUSING BENEFIT ADMINISTRATION,HB ENGLAND,ST ALBANS DISTRICT COUNCIL,2033438335,"33,133"
Department for Work and Pensions ,Child Maintenance and Enforcement Commission,15/12/2014,DWP COURT FEES & RELATED EXPENSES,EXTERNAL CONTRACTS HARPER MACLEOD,HARPER MACLEOD LLP,1000225253,"33,115"
Department for Work and Pensions ,Employment Programmes,30/12/2014,WP JSA 25+ SUSTAINMENT OUTCOME PAYMENT,WWEG EP W MIDLANDS BIRM SOL BC PERTEMPS,PERTEMPS,2033472114,"33,110"
Department for Work and Pensions ,European Social Fund,11/12/2014,MA ESF(D) PROGRAMME EXPENDITURE EC PREFUNDED L A's,WWEG EUROPEAN SOCIAL FUND PROGRAMME 2007-2013,GREATER LONDON AUTHORITY,5000001761,"33,060"
Department for Work and Pensions ,Employment Programmes,23/12/2014,ESF 2011-13 SUPPORT FOR FAMILIES WITH MULTIPLE PROBLEMS ESA/NON CLAIMANTS CUSTOMERS SECOND PROGRESS MEASURE PAYMENT,CPA11 WEST MIDLANDS EOS WORKS LTD FORMERLY FOURSTAR,AVANTA ENTERPRISE LTD,2033461226,"33,033"
Department for Work and Pensions ,Housing Benefits,12/12/2014,HOUSING BENEFIT ADMINISTRATION,HB ENGLAND,WEST DORSET DISTRICT COUNCIL,2033438388,"33,011"
Department for Work and Pensions ,Housing Benefits,12/12/2014,HOUSING BENEFIT ADMINISTRATION,HB ENGLAND,MID SUSSEX DISTRICT COUNCIL,2033438222,"33,004"
Department for Work and Pensions ,Employment Programmes,16/12/2014,WP JSA 25+ SUSTAINMENT OUTCOME PAYMENT,WWEG EP NORTH WEST GM CHES AND WARR G4S,G4S REGIONAL MANAGEMENT UK & I LTD,2033445980,"32,895"
Department for Work and Pensions ,Housing Benefits,12/12/2014,HOUSING BENEFIT ADMINISTRATION,HB ENGLAND,VALE OF WHITE HORSE DISTRICT COUNCIL,2033438511,"32,776"
Department for Work and Pensions ,Employment Programmes,15/12/2014,RESIDENTIAL TRAINING COSTS,WWEG EP DELIVERY WELFARE TO WORK PRODUCT SUPPORT,QUEEN ALEXANDRA COLLEGE,2033444517,"32,721"
Department for Work and Pensions ,Housing Benefits,12/12/2014,HOUSING BENEFIT ADMINISTRATION,HB ENGLAND,SOUTH OXFORDSHIRE DISTRICT COUNCIL,2033438512,"32,598"
Department for Work and Pensions ,Housing Benefits,12/12/2014,HOUSING BENEFIT ADMINISTRATION,HB ENGLAND,SEVENOAKS DISTRICT COUNCIL,2033438200,"32,570"
Department for Work and Pensions ,Employment Programmes,23/12/2014,ESF 2011-13 SUPPORT FOR FAMILIES WITH MULTIPLE PROBLEMS ESA/NON CLAIMANTS CUSTOMERS FIRST PROGRESS MEASURE PAYMENT,CPA11 WEST MIDLANDS EOS WORKS LTD FORMERLY FOURSTAR,AVANTA ENTERPRISE LTD,2033461226,"32,504"
Department for Work and Pensions ,Corporate,29/12/2014,CONTRACTED OUT ORIGINAL RESEARCH,STR PRIVATE PENS DIRECTOR AND SUPPORT,RS CONSULTING LTD,2033467379,"32,494"
Department for Work and Pensions ,Employment Programmes,01/12/2014,WP JSA 25+ SUSTAINMENT OUTCOME PAYMENT,WWEG EP NORTH WEST GM CHES AND WARR SEETEC,SEETEC BUSINESS TECHNOLOGY CENTRE LTD,2033414229,"32,465"
Department for Work and Pensions ,Employment Programmes,09/12/2014,WP JSA 25+ SUSTAINMENT OUTCOME PAYMENT,WWEG EP EAST OF ENGLAND SEETEC,SEETEC BUSINESS TECHNOLOGY CENTRE LTD,2033432337,"32,465"
Department for Work and Pensions ,Employment Programmes,22/12/2014,WP JSA 25+ SUSTAINMENT OUTCOME PAYMENT,WWEG EP EAST OF ENGLAND SEETEC,SEETEC BUSINESS TECHNOLOGY CENTRE LTD,2033459313,"32,465"
Department for Work and Pensions ,Employment Programmes,08/12/2014,WP JSA 25+ SUSTAINMENT OUTCOME PAYMENT,WWEG EP EAST OF ENGLAND SEETEC,SEETEC BUSINESS TECHNOLOGY CENTRE LTD,2033431423,"32,250"
Department for Work and Pensions ,European Social Fund,05/12/2014,MA ESF(D) PROGRAMME EXPENDITURE EC PREFUNDED L A's,WWEG EUROPEAN SOCIAL FUND PROGRAMME 2007-2013,MELTON BOROUGH COUNCIL,5000001759,"32,110"
Department for Work and Pensions ,Housing Benefits,12/12/2014,HOUSING BENEFIT ADMINISTRATION,HB ENGLAND,HORSHAM DISTRICT COUNCIL,2033438316,"32,091"
Department for Work and Pensions ,Employment Programmes,30/12/2014,WP JSA 25+ SUSTAINMENT OUTCOME PAYMENT,WWEG EP WEST YORKSHIRE BEST LTD,INTERSERVE WORKING FUTURES,2033471687,"31,820"
Department for Work and Pensions ,Corporate,08/12/2014,POSTAGE,FG CD NEWCASTLE ESTATE,ROYAL MAIL GROUP PLC,2033429535,"31,695"
Department for Work and Pensions ,Corporate,16/12/2014,NON-TREDDS IS IT APPS DEV MANDAY,CIO CIS INFRASTRUCTURE,IBM UNITED KINGDOM LTD,2033447252,"31,638"
Department for Work and Pensions ,Child Maintenance and Enforcement Commission,29/12/2014,CONTRACTORS & STAFF SUBSTITUTIONS,DATA WAREHOUSE PHASE 1,CAPITA BUSINESS SERVICES LTD,1000226131,"31,552"
Department for Work and Pensions ,Housing Benefits,12/12/2014,HOUSING BENEFIT ADMINISTRATION,HB WALES,MERTHYR TYDFIL BOROUGH COUNCIL,2033438235,"31,534"
Department for Work and Pensions ,Employment Programmes,23/12/2014,ESF 2011-13 SUPPORT FOR FAMILIES WITH MULTIPLE PROBLEMS ESA/NON CLAIMANTS CUSTOMERS THIRD PROGRESS MEASURE PAYMENT,CPA11 WEST MIDLANDS EOS WORKS LTD FORMERLY FOURSTAR,AVANTA ENTERPRISE LTD,2033461226,"31,447"
Department for Work and Pensions ,Employment Programmes,02/12/2014,WP JSA 25+ SUSTAINMENT OUTCOME PAYMENT,WWEG EP SCOTLAND INGEUS UK,INGEUS UK LTD,2033417276,"31,390"
Department for Work and Pensions ,Housing Benefits,12/12/2014,HOUSING BENEFIT ADMINISTRATION,HB ENGLAND,BOSTON BOROUGH COUNCIL,2033438500,"31,374"
Department for Work and Pensions ,Employment Programmes,05/12/2014,ESF 2011-13 SUPPORT FOR FAMILIES WITH MULTIPLE PROBLEMS JSA CUSTOMERS JOB OUTCOME PAYMENT,CPA10 CORN AND THE IS OF SCIL ONLY PARAGON CONCORD INT,PARAGON CONCORD LTD,2033425770,"31,302"
Department for Work and Pensions ,Employment Programmes,12/12/2014,SERVICE FEE,WWEG EP SUPPORT GLASGOW,REED IN PARTNERSHIP LTD,2033439533,"31,165"
Department for Work and Pensions ,Housing Benefits,12/12/2014,HOUSING BENEFIT ADMINISTRATION,HB ENGLAND,SOUTH CAMBRIDGESHIRE DISTRICT COUNCIL,2033438286,"31,048"
Department for Work and Pensions ,Corporate,23/12/2014,FSF - EQUIPMENT TO START WORK  - JSA JOBSEEKERS,OPS WDC WSD NE WEST YORKSHIRE DISTRICT OFFICE,WEST YORKSHIRE COMBINED AUTHORITY,2033461250,"30,954"
Department for Work and Pensions ,Housing Benefits,12/12/2014,HOUSING BENEFIT ADMINISTRATION,HB ENGLAND,NORTH EAST DERBYSHIRE DISTRICT COUNCIL,2033438176,"30,911"
Department for Work and Pensions ,Housing Benefits,12/12/2014,HOUSING BENEFIT ADMINISTRATION,HB ENGLAND,FOREST OF DEAN DISTRICT COUNCIL,2033438339,"30,901"
Department for Work and Pensions ,Corporate,15/12/2014,PRIME BILLABLE EXTRAS CUSTOMER SERVICE CENTRE (CSC),OPS WDC WSD SC REGION DIRECTORS OFFICE,TELEREAL TRILLIUM LTD,2033444621,"30,901"
Department for Work and Pensions ,Housing Benefits,12/12/2014,HOUSING BENEFIT ADMINISTRATION,HB ENGLAND,BROADLAND DISTRICT COUNCIL,2033438485,"30,878"
Department for Work and Pensions ,Housing Benefits,12/12/2014,HOUSING BENEFIT ADMINISTRATION,HB ENGLAND,STROUD DISTRICT COUNCIL,2033438338,"30,865"
Department for Work and Pensions ,Housing Benefits,12/12/2014,HOUSING BENEFIT ADMINISTRATION,HB ENGLAND,EAST HAMPSHIRE DISTRICT COUNCIL,2033438313,"30,775"
Department for Work and Pensions ,Employment Programmes,19/12/2014,WP JSA 25+ SUSTAINMENT OUTCOME PAYMENT,WWEG EP SOUTH EAST TV HANTS AND IOW MAXIMUS EMPLOYMENT,MAXIMUS EMPLOYMENT UK LTD,2033453787,"30,745"
Department for Work and Pensions ,Employment Programmes,23/12/2014,WP JSA 25+ SUSTAINMENT OUTCOME PAYMENT,WWEG EP SOUTH EAST TV HANTS AND IOW MAXIMUS EMPLOYMENT,MAXIMUS EMPLOYMENT UK LTD,2033459837,"30,745"
Department for Work and Pensions ,Housing Benefits,12/12/2014,HOUSING BENEFIT ADMINISTRATION,HB ENGLAND,BOLSOVER DISTRICT COUNCIL,2033438373,"30,737"
Department for Work and Pensions ,Housing Benefits,12/12/2014,HOUSING BENEFIT ADMINISTRATION,HB SCOTLAND,THE MORAY COUNCIL,2033438217,"30,731"
Department for Work and Pensions ,Corporate,04/12/2014,RAPID RESPONSE - PROVIDER TRAINING,OPS WDC WSD NE EMPLOYER AND PARTNERSHIPS,SENCIA LTD,2033422234,"30,639"
Department for Work and Pensions ,Employment Programmes,23/12/2014,ESF 2011-13 SUPPORT FOR FAMILIES WITH MULTIPLE PROBLEMS ESA/NON CLAIMANTS CUSTOMERS FIRST PROGRESS MEASURE PAYMENT,CPA12 YORKS AND HUMBER EOS WORKS LTD FORMERLY FOURSTAR,AVANTA ENTERPRISE LTD,2033461226,"30,605"
Department for Work and Pensions ,Housing Benefits,12/12/2014,HOUSING BENEFIT ADMINISTRATION,HB ENGLAND,WOKING BOROUGH COUNCIL,2033438365,"30,550"
Department for Work and Pensions ,Corporate,24/12/2014,PRIME UTILITIES INITIATIVES COSTS,FG CD UTILITIES INITIATIVES COSTS,TELEREAL TRILLIUM,2033464406,"30,538"
Department for Work and Pensions ,Employment Programmes,30/12/2014,WP JSA 25+ SUSTAINMENT OUTCOME PAYMENT,WWEG EP SOUTH EAST SURR SUSSX AND KENT AVANTA ENTERPRISE,AVANTA ENTERPRISE,2033471611,"30,530"
Department for Work and Pensions ,Housing Benefits,12/12/2014,HOUSING BENEFIT ADMINISTRATION,HB ENGLAND,SPELTHORNE BOROUGH COUNCIL,2033438367,"30,324"
Department for Work and Pensions ,Employment Programmes,22/12/2014,WP JSA 25+ SUSTAINMENT OUTCOME PAYMENT,WWEG EP W MIDLANDS COV WARW STAFFS AND MARCHES SERCO,SERCO LTD,2033458923,"30,315"
Department for Work and Pensions ,Housing Benefits,12/12/2014,HOUSING BENEFIT ADMINISTRATION,HB ENGLAND,WINCHESTER CITY COUNCIL,2033438283,"30,158"
Department for Work and Pensions ,Corporate,18/12/2014,NEW ENTERPRISE ALLOWANCE MENTOR MATCHING,OPS WDC WSD SE GREATER WESSEX DISTRICT OFFICE,ENTERPRISE FIRST,2033452721,"30,080"
Department for Work and Pensions ,Employment Programmes,05/12/2014,WP JSA 25+ JOB OUTCOME PAYMENTWP JSA 25+ JOB OUTCOME PAYMENT,WWEG EP NORTH WEST MERS HAL CUMB AND LANCS A4E,A4E LTD,2033424051,"30,048"
Department for Work and Pensions ,Housing Benefits,12/12/2014,HOUSING BENEFIT ADMINISTRATION,HB ENGLAND,BARROW BOROUGH COUNCIL,2033438371,"30,037"
Department for Work and Pensions ,Housing Benefits,12/12/2014,HOUSING BENEFIT ADMINISTRATION,HB ENGLAND,WEST OXFORDSHIRE DISTRICT COUNCIL,2033438510,"30,023"
Department for Work and Pensions ,Corporate,03/12/2014,CONTRACTORS & STAFF SUBSTITUTIONS,CHG UC DESIGN & BUILD PROGRAMME MANAGER,ENDAVA UK LTD,2033419121,"30,000"
Department for Work and Pensions ,Corporate,04/12/2014,COST VARIANCE ACCOUNT,OPS WDC DIRECTOR AND SUPPORT OFFICE,OXFORD SAID BUSINESS SCHOOL LTD,2033422183,"30,000"
Department for Work and Pensions ,Housing Benefits,12/12/2014,HOUSING BENEFIT ADMINISTRATION,HB ENGLAND,SOUTH STAFFORDSHIRE DISTRICT COUNCIL,2033438473,"29,991"
Department for Work and Pensions ,Employment Programmes,19/12/2014,WP JSA 25+ SUSTAINMENT OUTCOME PAYMENT,WWEG EP WEST LONDON MAXIMUS EMPLOYMENT UK,MAXIMUS EMPLOYMENT UK LTD,2033453787,"29,885"
Department for Work and Pensions ,Housing Benefits,12/12/2014,HOUSING BENEFIT ADMINISTRATION,HB ENGLAND,WAVERLEY BOROUGH COUNCIL,2033438188,"29,852"
Department for Work and Pensions ,Housing Benefits,12/12/2014,HOUSING BENEFIT ADMINISTRATION,HB ENGLAND,ROSSENDALE BOROUGH COUNCIL,2033438172,"29,702"
Department for Work and Pensions ,Housing Benefits,12/12/2014,HOUSING BENEFIT ADMINISTRATION,HB ENGLAND,SOUTH HOLLAND DISTRICT COUNCIL,2033438398,"29,697"
Department for Work and Pensions ,Employment Programmes,01/12/2014,WP JSA 25+ SUSTAINMENT OUTCOME PAYMENT,WWEG EP NORTH EAST Y AND H G4S,G4S REGIONAL MANAGEMENT UK & I LTD,2033414436,"29,670"
Department for Work and Pensions ,Employment Programmes,09/12/2014,WP JSA 25+ SUSTAINMENT OUTCOME PAYMENT,WWEG EP SOUTH EAST SURR SUSSX AND KENT G4S,G4S REGIONAL MANAGEMENT UK & I LTD,2033434003,"29,670"
Department for Work and Pensions ,Employment Programmes,16/12/2014,WP JSA 25+ SUSTAINMENT OUTCOME PAYMENT,WWEG EP SOUTH EAST SURR SUSSX AND KENT AVANTA ENTERPRISE,AVANTA ENTERPRISE,2033445523,"29,670"
Department for Work and Pensions ,Employment Programmes,22/12/2014,WP JSA 25+ SUSTAINMENT OUTCOME PAYMENT,WWEG EP NORTH WEST GM CHES AND WARR SEETEC,SEETEC BUSINESS TECHNOLOGY CENTRE LTD,2033459313,"29,670"
Department for Work and Pensions ,Employment Programmes,24/12/2014,WP JSA 25+ SUSTAINMENT OUTCOME PAYMENT,WWEG EP EAST LONDON CAREERS DEVELOPMENT GROUP,CAREERS DEVELOPMENT GROUP,2033463133,"29,670"
Department for Work and Pensions ,Corporate,31/12/2014,FSF - PARTNERSHIP GRANTS - TO HELP JSA CLIENTS INTO WORK,OPS WDC WSD LN SOUTH LONDON DISTRICT OFFICE,HIGH TREES COMMUNITY DEVELOPMENT TRUST,2033470357,"29,555"
Department for Work and Pensions ,Corporate,30/12/2014,SOFTWARE LICENCES GREATER THAN ONE YEAR TERM,CHG UC PATHFINDER DELIVERY MANAGEMENT,SPECIALIST COMPUTER CENTRES PLC,2033471546,"29,495"
Department for Work and Pensions ,Employment Programmes,16/12/2014,WP JSA 25+ SUSTAINMENT OUTCOME PAYMENT,WWEG EP NORTH EAST AVANTA ENTERPRISE,AVANTA ENTERPRISE,2033445523,"29,455"
Department for Work and Pensions ,Employment Programmes,05/12/2014,ESF 2011-13 SUPPORT FOR FAMILIES WITH MULTIPLE PROBLEMS JSA CUSTOMERS JOB OUTCOME PAYMENT,CPA8 SOUTH EAST SKILLS TRAINING UK,SKILLS TRAINING UK LIMITED,2033424292,"29,353"
Department for Work and Pensions ,Housing Benefits,12/12/2014,HOUSING BENEFIT ADMINISTRATION,HB ENGLAND,CASTLE POINT DISTRICT COUNCIL,2033438361,"29,264"
Department for Work and Pensions ,Employment Programmes,08/12/2014,WP JSA 25+ SUSTAINMENT OUTCOME PAYMENT,WWEG EP NORTH WEST GM CHES AND WARR G4S,G4S REGIONAL MANAGEMENT UK & I LTD,2033430889,"29,240"
Department for Work and Pensions ,Employment Programmes,09/12/2014,WP JSA 25+ SUSTAINMENT OUTCOME PAYMENT,WWEG EP EAST LONDON CAREERS DEVELOPMENT GROUP,CAREERS DEVELOPMENT GROUP,2033433627,"29,240"
Department for Work and Pensions ,Housing Benefits,12/12/2014,HOUSING BENEFIT ADMINISTRATION,HB ENGLAND,NORTH KESTEVEN DISTRICT COUNCIL,2033438334,"29,116"
Department for Work and Pensions ,Corporate,22/12/2014,RENEWALS OF SOFTWARE SUPPORT AND MAINTENANCE,CIO ITLR SOFTWARE CMG DEL P,ORACLE CORPORATION UK LTD,2033459181,"29,087"
Department for Work and Pensions ,Corporate,16/12/2014,RAPID RESPONSE - PROVIDER TRAINING,OPS WDC WSD NE DURHAM AND TEES VALLEY DISTRICT OFFICE,SENCIA LTD,2033447309,"29,079"
Department for Work and Pensions ,Employment Programmes,12/12/2014,WP JSA 18-24 JOB SUSTAINMENT OUTCOME PAYMENT,WWEG EP EAST OF ENGLAND INGEUS UK,INGEUS UK LTD,2033440056,"29,070"
Department for Work and Pensions ,Corporate,15/12/2014,MEDICAL SERVICES FIXED COSTS,CHG PIP ORG DESIGN & REASSESSMENT,CAPITA PIP ASSESSMENTS,2033444482,"29,026"
Department for Work and Pensions ,Employment Programmes,02/12/2014,WP JSA 25+ SUSTAINMENT OUTCOME PAYMENT,WWEG EP SOUTH EAST SURR SUSSX AND KENT G4S,G4S REGIONAL MANAGEMENT UK & I LTD,2033416896,"29,025"
Department for Work and Pensions ,Employment Programmes,15/12/2014,WP JSA 25+ SUSTAINMENT OUTCOME PAYMENT,WWEG EP NORTH EAST AVANTA ENTERPRISE,AVANTA ENTERPRISE,2033444200,"29,025"
Department for Work and Pensions ,Employment Programmes,24/12/2014,ACCESS TO WORK - ADAPTATION TO PREMISES,WWEG EP WALES COUNTRY,JRJ LOGISTICS LTD,2033462918,"29,012"
Department for Work and Pensions ,Corporate,05/12/2014,CONSULTANTS VAT RECOVERABLE,CHG IT TRANSFORMATION PROG,KPMG,2033425625,"29,000"
Department for Work and Pensions ,Housing Benefits,12/12/2014,HOUSING BENEFIT ADMINISTRATION,HB ENGLAND,HINCKLEY & BOSWORTH BOROUGH COUNCIL,2033438146,"28,906"
Department for Work and Pensions ,Employment Programmes,04/12/2014,WP JSA 25+ SUSTAINMENT OUTCOME PAYMENT,WWEG EP SOUTH YORKSHIRE A4E,A4E LTD,2033421645,"28,810"
Department for Work and Pensions ,Corporate,18/12/2014,ACCOUNTS PAYABLE UNAPPROVED INVOICES,OPS WDC WSD LN EAST LONDON DISTRICT OFFICE,LONDON BOROUGH OF REDBRIDGE,2033452249,"28,800"
Department for Work and Pensions ,Corporate,30/12/2014,VALUATION OFFICE,OPS BEN DD YORKSHIRE BC (QH),VALUATION OFFICE AGENCY,2033471845,"28,740"
Department for Work and Pensions ,Corporate,15/12/2014,APPS DEV INDEX ARR,CHG PIP IT PHASE 3,HP ENTERPRISE SERVICES UK LTD,2033445445,"28,734"
Department for Work and Pensions ,Employment Programmes,04/12/2014,WP JSA 18-24 JOB SUSTAINMENT OUTCOME PAYMENT,WWEG EP NORTH WEST MERS HAL CUMB AND LANCS A4E,A4E LTD,2033421645,"28,730"
Department for Work and Pensions ,Employment Programmes,30/12/2014,WP JSA 18-24 JOB SUSTAINMENT OUTCOME PAYMENT,WWEG EP SCOTLAND INGEUS UK,INGEUS UK LTD,2033473043,"28,730"
Department for Work and Pensions ,Corporate,18/12/2014,RENEWALS OF SOFTWARE SUPPORT AND MAINTENANCE,CHG DIGITAL CAPABILITY,SPECIALIST COMPUTER CENTRES PLC,2033451374,"28,702"
Department for Work and Pensions ,Employment Programmes,05/12/2014,WP JSA 25+ JOB OUTCOME PAYMENTWP JSA 25+ JOB OUTCOME PAYMENT,WWEG EP EAST LONDON A4E,A4E LTD,2033424051,"28,620"
Department for Work and Pensions ,Housing Benefits,12/12/2014,HOUSING BENEFIT ADMINISTRATION,HB ENGLAND,COPELAND BOROUGH COUNCIL,2033438180,"28,613"
Department for Work and Pensions ,Employment Programmes,15/12/2014,WP JSA 25+ SUSTAINMENT OUTCOME PAYMENT,WWEG EP EAST OF ENGLAND SEETEC,SEETEC BUSINESS TECHNOLOGY CENTRE LTD,2033443866,"28,595"
Department for Work and Pensions ,Employment Programmes,23/12/2014,WP JSA 25+ SUSTAINMENT OUTCOME PAYMENT,WWEG EP EAST LONDON CAREERS DEVELOPMENT GROUP,CAREERS DEVELOPMENT GROUP,2033462215,"28,595"
Department for Work and Pensions ,Housing Benefits,12/12/2014,HOUSING BENEFIT ADMINISTRATION,HB SCOTLAND,STIRLING COUNCIL,2033438379,"28,452"
Department for Work and Pensions ,Employment Programmes,12/12/2014,WP JSA 25+ SUSTAINMENT OUTCOME PAYMENT,WWEG EP NORTH WEST GM CHES AND WARR AVANTA ENTERPRISE,AVANTA ENTERPRISE,2033439871,"28,380"
Department for Work and Pensions ,Employment Programmes,04/12/2014,WP JSA NEET SUSTAINMENT OUTCOME PAYMENT,WWEG EP EAST MIDLANDS A4E,A4E LTD,2033421645,"28,250"
Department for Work and Pensions ,Housing Benefits,12/12/2014,HOUSING BENEFIT ADMINISTRATION,HB SCOTLAND,EAST DUNBARTONSHIRE COUNCIL,2033438425,"28,231"
Department for Work and Pensions ,Housing Benefits,12/12/2014,HOUSING BENEFIT ADMINISTRATION,HB ENGLAND,SOUTH HAMS DISTRICT COUNCIL,2033438148,"28,208"
Department for Work and Pensions ,Employment Programmes,15/12/2014,WP JSA 25+ SUSTAINMENT OUTCOME PAYMENT,WWEG EP WEST LONDON REED IN PARTNERSHIP,REED IN PARTNERSHIP LTD,2033445334,"28,165"
Department for Work and Pensions ,Corporate,31/12/2014,PRIME BUSINESS RATES,FG CD SHEFFIELD KINGS COURT,TELEREAL TRILLIUM,2033470374,"28,117"
Department for Work and Pensions ,Employment Programmes,05/12/2014,WP JSA 25+ JOB OUTCOME PAYMENTWP JSA 25+ JOB OUTCOME PAYMENT,WWEG EP SOUTH EAST SURR SUSSX AND KENT G4S,G4S REGIONAL MANAGEMENT UK & I LTD,2033424699,"28,086"
Department for Work and Pensions ,Employment Programmes,02/12/2014,WP JSA 25+ JOB OUTCOME PAYMENTWP JSA 25+ JOB OUTCOME PAYMENT,WWEG EP SCOTLAND WORKING LINKS,WORKING LINKS,2033417330,"28,080"
Department for Work and Pensions ,Employment Programmes,30/12/2014,WP JSA 18-24 JOB SUSTAINMENT OUTCOME PAYMENT,WWEG EP NORTH EAST INGEUS UK,INGEUS UK LTD,2033473043,"28,050"
Department for Work and Pensions ,Housing Benefits,12/12/2014,HOUSING BENEFIT ADMINISTRATION,HB ENGLAND,NORTH WEST LEICESTER DISTRICT COUNCIL,2033438144,"28,023"
Department for Work and Pensions ,Employment Programmes,15/12/2014,WP JSA 25+ SUSTAINMENT OUTCOME PAYMENT,WWEG EP NORTH EAST Y AND H G4S,G4S REGIONAL MANAGEMENT UK & I LTD,2033443737,"27,950"
Department for Work and Pensions ,Housing Benefits,12/12/2014,HOUSING BENEFIT ADMINISTRATION,HB ENGLAND,THREE RIVERS DISTRICT COUNCIL,2033438255,"27,900"
Department for Work and Pensions ,Employment Programmes,19/12/2014,WP JSA 18-24 JOB SUSTAINMENT OUTCOME PAYMENT,WWEG EP NORTH WEST MERS HAL CUMB AND LANCS INGEUS UK,INGEUS UK LTD,2033452830,"27,880"
Department for Work and Pensions ,Employment Programmes,05/12/2014,WP JSA 25+ SUSTAINMENT OUTCOME PAYMENT,WWEG EP WEST YORKSHIRE BEST LTD,INTERSERVE WORKING FUTURES,2033425166,"27,735"
Department for Work and Pensions ,Employment Programmes,09/12/2014,WP JSA 25+ SUSTAINMENT OUTCOME PAYMENT,WWEG EP EAST LONDON SEETEC,SEETEC BUSINESS TECHNOLOGY CENTRE LTD,2033432337,"27,735"
Department for Work and Pensions ,Employment Programmes,19/12/2014,WP JSA 25+ SUSTAINMENT OUTCOME PAYMENT,WWEG EP EAST LONDON A4E,A4E LTD,2033453414,"27,735"
Department for Work and Pensions ,Employment Programmes,24/12/2014,WP JSA 25+ SUSTAINMENT OUTCOME PAYMENT,WWEG EP EAST OF ENGLAND SEETEC,SEETEC BUSINESS TECHNOLOGY CENTRE LTD,2033464057,"27,735"
Department for Work and Pensions ,Employment Programmes,30/12/2014,WP JSA 18-24 JOB SUSTAINMENT OUTCOME PAYMENT,WWEG EP NORTH WEST MERS HAL CUMB AND LANCS INGEUS UK,INGEUS UK LTD,2033473043,"27,710"
Department for Work and Pensions ,Housing Benefits,12/12/2014,HOUSING BENEFIT ADMINISTRATION,HB WALES,ISLE OF ANGLESEY COUNTY COUNCIL,2033438258,"27,613"
Department for Work and Pensions ,Employment Programmes,19/12/2014,WP JSA 25+ SUSTAINMENT OUTCOME PAYMENT,WWEG EP NORTH WEST GM CHES AND WARR AVANTA ENTERPRISE,AVANTA ENTERPRISE,2033454118,"27,520"
Department for Work and Pensions ,Employment Programmes,19/12/2014,WP JSA 25+ SUSTAINMENT OUTCOME PAYMENT,WWEG EP EAST OF ENGLAND SEETEC,SEETEC BUSINESS TECHNOLOGY CENTRE LTD,2033454131,"27,520"
Department for Work and Pensions ,Employment Programmes,29/12/2014,WP JSA NEET SUSTAINMENT OUTCOME PAYMENT,WWEG EP EAST MIDLANDS A4E,A4E LTD,2033466298,"27,500"
Department for Work and Pensions ,Housing Benefits,12/12/2014,HOUSING BENEFIT ADMINISTRATION,HB ENGLAND,LICHFIELD DISTRICT COUNCIL,2033438475,"27,419"
Department for Work and Pensions ,Housing Benefits,12/12/2014,HOUSING BENEFIT ADMINISTRATION,HB WALES,MONMOUTHSHIRE COUNTY  COUNCIL,2033438260,"27,347"
Department for Work and Pensions ,Employment Programmes,30/12/2014,WP JSA 25+ SUSTAINMENT OUTCOME PAYMENT,WWEG EP WALES WORKING LINKS WALES,WORKING LINKS,2033473039,"27,305"
Department for Work and Pensions ,Corporate,08/12/2014,POSTAGE,OPS BEN DD SFSB PERRY BAR,ROYAL MAIL GROUP PLC,2033429535,"27,236"
Department for Work and Pensions ,Employment Programmes,03/12/2014,WP JSA 25+ SUSTAINMENT OUTCOME PAYMENT,WWEG EP SOUTH EAST SURR SUSSX AND KENT G4S,G4S REGIONAL MANAGEMENT UK & I LTD,2033420936,"27,090"
Department for Work and Pensions ,Employment Programmes,05/12/2014,WP JSA 25+ SUSTAINMENT OUTCOME PAYMENT,WWEG EP W MIDLANDS BIRM SOL BC PERTEMPS,PERTEMPS,2033424010,"27,090"
Department for Work and Pensions ,Employment Programmes,15/12/2014,WP JSA 25+ SUSTAINMENT OUTCOME PAYMENT,WWEG EP SOUTH EAST SURR SUSSX AND KENT AVANTA ENTERPRISE,AVANTA ENTERPRISE,2033444200,"27,090"
Department for Work and Pensions ,Employment Programmes,15/12/2014,WP JSA 25+ SUSTAINMENT OUTCOME PAYMENT,WWEG EP WALES WORKING LINKS WALES,WORKING LINKS,2033445365,"27,090"
Department for Work and Pensions ,Housing Benefits,12/12/2014,HOUSING BENEFIT ADMINISTRATION,HB ENGLAND,TAMWORTH BOROUGH COUNCIL,2033438471,"26,972"
Department for Work and Pensions ,Employment Programmes,05/12/2014,WP JSA 25+ JOB OUTCOME PAYMENTWP JSA 25+ JOB OUTCOME PAYMENT,WWEG EP EAST MIDLANDS A4E,A4E LTD,2033424051,"26,928"
Department for Work and Pensions ,Housing Benefits,12/12/2014,HOUSING BENEFIT ADMINISTRATION,HB ENGLAND,SOUTH LAKELAND DISTRICT COUNCIL,2033438268,"26,918"
Department for Work and Pensions ,Employment Programmes,01/12/2014,WP JSA 25+ SUSTAINMENT OUTCOME PAYMENT,WWEG EP NORTH EAST INGEUS UK,INGEUS UK LTD,2033414324,"26,875"
Department for Work and Pensions ,Corporate,04/12/2014,NON-TREDDS IS IT APPS DEV MANDAY,CIO GG CORE,ATOS ORIGIN IT SERVICES UK LTD,2033421715,"26,864"
Department for Work and Pensions ,Employment Programmes,08/12/2014,WP JSA 25+ SUSTAINMENT OUTCOME PAYMENT,WWEG EP WEST LONDON REED IN PARTNERSHIP,REED IN PARTNERSHIP LTD,2033429616,"26,660"
Department for Work and Pensions ,Employment Programmes,19/12/2014,WP JSA 25+ SUSTAINMENT OUTCOME PAYMENT,WWEG EP WALES WORKING LINKS WALES,WORKING LINKS,2033452924,"26,660"
Department for Work and Pensions ,Employment Programmes,24/12/2014,WP JSA 25+ SUSTAINMENT OUTCOME PAYMENT,WWEG EP SCOTLAND WORKING LINKS,WORKING LINKS,2033464280,"26,660"
Department for Work and Pensions ,Employment Programmes,18/12/2014,WP JSA 18-24 JOB SUSTAINMENT OUTCOME PAYMENT,WWEG EP NORTH WEST MERS HAL CUMB AND LANCS A4E,A4E LTD,2033452301,"26,520"
Department for Work and Pensions ,Housing Benefits,12/12/2014,HOUSING BENEFIT ADMINISTRATION,HB ENGLAND,EAST NORTHANTS DISTRICT COUNCIL,2033438470,"26,486"
Department for Work and Pensions ,Employment Programmes,12/12/2014,WP JSA 25+ SUSTAINMENT OUTCOME PAYMENT,WWEG EP W MIDLANDS BIRM SOL BC PERTEMPS,PERTEMPS,2033439098,"26,445"
Department for Work and Pensions ,Employment Programmes,18/12/2014,WP JSA 25+ SUSTAINMENT OUTCOME PAYMENT,WWEG EP SOUTH YORKSHIRE A4E,A4E LTD,2033452301,"26,445"
Department for Work and Pensions ,Employment Programmes,22/12/2014,WP JSA 25+ SUSTAINMENT OUTCOME PAYMENT,WWEG EP EAST OF ENGLAND INGEUS UK,INGEUS UK LTD,2033459491,"26,445"
Department for Work and Pensions ,Housing Benefits,12/12/2014,HOUSING BENEFIT ADMINISTRATION,HB WALES,CEREDIGION COUNTY COUNCIL,2033438191,"26,389"
Department for Work and Pensions ,Housing Benefits,12/12/2014,HOUSING BENEFIT ADMINISTRATION,HB ENGLAND,WOKINGHAM BOROUGH COUNCIL,2033438277,"26,342"
Department for Work and Pensions ,Corporate,15/12/2014,SOFTWARE LICENCES,CIO COO IT DIRECTOR,SPECIALIST COMPUTER CENTRES PLC,2033445079,"26,325"
Department for Work and Pensions ,Housing Benefits,12/12/2014,HOUSING BENEFIT ADMINISTRATION,HB ENGLAND,FAREHAM BOROUGH COUNCIL,2033438311,"26,325"
Department for Work and Pensions ,Housing Benefits,12/12/2014,HOUSING BENEFIT ADMINISTRATION,HB ENGLAND,TORRIDGE DISTRICT COUNCIL,2033438504,"26,314"
Department for Work and Pensions ,Employment Programmes,03/12/2014,WP JSA 25+ JOB OUTCOME PAYMENTWP JSA 25+ JOB OUTCOME PAYMENT,WWEG EP SCOTLAND WORKING LINKS,WORKING LINKS,2033419033,"26,304"
Department for Work and Pensions ,Corporate,24/12/2014,CONTRACTED OUT ORIGINAL RESEARCH,STR ANALYSIS CAD,MARKET & OPINION RESEARCH INTERNATIONAL T/A IPSOS MORI,2033463291,"26,241"
Department for Work and Pensions ,Employment Programmes,05/12/2014,WP JSA 25+ SUSTAINMENT OUTCOME PAYMENT,WWEG EP NORTH EAST AVANTA ENTERPRISE,AVANTA ENTERPRISE,2033424930,"26,230"
Department for Work and Pensions ,Employment Programmes,05/12/2014,WP JSA 25+ SUSTAINMENT OUTCOME PAYMENT,WWEG EP WALES WORKING LINKS WALES,WORKING LINKS,2033425318,"26,230"
Department for Work and Pensions ,Employment Programmes,22/12/2014,WP JSA 25+ SUSTAINMENT OUTCOME PAYMENT,WWEG EP NORTH EAST Y AND H G4S,G4S REGIONAL MANAGEMENT UK & I LTD,2033457946,"26,230"
Department for Work and Pensions ,Employment Programmes,24/12/2014,WP JSA 25+ SUSTAINMENT OUTCOME PAYMENT,WWEG EP SCOTLAND INGEUS UK,INGEUS UK LTD,2033464284,"26,230"
Department for Work and Pensions ,Employment Programmes,30/12/2014,WP JSA 25+ SUSTAINMENT OUTCOME PAYMENT,WWEG EP NORTH WEST GM CHES AND WARR AVANTA ENTERPRISE,AVANTA ENTERPRISE,2033471611,"26,230"
Department for Work and Pensions ,Employment Programmes,08/12/2014,WP JSA 18-24 JOB SUSTAINMENT OUTCOME PAYMENT,WWEG EP NORTH EAST AVANTA ENTERPRISE,AVANTA ENTERPRISE,2033431553,"26,180"
Department for Work and Pensions ,Employment Programmes,18/12/2014,WP JSA 25+ JOB OUTCOME PAYMENTWP JSA 25+ JOB OUTCOME PAYMENT,WWEG EP S WEST DEV COR DOR AND SOM PROSPECTS SERVICES,PROSPECTS SERVICES LTD,2033450971,"26,136"
Department for Work and Pensions ,Housing Benefits,12/12/2014,HOUSING BENEFIT ADMINISTRATION,HB ENGLAND,COTSWOLD DISTRICT COUNCIL,2033438400,"26,116"
Department for Work and Pensions ,Housing Benefits,12/12/2014,HOUSING BENEFIT ADMINISTRATION,HB ENGLAND,EAST CAMBRIDGESHIRE DISTRICT COUNCIL,2033438288,"26,099"
Department for Work and Pensions ,Housing Benefits,12/12/2014,HOUSING BENEFIT ADMINISTRATION,HB ENGLAND,STAFFORDSHIRE MOORLANDS DISTRICT COUNCIL,2033438472,"26,081"
Department for Work and Pensions ,Corporate,16/12/2014,CONTRACTORS & STAFF SUBSTITUTIONS,CHG DELIVERING THE IRIS ORGANISATION,CAPITA BUSINESS SERVICES LTD,2033445794,"26,060"
Department for Work and Pensions ,Corporate,16/12/2014,AMS SERVICES,CHG PIP IT PHASE 3,HP ENTERPRISE SERVICES UK LTD,2033445556,"26,025"
Department for Work and Pensions ,Employment Programmes,03/12/2014,WP JSA 25+ SUSTAINMENT OUTCOME PAYMENT,WWEG EP SCOTLAND WORKING LINKS,WORKING LINKS,2033419033,"26,015"
Department for Work and Pensions ,Employment Programmes,09/12/2014,WP JSA 25+ SUSTAINMENT OUTCOME PAYMENT,WWEG EP EAST OF ENGLAND INGEUS UK,INGEUS UK LTD,2033433535,"26,015"
Department for Work and Pensions ,Employment Programmes,17/12/2014,WP JSA 25+ SUSTAINMENT OUTCOME PAYMENT,WWEG EP NORTH WEST GM CHES AND WARR G4S,G4S REGIONAL MANAGEMENT UK & I LTD,2033448272,"26,015"
Department for Work and Pensions ,Employment Programmes,19/12/2014,WP JSA 25+ SUSTAINMENT OUTCOME PAYMENT,WWEG EP SOUTH EAST SURR SUSSX AND KENT AVANTA ENTERPRISE,AVANTA ENTERPRISE,2033454118,"26,015"
Department for Work and Pensions ,Employment Programmes,05/12/2014,WP JSA 18-24 JOB SUSTAINMENT OUTCOME PAYMENT,WWEG EP EAST MIDLANDS INGEUS UK,INGEUS UK LTD,2033425314,"26,010"
Department for Work and Pensions ,Employment Programmes,12/12/2014,WP JSA 18-24 JOB SUSTAINMENT OUTCOME PAYMENT,WWEG EP SCOTLAND INGEUS UK,INGEUS UK LTD,2033440056,"26,010"
Department for Work and Pensions ,Employment Programmes,30/12/2014,WP JSA 18-24 JOB SUSTAINMENT OUTCOME PAYMENT,WWEG EP EAST MIDLANDS INGEUS UK,INGEUS UK LTD,2033473043,"26,010"
Department for Work and Pensions ,Corporate,19/12/2014,NISSA MORTGAGE INTEREST INCOME CONTROL,BALANCE SHEET,DEPARTMENT FOR SOCIAL DEVELOPMENT,1006884,"25,975"
Department for Work and Pensions ,Corporate,12/12/2014,IT Owned Additions Cost,CHG D-CIRC,SPECIALIST COMPUTER CENTRES PLC,2033439864,"25,946"
Department for Work and Pensions ,Housing Benefits,12/12/2014,HOUSING BENEFIT ADMINISTRATION,HB ENGLAND,FYLDE BOROUGH COUNCIL,2033438265,"25,936"
Department for Work and Pensions ,Housing Benefits,12/12/2014,HOUSING BENEFIT ADMINISTRATION,HB ENGLAND,MID DEVON DISTRICT COUNCIL,2033438506,"25,920"
Department for Work and Pensions ,Corporate,15/12/2014,MEDICAL SERVICES FIXED COSTS,OPS CCS MEDICAL SERVICES,ATOS HEALTHCARE,2033444360,"25,794"
Department for Work and Pensions ,Housing Benefits,12/12/2014,HOUSING BENEFIT ADMINISTRATION,HB ENGLAND,BABERGH DISTRICT COUNCIL,2033438459,"25,740"
Department for Work and Pensions ,Corporate,19/12/2014,STAFF TRAINING VAT RECOVERABLE,HR CONTRACTUAL L AND D,CAPITA CIVIL SERVICE LEARNING,2033452911,"25,530"
Department for Work and Pensions ,Housing Benefits,12/12/2014,HOUSING BENEFIT ADMINISTRATION,HB ENGLAND,HAMBLETON DISTRICT COUNCIL,2033438466,"25,526"
Department for Work and Pensions ,Employment Programmes,30/12/2014,ESF 2011-13 SUPPORT FOR FAMILIES WITH MULTIPLE PROBLEMS JSA CUSTOMERS PROGRESS MEASURE - INITIAL 25% PAYMENT,CPA6 GTR MAN CHES WARR EXC HAL G4S CARE AND JUSTICE SERV,G4S REGIONAL MANAGEMENT UK & I LTD,2033471144,"25,518"
Department for Work and Pensions ,Employment Programmes,12/12/2014,WP JSA 18-24 JOB SUSTAINMENT OUTCOME PAYMENT,WWEG EP NORTH WEST MERS HAL CUMB AND LANCS INGEUS UK,INGEUS UK LTD,2033440056,"25,500"
Department for Work and Pensions ,Employment Programmes,30/12/2014,WP JSA 18-24 JOB SUSTAINMENT OUTCOME PAYMENT,WWEG EP EAST OF ENGLAND INGEUS UK,INGEUS UK LTD,2033473043,"25,500"
Department for Work and Pensions ,Employment Programmes,19/12/2014,WP JSA 25+ SUSTAINMENT OUTCOME PAYMENT,WWEG EP W MIDLANDS BIRM SOL BC NEWCASTLE COLLEGE GROUP,NEWCASTLE COLLEGE GROUP,2033453769,"25,370"
Department for Work and Pensions ,Employment Programmes,30/12/2014,WP JSA 25+ SUSTAINMENT OUTCOME PAYMENT,WWEG EP NORTH WEST GM CHES AND WARR G4S,G4S REGIONAL MANAGEMENT UK & I LTD,2033471144,"25,370"
Department for Work and Pensions ,Housing Benefits,12/12/2014,HOUSING BENEFIT ADMINISTRATION,HB ENGLAND,TEWKESBURY BOROUGH COUNCIL,2033438337,"25,306"
Department for Work and Pensions ,Corporate,10/12/2014,CONTRACTORS & STAFF SUBSTITUTIONS,F&C CD SENIOR MANAGEMENT,CAPITA BUSINESS SERVICES LTD,2033434303,"25,241"
Department for Work and Pensions ,Child Maintenance and Enforcement Commission,11/12/2014,STAFF TRAINING VAT RECOVERABLE,HUMAN RESOURCES,CAPITA CIVIL SERVICE LEARNING,1000225050,"25,214"
Department for Work and Pensions ,Corporate,15/12/2014,TREDDS APPS DEV MANDAYS,CHG FRAUD & ERROR STRATEGY,HP ENTERPRISE SERVICES UK LTD,2033445445,"25,209"
Department for Work and Pensions ,Employment Programmes,05/12/2014,WP JSA 18-24 JOB SUSTAINMENT OUTCOME PAYMENT,WWEG EP NORTH EAST INGEUS UK,INGEUS UK LTD,2033425314,"25,160"
Department for Work and Pensions ,Employment Programmes,01/12/2014,WP JSA 25+ SUSTAINMENT OUTCOME PAYMENT,WWEG EP WALES REHAB JOB FIT,REHAB JOBFIT,2033414303,"25,155"
Department for Work and Pensions ,Employment Programmes,22/12/2014,WP JSA 25+ SUSTAINMENT OUTCOME PAYMENT,WWEG EP WEST LONDON REED IN PARTNERSHIP,REED IN PARTNERSHIP LTD,2033458933,"25,155"
Department for Work and Pensions ,Employment Programmes,24/12/2014,WP JSA 25+ SUSTAINMENT OUTCOME PAYMENT,WWEG EP EAST LONDON SEETEC,SEETEC BUSINESS TECHNOLOGY CENTRE LTD,2033464057,"25,155"
Department for Work and Pensions ,Housing Benefits,12/12/2014,HOUSING BENEFIT ADMINISTRATION,HB ENGLAND,RUNNYMEDE BOROUGH COUNCIL,2033438368,"25,133"
Department for Work and Pensions ,Housing Benefits,12/12/2014,HOUSING BENEFIT ADMINISTRATION,HB ENGLAND,RUSHCLIFFE BOROUGH COUNCIL,2033438446,"25,076"
Department for Work and Pensions ,Corporate,09/12/2014,FSF - PARTNERSHIP GRANTS - TO HELP JSA CLIENTS INTO WORK,CHG UC LABOUR MARKET STRATEGY & DESIGN,TIMEWISE FOUNDATION,2033433829,"25,028"
Department for Work and Pensions ,Employment Programmes,11/12/2014,Youth Contract Wage Incentive Payment,WWEG EP W MIDLANDS BIRM SOL BC FOURSTAR EMP AND SKILLS,STAFFLINE RECRUITMENT,2033437709,"25,025"
Department for Work and Pensions ,Child Maintenance and Enforcement Commission,09/12/2014,STAFF TRAINING VAT RECOVERABLE,HUMAN RESOURCES,CAPITA CIVIL SERVICE LEARNING,1000224831,"25,005"
Department for Work and Pensions ,Corporate,04/12/2014,STAFF TRAINING VAT RECOVERABLE,STR AGEING SOC DIRECTOR AND SUPPORT,OXFORD SAID BUSINESS SCHOOL LTD,2033422776,"25,000"
Department for Work and Pensions ,Corporate,17/12/2014,VOCA Charges,FG FIN CONT COBAP BANKING,CITIBANK GLOBAL CORPORATE BANKING,2033448247,"25,000"
Department for Work and Pensions ,Employment Programmes,05/12/2014,WP JSA 25+ SUSTAINMENT OUTCOME PAYMENT,WWEG EP W MIDLANDS COV WARW STAFFS AND MARCHES SERCO,SERCO LTD,2033423915,"24,940"
Department for Work and Pensions ,Employment Programmes,22/12/2014,WP JSA 25+ SUSTAINMENT OUTCOME PAYMENT,WWEG EP SCOTLAND INGEUS UK,INGEUS UK LTD,2033459491,"24,940"
Department for Work and Pensions ,Employment Programmes,23/12/2014,WP JSA 25+ SUSTAINMENT OUTCOME PAYMENT,WWEG EP EAST OF ENGLAND INGEUS UK,INGEUS UK LTD,2033460535,"24,940"
Department for Work and Pensions ,Housing Benefits,12/12/2014,HOUSING BENEFIT ADMINISTRATION,HB SCOTLAND,CLACKMANNANSHIRE COUNCIL,2033438330,"24,908"
Department for Work and Pensions ,Employment Programmes,12/12/2014,WP JSA 18-24 JOB SUSTAINMENT OUTCOME PAYMENT,WWEG EP NORTH EAST INGEUS UK,INGEUS UK LTD,2033440056,"24,820"
Department for Work and Pensions ,Employment Programmes,12/12/2014,WP JSA 18-24 JOB SUSTAINMENT OUTCOME PAYMENT,WWEG EP EAST MIDLANDS INGEUS UK,INGEUS UK LTD,2033440056,"24,820"
Department for Work and Pensions ,Employment Programmes,15/12/2014,WP JSA 25+ SUSTAINMENT OUTCOME PAYMENT,WWEG EP WALES REHAB JOB FIT,REHAB JOBFIT,2033443985,"24,725"
Department for Work and Pensions ,Employment Programmes,29/12/2014,WP JSA 25+ SUSTAINMENT OUTCOME PAYMENT,WWEG EP SOUTH YORKSHIRE A4E,A4E LTD,2033466298,"24,725"
Department for Work and Pensions ,Corporate,16/12/2014,NON PRIME WORKS - VAT RECOVERABLE,CHG UC PATHFINDER DELIVERY MANAGEMENT,HP ENTERPRISE SERVICES UK LTD,2033445556,"24,592"
Department for Work and Pensions ,Employment Programmes,12/12/2014,WP JSA 25+ SUSTAINMENT OUTCOME PAYMENT,WWEG EP W MIDLANDS BIRM SOL BC NEWCASTLE COLLEGE GROUP,NEWCASTLE COLLEGE GROUP,2033440389,"24,510"
Department for Work and Pensions ,Employment Programmes,05/12/2014,WP JSA 18-24 JOB SUSTAINMENT OUTCOME PAYMENT,WWEG EP EAST OF ENGLAND INGEUS UK,INGEUS UK LTD,2033425314,"24,480"
Department for Work and Pensions ,Employment Programmes,19/12/2014,WP JSA 18-24 JOB SUSTAINMENT OUTCOME PAYMENT,WWEG EP EAST OF ENGLAND INGEUS UK,INGEUS UK LTD,2033452830,"24,480"
Department for Work and Pensions ,Corporate,17/12/2014,STAFF TRAINING VAT RECOVERABLE,HR CONTRACTUAL L AND D,CAPITA CIVIL SERVICE LEARNING,2033449453,"24,432"
Department for Work and Pensions ,Employment Programmes,30/12/2014,WP JSA 25+ SUSTAINMENT OUTCOME PAYMENT,WWEG EP S WEST GLOS WILTS AND W OF E JHP GROUP,LEARNDIRECT LTD,2033471823,"24,295"
Department for Work and Pensions ,Employment Programmes,18/12/2014,WP JSA NEET SUSTAINMENT OUTCOME PAYMENT,WWEG EP EAST MIDLANDS A4E,A4E LTD,2033452301,"24,250"
Department for Work and Pensions ,Corporate,16/12/2014,NON-TREDDS IS IT APPS DEV MANDAY,CIO COO IT DIRECTOR,REDROCK CONSULTING LTD,2033446091,"24,150"
Department for Work and Pensions ,Employment Programmes,03/12/2014,WP JSA 25+ SUSTAINMENT OUTCOME PAYMENT,WWEG EP W MIDLANDS COV WARW STAFFS AND MARCHES ESG,ESG HOLDINGS LIMITED,2033419862,"24,080"
Department for Work and Pensions ,Employment Programmes,05/12/2014,WP JSA 25+ SUSTAINMENT OUTCOME PAYMENT,WWEG EP S WEST DEV COR DOR AND SOM PROSPECTS SERVICES,PROSPECTS SERVICES LTD,2033423993,"24,080"
Department for Work and Pensions ,Employment Programmes,08/12/2014,WP JSA 25+ SUSTAINMENT OUTCOME PAYMENT,WWEG EP EAST OF ENGLAND INGEUS UK,INGEUS UK LTD,2033429759,"24,080"
Department for Work and Pensions ,Employment Programmes,19/12/2014,WP JSA 25+ SUSTAINMENT OUTCOME PAYMENT,WWEG EP EAST MIDLANDS A4E,A4E LTD,2033453414,"24,080"
Department for Work and Pensions ,Employment Programmes,19/12/2014,WP JSA 25+ SUSTAINMENT OUTCOME PAYMENT,WWEG EP W MIDLANDS BIRM SOL BC PERTEMPS,PERTEMPS,2033454148,"24,080"
Department for Work and Pensions ,Employment Programmes,22/12/2014,WP JSA 25+ SUSTAINMENT OUTCOME PAYMENT,WWEG EP WALES REHAB JOB FIT,REHAB JOBFIT,2033457964,"24,080"
Department for Work and Pensions ,Employment Programmes,22/12/2014,WP JSA 25+ SUSTAINMENT OUTCOME PAYMENT,WWEG EP NORTH EAST AVANTA ENTERPRISE,AVANTA ENTERPRISE,2033458730,"24,080"
Department for Work and Pensions ,Employment Programmes,30/12/2014,WP JSA 25+ SUSTAINMENT OUTCOME PAYMENT,WWEG EP NORTH WEST GM CHES AND WARR SEETEC,SEETEC BUSINESS TECHNOLOGY CENTRE LTD,2033471677,"24,080"
Department for Work and Pensions ,Employment Programmes,16/12/2014,WP JSA 25+ SUSTAINMENT OUTCOME PAYMENT,WWEG EP EAST OF ENGLAND SEETEC,SEETEC BUSINESS TECHNOLOGY CENTRE LTD,2033447203,"23,865"
Department for Work and Pensions ,Employment Programmes,18/12/2014,WP JSA 18-24 JOB SUSTAINMENT OUTCOME PAYMENT,WWEG EP EAST MIDLANDS A4E,A4E LTD,2033452301,"23,800"
Department for Work and Pensions ,Employment Programmes,30/12/2014,SUSTAINMENT FEE,WWEG EP WORK CHOICE W LON C LON BARNET ENFIELD HARINGEY,SEETEC BUSINESS TECHNOLOGY CENTRE LTD,2033471677,"23,763"
Department for Work and Pensions ,Employment Programmes,23/12/2014,SERVICE FEE,WWEG EP CORE MWA CPA NORTH WEST,LEARNDIRECT LTD,2033461251,"23,728"
Department for Work and Pensions ,Child Maintenance and Enforcement Commission,02/12/2014,CONTRACTORS & STAFF SUBSTITUTIONS,DATA WAREHOUSE PHASE 1,CAPITA RESOURCING LTD,1000224225,"23,669"
Department for Work and Pensions ,Employment Programmes,02/12/2014,WP JSA 25+ SUSTAINMENT OUTCOME PAYMENT,WWEG EP EAST OF ENGLAND SEETEC,SEETEC BUSINESS TECHNOLOGY CENTRE LTD,2033416849,"23,650"
Department for Work and Pensions ,Employment Programmes,05/12/2014,WP JSA 25+ SUSTAINMENT OUTCOME PAYMENT,WWEG EP WEST LONDON REED IN PARTNERSHIP,REED IN PARTNERSHIP LTD,2033426402,"23,650"
Department for Work and Pensions ,Employment Programmes,11/12/2014,WP JSA 18-24 JOB SUSTAINMENT OUTCOME PAYMENT,WWEG EP EAST MIDLANDS A4E,A4E LTD,2033437316,"23,630"
Department for Work and Pensions ,Corporate,11/12/2014,MANAGEMENT CONFERENCES,STR ANALYSIS DIRECTOR OF ANALYSIS AND SUPPORT,CALDER CONFERENCES LTD,2033437563,"23,597"
Department for Work and Pensions ,Corporate,09/12/2014,TREDDS APPS DEV MANDAYS,CIO IT OGD HMRC ITLR,HP ENTERPRISE SERVICES UK LTD,2033432771,"23,474"
Department for Work and Pensions ,Employment Programmes,04/12/2014,WP JSA 18-24 JOB SUSTAINMENT OUTCOME PAYMENT,WWEG EP EAST MIDLANDS A4E,A4E LTD,2033421645,"23,460"
Department for Work and Pensions ,Employment Programmes,19/12/2014,WP JSA 18-24 JOB SUSTAINMENT OUTCOME PAYMENT,WWEG EP NORTH EAST INGEUS UK,INGEUS UK LTD,2033452830,"23,460"
Department for Work and Pensions ,Employment Programmes,08/12/2014,WP JSA 25+ SUSTAINMENT OUTCOME PAYMENT,WWEG EP SCOTLAND INGEUS UK,INGEUS UK LTD,2033429759,"23,435"
Department for Work and Pensions ,Employment Programmes,15/12/2014,WP JSA 25+ SUSTAINMENT OUTCOME PAYMENT,WWEG EP EAST OF ENGLAND INGEUS UK,INGEUS UK LTD,2033445254,"23,435"
Department for Work and Pensions ,Employment Programmes,22/12/2014,WP JSA 25+ SUSTAINMENT OUTCOME PAYMENT,WWEG EP NORTH WEST GM CHES AND WARR AVANTA ENTERPRISE,AVANTA ENTERPRISE,2033458730,"23,435"
Department for Work and Pensions ,Employment Programmes,23/12/2014,WP JSA 25+ SUSTAINMENT OUTCOME PAYMENT,WWEG EP SOUTH EAST SURR SUSSX AND KENT AVANTA ENTERPRISE,AVANTA ENTERPRISE,2033459934,"23,435"
Department for Work and Pensions ,Corporate,24/12/2014,MANAGED SERVICE UNIVERSAL JOBMATCH,OPS NET DIG UNIVERSAL JOBMATCH CONTRACT,MONSTER GOVERNMENT SOLUTIONS,2033463478,"23,435"
Department for Work and Pensions ,Housing Benefits,12/12/2014,HOUSING BENEFIT ADMINISTRATION,HB ENGLAND,EAST DORSET DISTRICT COUNCIL,2033438165,"23,409"
Department for Work and Pensions ,Housing Benefits,12/12/2014,HOUSING BENEFIT ADMINISTRATION,HB ENGLAND,SOUTH DERBYSHIRE DISTRICT COUNCIL,2033438162,"23,403"
Department for Work and Pensions ,Corporate,15/12/2014,TREDDS APPS DEV MANDAYS,CIO IT OGD HMRC ITLR,HP ENTERPRISE SERVICES UK LTD,2033445445,"23,277"
Department for Work and Pensions ,Employment Programmes,15/12/2014,WP JSA 25+ JOB OUTCOME PAYMENTWP JSA 25+ JOB OUTCOME PAYMENT,WWEG EP EAST MIDLANDS INGEUS UK,INGEUS UK LTD,2033445254,"23,274"
Department for Work and Pensions ,Housing Benefits,12/12/2014,HOUSING BENEFIT ADMINISTRATION,HB ENGLAND,MALVERN HILLS DISTRICT COUNCIL,2033438380,"23,258"
Department for Work and Pensions ,Employment Programmes,30/12/2014,WP JSA NEET SUSTAINMENT OUTCOME PAYMENT,WWEG EP SCOTLAND INGEUS UK,INGEUS UK LTD,2033473043,"23,250"
Department for Work and Pensions ,Employment Programmes,01/12/2014,WP JSA 25+ SUSTAINMENT OUTCOME PAYMENT,WWEG EP EAST OF ENGLAND INGEUS UK,INGEUS UK LTD,2033414324,"23,220"
Department for Work and Pensions ,Employment Programmes,03/12/2014,WP JSA 25+ SUSTAINMENT OUTCOME PAYMENT,WWEG EP NORTH EAST INGEUS UK,INGEUS UK LTD,2033418906,"23,220"
Department for Work and Pensions ,Employment Programmes,16/12/2014,WP JSA 25+ SUSTAINMENT OUTCOME PAYMENT,WWEG EP SOUTH EAST SURR SUSSX AND KENT G4S,G4S REGIONAL MANAGEMENT UK & I LTD,2033445980,"23,220"
Department for Work and Pensions ,Employment Programmes,23/12/2014,WP JSA 25+ SUSTAINMENT OUTCOME PAYMENT,WWEG EP NORTH WEST GM CHES AND WARR AVANTA ENTERPRISE,AVANTA ENTERPRISE,2033459934,"23,220"
Department for Work and Pensions ,Housing Benefits,12/12/2014,HOUSING BENEFIT ADMINISTRATION,HB ENGLAND,MOLE VALLEY DISTRICT COUNCIL,2033438391,"23,191"
Department for Work and Pensions ,Housing Benefits,12/12/2014,HOUSING BENEFIT ADMINISTRATION,HB ENGLAND,SELBY DISTRICT COUNCIL,2033438332,"23,179"
Department for Work and Pensions ,Employment Programmes,19/12/2014,WP JSA 18-24 JOB SUSTAINMENT OUTCOME PAYMENT,WWEG EP SCOTLAND INGEUS UK,INGEUS UK LTD,2033452830,"23,120"
Department for Work and Pensions ,Employment Programmes,02/12/2014,WP JSA 25+ SUSTAINMENT OUTCOME PAYMENT,WWEG EP EAST OF ENGLAND INGEUS UK,INGEUS UK LTD,2033417276,"23,005"
Department for Work and Pensions ,Employment Programmes,12/12/2014,WP JSA 25+ SUSTAINMENT OUTCOME PAYMENT,WWEG EP W MIDLANDS COV WARW STAFFS AND MARCHES ESG,ESG HOLDINGS LIMITED,2033438996,"23,005"
Department for Work and Pensions ,Employment Programmes,30/12/2014,WP JSA 25+ SUSTAINMENT OUTCOME PAYMENT,WWEG EP SOUTH EAST SURR SUSSX AND KENT G4S,G4S REGIONAL MANAGEMENT UK & I LTD,2033471144,"23,005"
Department for Work and Pensions ,Corporate,10/12/2014,CONTRACTORS & STAFF SUBSTITUTIONS,F&C CD STRATEGY AND BUSINESS MANAGEMENT,CAPITA BUSINESS SERVICES LTD,2033434303,"22,954"
Department for Work and Pensions ,Employment Programmes,04/12/2014,WP JSA 25+ JOB OUTCOME PAYMENTWP JSA 25+ JOB OUTCOME PAYMENT,WWEG EP WEST LONDON MAXIMUS EMPLOYMENT UK,MAXIMUS EMPLOYMENT UK LTD,2033422336,"22,920"
Department for Work and Pensions ,Corporate,31/12/2014,PRIME BUSINESS RATES,FG CD BIRCHWOOD,TELEREAL TRILLIUM,2033470374,"22,895"
Department for Work and Pensions ,Housing Benefits,12/12/2014,HOUSING BENEFIT ADMINISTRATION,HB ENGLAND,FOREST HEATH DISTRICT COUNCIL,2033438458,"22,875"
Department for Work and Pensions ,Employment Programmes,23/12/2014,WP ESA (IR) WRAG 3/6 MTH MANDATORY SUSTAINMENT OUTCOME PAYMENT,WWEG EP W MIDLANDS BIRM SOL BC FOURSTAR EMP AND SKILLS,AVANTA ENTERPRISE LTD,2033461226,"22,795"
Department for Work and Pensions ,Employment Programmes,02/12/2014,WP JSA 25+ SUSTAINMENT OUTCOME PAYMENT,WWEG EP NORTH EAST INGEUS UK,INGEUS UK LTD,2033417276,"22,790"
Department for Work and Pensions ,Employment Programmes,04/12/2014,WP JSA 25+ SUSTAINMENT OUTCOME PAYMENT,WWEG EP SOUTH EAST SURR SUSSX AND KENT AVANTA ENTERPRISE,AVANTA ENTERPRISE,2033421484,"22,790"
Department for Work and Pensions ,Employment Programmes,05/12/2014,WP JSA 25+ SUSTAINMENT OUTCOME PAYMENT,WWEG EP SOUTH EAST SURR SUSSX AND KENT AVANTA ENTERPRISE,AVANTA ENTERPRISE,2033424930,"22,790"
Department for Work and Pensions ,Employment Programmes,22/12/2014,WP JSA 25+ SUSTAINMENT OUTCOME PAYMENT,WWEG EP WALES WORKING LINKS WALES,WORKING LINKS,2033459494,"22,790"
Department for Work and Pensions ,Corporate,08/12/2014,POSTAGE,OPS BEN BD CE DERBY,ROYAL MAIL GROUP PLC,2033429535,"22,763"
Department for Work and Pensions ,Employment Programmes,19/12/2014,WP JSA 25+ JOB OUTCOME PAYMENTWP JSA 25+ JOB OUTCOME PAYMENT,WWEG EP NORTH WEST GM CHES AND WARR AVANTA ENTERPRISE,AVANTA ENTERPRISE,2033454118,"22,740"
Department for Work and Pensions ,Employment Programmes,02/12/2014,ESF 2011-13 SUPPORT FOR FAMILIES WITH MULTIPLE PROBLEMS JSA CUSTOMERS JOB OUTCOME PAYMENT,CPA6 GTR MAN CHES WARR EXC HAL G4S CARE AND JUSTICE SERV,G4S REGIONAL MANAGEMENT UK & I LTD,2033416896,"22,723"
Department for Work and Pensions ,Employment Programmes,05/12/2014,WP JSA 18-24 JOB SUSTAINMENT OUTCOME PAYMENT,WWEG EP EAST OF ENGLAND SEETEC,SEETEC BUSINESS TECHNOLOGY CENTRE LTD,2033424557,"22,610"
Department for Work and Pensions ,Employment Programmes,05/12/2014,WP JSA 18-24 JOB SUSTAINMENT OUTCOME PAYMENT,WWEG EP NORTH WEST MERS HAL CUMB AND LANCS INGEUS UK,INGEUS UK LTD,2033425314,"22,610"
Department for Work and Pensions ,Employment Programmes,29/12/2014,WP JSA 18-24 JOB SUSTAINMENT OUTCOME PAYMENT,WWEG EP NORTH WEST MERS HAL CUMB AND LANCS A4E,A4E LTD,2033466298,"22,610"
Department for Work and Pensions ,Employment Programmes,29/12/2014,WP JSA 25+ SUSTAINMENT OUTCOME PAYMENT,WWEG EP SCOTLAND WORKING LINKS,WORKING LINKS,2033465327,"22,575"
Department for Work and Pensions ,Employment Programmes,11/12/2014,WP JSA NEET SUSTAINMENT OUTCOME PAYMENT,WWEG EP EAST MIDLANDS A4E,A4E LTD,2033437316,"22,500"
Department for Work and Pensions ,Employment Programmes,12/12/2014,WP JSA NEET SUSTAINMENT OUTCOME PAYMENT,WWEG EP SCOTLAND INGEUS UK,INGEUS UK LTD,2033440056,"22,500"
Department for Work and Pensions ,Housing Benefits,12/12/2014,HOUSING BENEFIT ADMINISTRATION,HB ENGLAND,BLABY DISTRICT COUNCIL,2033438405,"22,496"
Department for Work and Pensions ,Housing Benefits,12/12/2014,HOUSING BENEFIT ADMINISTRATION,HB ENGLAND,CHILTERN DISTRICT COUNCIL,2033438394,"22,462"
Department for Work and Pensions ,Corporate,09/12/2014,NETWORK SERVICES,CHG DIGITAL JOBCENTRES,BT GLOBAL SERVICES,2033432486,"22,456"
Department for Work and Pensions ,Employment Programmes,05/12/2014,WP JSA 25+ SUSTAINMENT OUTCOME PAYMENT,WWEG EP EAST LONDON A4E,A4E LTD,2033424051,"22,360"
Department for Work and Pensions ,Employment Programmes,08/12/2014,WP JSA 25+ SUSTAINMENT OUTCOME PAYMENT,WWEG EP SCOTLAND WORKING LINKS,WORKING LINKS,2033429836,"22,360"
Department for Work and Pensions ,Employment Programmes,08/12/2014,WP JSA 25+ SUSTAINMENT OUTCOME PAYMENT,WWEG EP NORTH EAST Y AND H G4S,G4S REGIONAL MANAGEMENT UK & I LTD,2033430889,"22,360"
Department for Work and Pensions ,Employment Programmes,17/12/2014,WP JSA 25+ SUSTAINMENT OUTCOME PAYMENT,WWEG EP EAST MIDLANDS INGEUS UK,INGEUS UK LTD,2033449633,"22,360"
Department for Work and Pensions ,Employment Programmes,19/12/2014,WP JSA 25+ SUSTAINMENT OUTCOME PAYMENT,WWEG EP NORTH EAST Y AND H G4S,G4S REGIONAL MANAGEMENT UK & I LTD,2033453829,"22,360"
Department for Work and Pensions ,Employment Programmes,22/12/2014,WP JSA 25+ SUSTAINMENT OUTCOME PAYMENT,WWEG EP NORTH WEST MERS HAL CUMB AND LANCS INGEUS UK,INGEUS UK LTD,2033459491,"22,360"
Department for Work and Pensions ,Housing Benefits,12/12/2014,HOUSING BENEFIT ADMINISTRATION,HB ENGLAND,BROMSGROVE DISTRICT COUNCIL,2033438282,"22,343"
Department for Work and Pensions ,Housing Benefits,12/12/2014,HOUSING BENEFIT ADMINISTRATION,HB ENGLAND,DAVENTRY DISTRICT COUNCIL,2033438481,"22,322"
Department for Work and Pensions ,Corporate,31/12/2014,PRIME FACILITY PRICE,FG CD PORTH OLDWAY HOUSE,TELEREAL TRILLIUM,2033470373,"22,290"
Department for Work and Pensions ,Corporate,08/12/2014,POSTAGE,OPS PEN PS CAU,ROYAL MAIL GROUP PLC,2033429535,"22,274"
Department for Work and Pensions ,Child Maintenance and Enforcement Commission,24/12/2014,OVERTIME,OSP DIRECTORS OFFICE,DSD GROUP ACCOUNT,1001921,"22,179"
Department for Work and Pensions ,Employment Programmes,01/12/2014,WP JSA 25+ SUSTAINMENT OUTCOME PAYMENT,WWEG EP WEST LONDON MAXIMUS EMPLOYMENT UK,MAXIMUS EMPLOYMENT UK LTD,2033413814,"22,145"
Department for Work and Pensions ,Employment Programmes,11/12/2014,WP JSA 25+ SUSTAINMENT OUTCOME PAYMENT,WWEG EP SOUTH YORKSHIRE A4E,A4E LTD,2033437316,"22,145"
Department for Work and Pensions ,Employment Programmes,30/12/2014,WP JSA 25+ SUSTAINMENT OUTCOME PAYMENT,WWEG EP EAST MIDLANDS A4E,A4E LTD,2033472167,"22,145"
Department for Work and Pensions ,Housing Benefits,12/12/2014,HOUSING BENEFIT ADMINISTRATION,HB ENGLAND,TANDRIDGE DISTRICT COUNCIL,2033438189,"22,053"
Department for Work and Pensions ,Employment Programmes,01/12/2014,ESF 2011-13 SUPPORT FOR FAMILIES WITH MULTIPLE PROBLEMS JSA CUSTOMERS JOB OUTCOME PAYMENT,CPA8 SOUTH EAST SKILLS TRAINING UK,SKILLS TRAINING UK LIMITED,2033414433,"22,015"
Department for Work and Pensions ,Employment Programmes,30/12/2014,WP JSA 25+ JOB OUTCOME PAYMENTWP JSA 25+ JOB OUTCOME PAYMENT,WWEG EP EAST LONDON A4E,A4E LTD,2033472167,"21,942"
Department for Work and Pensions ,Employment Programmes,03/12/2014,WP JSA 25+ SUSTAINMENT OUTCOME PAYMENT,WWEG EP EAST OF ENGLAND SEETEC,SEETEC BUSINESS TECHNOLOGY CENTRE LTD,2033420075,"21,930"
Department for Work and Pensions ,Employment Programmes,15/12/2014,WP JSA 25+ SUSTAINMENT OUTCOME PAYMENT,WWEG EP EAST LONDON SEETEC,SEETEC BUSINESS TECHNOLOGY CENTRE LTD,2033443866,"21,930"
Department for Work and Pensions ,Employment Programmes,15/12/2014,WP JSA 25+ SUSTAINMENT OUTCOME PAYMENT,WWEG EP EAST MIDLANDS INGEUS UK,INGEUS UK LTD,2033445254,"21,930"
Department for Work and Pensions ,Employment Programmes,24/12/2014,WP JSA 25+ SUSTAINMENT OUTCOME PAYMENT,WWEG EP EAST OF ENGLAND INGEUS UK,INGEUS UK LTD,2033464284,"21,930"
Department for Work and Pensions ,Employment Programmes,02/12/2014,WP JSA 25+ SUSTAINMENT OUTCOME PAYMENT,WWEG EP W MIDLANDS BIRM SOL BC NEWCASTLE COLLEGE GROUP,NEWCASTLE COLLEGE GROUP,2033417193,"21,715"
Department for Work and Pensions ,Employment Programmes,11/12/2014,WP JSA 25+ SUSTAINMENT OUTCOME PAYMENT,WWEG EP EAST LONDON CAREERS DEVELOPMENT GROUP,CAREERS DEVELOPMENT GROUP,2033436994,"21,715"
Department for Work and Pensions ,Employment Programmes,22/12/2014,WP JSA 25+ SUSTAINMENT OUTCOME PAYMENT,WWEG EP SOUTH EAST SURR SUSSX AND KENT AVANTA ENTERPRISE,AVANTA ENTERPRISE,2033458730,"21,715"
Department for Work and Pensions ,Employment Programmes,23/12/2014,WP JSA 25+ SUSTAINMENT OUTCOME PAYMENT,WWEG EP NORTH WEST MERS HAL CUMB AND LANCS INGEUS UK,INGEUS UK LTD,2033460535,"21,715"
Department for Work and Pensions ,Employment Programmes,29/12/2014,WP JSA 25+ SUSTAINMENT OUTCOME PAYMENT,WWEG EP W MIDLANDS COV WARW STAFFS AND MARCHES SERCO,SERCO LTD,2033466666,"21,715"
Department for Work and Pensions ,Employment Programmes,30/12/2014,WP JSA 25+ JOB OUTCOME PAYMENTWP JSA 25+ JOB OUTCOME PAYMENT,WWEG EP SCOTLAND WORKING LINKS,WORKING LINKS,2033473039,"21,696"
Department for Work and Pensions ,Corporate,08/12/2014,POSTAGE,OPS OPE NINO GLASGOW NDC,ROYAL MAIL GROUP PLC,2033429535,"21,674"
Department for Work and Pensions ,Employment Programmes,23/12/2014,ESF 2011-13 SUPPORT FOR FAMILIES WITH MULTIPLE PROBLEMS ESA/NON CLAIMANTS CUSTOMERS PROGRESS MEASURE - INITIAL 25% PAYMENT,CPA11 WEST MIDLANDS EOS WORKS LTD FORMERLY FOURSTAR,AVANTA ENTERPRISE LTD,2033461226,"21,669"
Department for Work and Pensions ,Employment Programmes,11/12/2014,WP JSA 18-24 JOB SUSTAINMENT OUTCOME PAYMENT,WWEG EP NORTH WEST MERS HAL CUMB AND LANCS A4E,A4E LTD,2033437316,"21,590"
Department for Work and Pensions ,Housing Benefits,12/12/2014,HOUSING BENEFIT ADMINISTRATION,HB ENGLAND,MID SUFFOLK DISTRICT COUNCIL,2033438456,"21,562"
Department for Work and Pensions ,Employment Programmes,02/12/2014,WP JSA 25+ SUSTAINMENT OUTCOME PAYMENT,WWEG EP EAST LONDON A4E,A4E LTD,2033416697,"21,500"
Department for Work and Pensions ,Employment Programmes,24/12/2014,WP JSA 25+ SUSTAINMENT OUTCOME PAYMENT,WWEG EP NORTH WEST MERS HAL CUMB AND LANCS INGEUS UK,INGEUS UK LTD,2033464284,"21,500"
Department for Work and Pensions ,Corporate,01/12/2014,PRIME UNAVOIDABLE COSTS (UAC),CHG ESTATES RATIONALISATION FORMER JCP OPS,TELEREAL TRILLIUM,2033414526,"21,452"
Department for Work and Pensions ,Employment Programmes,05/12/2014,WP JSA 18-24 JOB SUSTAINMENT OUTCOME PAYMENT,WWEG EP SCOTLAND INGEUS UK,INGEUS UK LTD,2033425314,"21,420"
Department for Work and Pensions ,Housing Benefits,12/12/2014,HOUSING BENEFIT ADMINISTRATION,HB ENGLAND,ROCHFORD DISTRICT COUNCIL,2033438341,"21,337"
Department for Work and Pensions ,Employment Programmes,03/12/2014,WP JSA 25+ SUSTAINMENT OUTCOME PAYMENT,WWEG EP EAST LONDON CAREERS DEVELOPMENT GROUP,CAREERS DEVELOPMENT GROUP,2033418974,"21,285"
Department for Work and Pensions ,Employment Programmes,05/12/2014,WP JSA 25+ SUSTAINMENT OUTCOME PAYMENT,WWEG EP EAST MIDLANDS A4E,A4E LTD,2033424051,"21,285"
Department for Work and Pensions ,Employment Programmes,05/12/2014,WP JSA 25+ SUSTAINMENT OUTCOME PAYMENT,WWEG EP WALES REHAB JOB FIT,REHAB JOBFIT,2033426203,"21,285"
Department for Work and Pensions ,Employment Programmes,08/12/2014,WP JSA 25+ SUSTAINMENT OUTCOME PAYMENT,WWEG EP NORTH EAST INGEUS UK,INGEUS UK LTD,2033429759,"21,285"
Department for Work and Pensions ,Employment Programmes,12/12/2014,WP JSA 25+ SUSTAINMENT OUTCOME PAYMENT,WWEG EP SOUTH EAST SURR SUSSX AND KENT AVANTA ENTERPRISE,AVANTA ENTERPRISE,2033439871,"21,285"
Department for Work and Pensions ,Employment Programmes,30/12/2014,WP JSA 25+ SUSTAINMENT OUTCOME PAYMENT,WWEG EP W MIDLANDS COV WARW STAFFS AND MARCHES SERCO,SERCO LTD,2033471132,"21,285"
Department for Work and Pensions ,Employment Programmes,29/12/2014,WP JSA 18-24 JOB SUSTAINMENT OUTCOME PAYMENT,WWEG EP EAST MIDLANDS A4E,A4E LTD,2033466298,"21,250"
Department for Work and Pensions ,Employment Programmes,02/12/2014,WP JSA 25+ JOB OUTCOME PAYMENTWP JSA 25+ JOB OUTCOME PAYMENT,WWEG EP NORTH WEST GM CHES AND WARR G4S,G4S REGIONAL MANAGEMENT UK & I LTD,2033416896,"21,234"
Department for Work and Pensions ,Housing Benefits,12/12/2014,HOUSING BENEFIT ADMINISTRATION,HB ENGLAND,ADUR DISTRICT COUNCIL,2033438342,"21,213"
Department for Work and Pensions ,Corporate,10/12/2014,CONTRACTORS & STAFF SUBSTITUTIONS,CHG DELIVERING THE IRIS ORGANISATION,CAPITA BUSINESS SERVICES LTD,2033434303,"21,137"
Department for Work and Pensions ,Corporate,15/12/2014,TREDDS IS IT CONSULTANCY (HOSTING) NON ADVICE,CHG VIRTUAL MACHINE ENVIRONMENT REPLACEMENT,HP ENTERPRISE SERVICES UK LTD,2033445445,"21,110"
Department for Work and Pensions ,Employment Programmes,02/12/2014,WP JSA 18-24 JOB SUSTAINMENT OUTCOME PAYMENT,WWEG EP NORTH WEST GM CHES AND WARR G4S,G4S REGIONAL MANAGEMENT UK & I LTD,2033416896,"21,080"
Department for Work and Pensions ,Employment Programmes,12/12/2014,WP JSA 25+ SUSTAINMENT OUTCOME PAYMENT,WWEG EP S WEST DEV COR DOR AND SOM PROSPECTS SERVICES,PROSPECTS SERVICES LTD,2033439545,"21,070"
Department for Work and Pensions ,Employment Programmes,02/12/2014,WP JSA 25+ JOB OUTCOME PAYMENTWP JSA 25+ JOB OUTCOME PAYMENT,WWEG EP EAST LONDON CAREERS DEVELOPMENT GROUP,CAREERS DEVELOPMENT GROUP,2033416973,"21,054"
Department for Work and Pensions ,Housing Benefits,12/12/2014,HOUSING BENEFIT ADMINISTRATION,HB ENGLAND,SURREY HEATH BOROUGH COUNCIL,2033438366,"20,973"
Department for Work and Pensions ,Employment Programmes,19/12/2014,WP JSA 25+ JOB OUTCOME PAYMENTWP JSA 25+ JOB OUTCOME PAYMENT,WWEG EP NORTH EAST AVANTA ENTERPRISE,AVANTA ENTERPRISE,2033454118,"20,970"
Department for Work and Pensions ,Employment Programmes,23/12/2014,ESF 2011-13 SUPPORT FOR FAMILIES WITH MULTIPLE PROBLEMS ESA/NON CLAIMANTS CUSTOMERS SECOND PROGRESS MEASURE PAYMENT,CPA12 YORKS AND HUMBER EOS WORKS LTD FORMERLY FOURSTAR,AVANTA ENTERPRISE LTD,2033461226,"20,940"
Department for Work and Pensions ,Employment Programmes,19/12/2014,WP JSA 18-24 JOB SUSTAINMENT OUTCOME PAYMENT,WWEG EP EAST MIDLANDS INGEUS UK,INGEUS UK LTD,2033452830,"20,910"
Department for Work and Pensions ,Corporate,17/12/2014,REMOTE STORAGE COSTS VAT RECOV,FG OPS FIN DM CONTRACTS,CAPITA BUSINESS SERVICES LTD,2033448186,"20,856"
Department for Work and Pensions ,Employment Programmes,04/12/2014,WP JSA 25+ SUSTAINMENT OUTCOME PAYMENT,WWEG EP W MIDLANDS COV WARW STAFFS AND MARCHES ESG,ESG HOLDINGS LIMITED,2033421265,"20,855"
Department for Work and Pensions ,Employment Programmes,08/12/2014,WP JSA 25+ SUSTAINMENT OUTCOME PAYMENT,WWEG EP NORTH WEST MERS HAL CUMB AND LANCS INGEUS UK,INGEUS UK LTD,2033429759,"20,855"
Department for Work and Pensions ,Employment Programmes,08/12/2014,WP JSA 25+ SUSTAINMENT OUTCOME PAYMENT,WWEG EP NORTH WEST GM CHES AND WARR SEETEC,SEETEC BUSINESS TECHNOLOGY CENTRE LTD,2033431423,"20,855"
Department for Work and Pensions ,Employment Programmes,19/12/2014,WP JSA 25+ SUSTAINMENT OUTCOME PAYMENT,WWEG EP S WEST GLOS WILTS AND W OF E JHP GROUP,LEARNDIRECT LTD,2033453341,"20,855"
Department for Work and Pensions ,Employment Programmes,24/12/2014,WP JSA 25+ SUSTAINMENT OUTCOME PAYMENT,WWEG EP NORTH WEST GM CHES AND WARR SEETEC,SEETEC BUSINESS TECHNOLOGY CENTRE LTD,2033464057,"20,855"
Department for Work and Pensions ,Employment Programmes,29/12/2014,WP JSA 25+ SUSTAINMENT OUTCOME PAYMENT,WWEG EP SCOTLAND INGEUS UK,INGEUS UK LTD,2033465330,"20,855"
Department for Work and Pensions ,Corporate,08/12/2014,POSTAGE,OPS NET CC CAPITA,ROYAL MAIL GROUP PLC,2033429535,"20,681"
Department for Work and Pensions ,Employment Programmes,12/12/2014,WP JSA 25+ SUSTAINMENT OUTCOME PAYMENT,WWEG EP WEST LONDON REED IN PARTNERSHIP,REED IN PARTNERSHIP LTD,2033439533,"20,640"
Department for Work and Pensions ,Employment Programmes,12/12/2014,WP JSA 18-24 JOB SUSTAINMENT OUTCOME PAYMENT,WWEG EP EAST OF ENGLAND SEETEC,SEETEC BUSINESS TECHNOLOGY CENTRE LTD,2033439763,"20,570"
Department for Work and Pensions ,Employment Programmes,22/12/2014,WP JSA 18-24 JOB SUSTAINMENT OUTCOME PAYMENT,WWEG EP NORTH WEST GM CHES AND WARR G4S,G4S REGIONAL MANAGEMENT UK & I LTD,2033457946,"20,570"
Department for Work and Pensions ,Corporate,17/12/2014,RENTAL UNDER OPERATING LEASES - VEHICLES RECURRENT EXPENDITURE,OPS OPE FES CCIS CENTRAL AND WALES,LEASEDRIVE LTD,2033448988,"20,560"
Department for Work and Pensions ,Corporate,31/12/2014,PRIME BUSINESS RATES,FG CD MANCHESTER ANCHORAGE HOUSE,TELEREAL TRILLIUM,2033470374,"20,485"
Department for Work and Pensions ,Employment Programmes,09/12/2014,WP JSA 25+ SUSTAINMENT OUTCOME PAYMENT,WWEG EP SCOTLAND INGEUS UK,INGEUS UK LTD,2033433535,"20,425"
Department for Work and Pensions ,Employment Programmes,17/12/2014,WP JSA 25+ SUSTAINMENT OUTCOME PAYMENT,WWEG EP EAST LONDON SEETEC,SEETEC BUSINESS TECHNOLOGY CENTRE LTD,2033448612,"20,425"
Department for Work and Pensions ,Employment Programmes,19/12/2014,WP JSA 25+ SUSTAINMENT OUTCOME PAYMENT,WWEG EP NORTH WEST MERS HAL CUMB AND LANCS A4E,A4E LTD,2033453414,"20,425"
Department for Work and Pensions ,Employment Programmes,30/12/2014,WP JSA 25+ SUSTAINMENT OUTCOME PAYMENT,WWEG EP EAST LONDON CAREERS DEVELOPMENT GROUP,CAREERS DEVELOPMENT GROUP,2033472129,"20,425"
Department for Work and Pensions ,Employment Programmes,01/12/2014,WP JSA 25+ JOB OUTCOME PAYMENTWP JSA 25+ JOB OUTCOME PAYMENT,WWEG EP SOUTH EAST TV HANTS AND IOW MAXIMUS EMPLOYMENT,MAXIMUS EMPLOYMENT UK LTD,2033413814,"20,424"
Department for Work and Pensions ,Housing Benefits,12/12/2014,HOUSING BENEFIT ADMINISTRATION,HB ENGLAND,EPSOM & EWELL BOROUGH COUNCIL,2033438393,"20,315"
Department for Work and Pensions ,Employment Programmes,30/12/2014,WP JSA 25+ JOB OUTCOME PAYMENTWP JSA 25+ JOB OUTCOME PAYMENT,WWEG EP EAST MIDLANDS A4E,A4E LTD,2033472167,"20,304"
Department for Work and Pensions ,Employment Programmes,16/12/2014,WP JSA 18-24 JOB SUSTAINMENT OUTCOME PAYMENT,WWEG EP EAST LONDON CAREERS DEVELOPMENT GROUP,CAREERS DEVELOPMENT GROUP,2033446616,"20,230"
Department for Work and Pensions ,Housing Benefits,12/12/2014,HOUSING BENEFIT ADMINISTRATION,HB ENGLAND,NORTH DORSET DISTRICT COUNCIL,2033438502,"20,217"
Department for Work and Pensions ,Employment Programmes,05/12/2014,WP JSA 25+ SUSTAINMENT OUTCOME PAYMENT,WWEG EP W MIDLANDS BIRM SOL BC NEWCASTLE COLLEGE GROUP,NEWCASTLE COLLEGE GROUP,2033425639,"20,210"
Department for Work and Pensions ,Employment Programmes,12/12/2014,WP JSA 25+ SUSTAINMENT OUTCOME PAYMENT,WWEG EP S WEST GLOS WILTS AND W OF E JHP GROUP,LEARNDIRECT LTD,2033439716,"20,210"
Department for Work and Pensions ,Employment Programmes,15/12/2014,WP JSA 25+ SUSTAINMENT OUTCOME PAYMENT,WWEG EP NORTH WEST GM CHES AND WARR SEETEC,SEETEC BUSINESS TECHNOLOGY CENTRE LTD,2033443866,"20,210"
Department for Work and Pensions ,Employment Programmes,16/12/2014,WP JSA 25+ SUSTAINMENT OUTCOME PAYMENT,WWEG EP EAST LONDON A4E,A4E LTD,2033447407,"20,210"
Department for Work and Pensions ,Employment Programmes,23/12/2014,WP JSA 25+ SUSTAINMENT OUTCOME PAYMENT,WWEG EP EAST MIDLANDS INGEUS UK,INGEUS UK LTD,2033460535,"20,210"
Department for Work and Pensions ,Housing Benefits,12/12/2014,HOUSING BENEFIT ADMINISTRATION,HB ENGLAND,NORTH WARWICKSHIRE DISTRICT COUNCIL,2033438346,"20,003"
Department for Work and Pensions ,Employment Programmes,04/12/2014,WP JSA 25+ SUSTAINMENT OUTCOME PAYMENT,WWEG EP SCOTLAND INGEUS UK,INGEUS UK LTD,2033421271,"19,995"
Department for Work and Pensions ,Employment Programmes,05/12/2014,WP JSA 25+ SUSTAINMENT OUTCOME PAYMENT,WWEG EP SOUTH YORKSHIRE SERCO,SERCO LTD,2033423915,"19,995"
Department for Work and Pensions ,Employment Programmes,05/12/2014,WP JSA 25+ SUSTAINMENT OUTCOME PAYMENT,WWEG EP S WEST GLOS WILTS AND W OF E JHP GROUP,LEARNDIRECT LTD,2033428330,"19,995"
Department for Work and Pensions ,Employment Programmes,09/12/2014,WP JSA 25+ SUSTAINMENT OUTCOME PAYMENT,WWEG EP S WEST DEV COR DOR AND SOM PROSPECTS SERVICES,PROSPECTS SERVICES LTD,2033432220,"19,995"
Department for Work and Pensions ,Employment Programmes,10/12/2014,WP JSA 25+ SUSTAINMENT OUTCOME PAYMENT,WWEG EP SOUTH EAST SURR SUSSX AND KENT AVANTA ENTERPRISE,AVANTA ENTERPRISE,2033436537,"19,995"
Department for Work and Pensions ,Employment Programmes,12/12/2014,WP JSA 25+ SUSTAINMENT OUTCOME PAYMENT,WWEG EP SOUTH YORKSHIRE SERCO,SERCO LTD,2033440245,"19,995"
Department for Work and Pensions ,Employment Programmes,15/12/2014,WP JSA 25+ SUSTAINMENT OUTCOME PAYMENT,WWEG EP SCOTLAND INGEUS UK,INGEUS UK LTD,2033445254,"19,995"
Department for Work and Pensions ,Employment Programmes,23/12/2014,WP JSA 25+ SUSTAINMENT OUTCOME PAYMENT,WWEG EP SOUTH EAST SURR SUSSX AND KENT G4S,G4S REGIONAL MANAGEMENT UK & I LTD,2033462334,"19,995"
Department for Work and Pensions ,Employment Programmes,30/12/2014,WP JSA 25+ SUSTAINMENT OUTCOME PAYMENT,WWEG EP NORTH EAST Y AND H NEWCASTLE COLLEGE GROUP,NEWCASTLE COLLEGE GROUP,2033472876,"19,995"
Department for Work and Pensions ,Employment Programmes,24/12/2014,WP JSA 25+ JOB OUTCOME PAYMENTWP JSA 25+ JOB OUTCOME PAYMENT,WWEG EP SOUTH EAST SURR SUSSX AND KENT G4S,G4S REGIONAL MANAGEMENT UK & I LTD,2033464230,"19,860"
Department for Work and Pensions ,Employment Programmes,30/12/2014,WP JSA 25+ JOB OUTCOME PAYMENTWP JSA 25+ JOB OUTCOME PAYMENT,WWEG EP EAST OF ENGLAND INGEUS UK,INGEUS UK LTD,2033473043,"19,821"
Department for Work and Pensions ,Employment Programmes,08/12/2014,WP JSA 25+ SUSTAINMENT OUTCOME PAYMENT,WWEG EP WALES REHAB JOB FIT,REHAB JOBFIT,2033431647,"19,780"
Department for Work and Pensions ,Employment Programmes,15/12/2014,WP JSA 25+ SUSTAINMENT OUTCOME PAYMENT,WWEG EP NORTH WEST MERS HAL CUMB AND LANCS INGEUS UK,INGEUS UK LTD,2033445254,"19,780"
Department for Work and Pensions ,Employment Programmes,30/12/2014,WP JSA 25+ SUSTAINMENT OUTCOME PAYMENT,WWEG EP EAST LONDON A4E,A4E LTD,2033472167,"19,780"
Department for Work and Pensions ,Housing Benefits,12/12/2014,HOUSING BENEFIT ADMINISTRATION,HB SCOTLAND,EAST RENFREWSHIRE COUNCIL,2033438269,"19,687"
Department for Work and Pensions ,Employment Programmes,02/12/2014,WP JSA 25+ JOB OUTCOME PAYMENTWP JSA 25+ JOB OUTCOME PAYMENT,WWEG EP SOUTH EAST SURR SUSSX AND KENT AVANTA ENTERPRISE,AVANTA ENTERPRISE,2033416782,"19,680"
Department for Work and Pensions ,Corporate,09/12/2014,NON-TREDDS IS IT SERVICES (HOSTING),CIO GG SERVICE DELIVERY,ATOS ORIGIN IT SERVICES UK LTD,2033432076,"19,591"
Department for Work and Pensions ,Employment Programmes,16/12/2014,WP JSA 25+ SUSTAINMENT OUTCOME PAYMENT,WWEG EP EAST OF ENGLAND INGEUS UK,INGEUS UK LTD,2033446069,"19,565"
Department for Work and Pensions ,Employment Programmes,17/12/2014,WP JSA 25+ SUSTAINMENT OUTCOME PAYMENT,WWEG EP SCOTLAND WORKING LINKS,WORKING LINKS,2033449784,"19,565"
Department for Work and Pensions ,Employment Programmes,01/12/2014,ATTACHMENT FEE,WWEP EP FG CEP SJ BLACK COUNTRY AND MERCIA,LEARNDIRECT LTD,2033414050,"19,519"
Department for Work and Pensions ,Employment Programmes,04/12/2014,WP JSA 25+ JOB OUTCOME PAYMENTWP JSA 25+ JOB OUTCOME PAYMENT,WWEG EP NORTH WEST GM CHES AND WARR G4S,G4S REGIONAL MANAGEMENT UK & I LTD,2033421817,"19,512"
Department for Work and Pensions ,Employment Programmes,12/12/2014,WP JSA 25+ JOB OUTCOME PAYMENTWP JSA 25+ JOB OUTCOME PAYMENT,WWEG EP NORTH EAST AVANTA ENTERPRISE,AVANTA ENTERPRISE,2033439871,"19,500"
Department for Work and Pensions ,Corporate,08/12/2014,POSTAGE,OPS PEN PS AA UNIT,ROYAL MAIL GROUP PLC,2033429535,"19,450"
Department for Work and Pensions ,Housing Benefits,12/12/2014,HOUSING BENEFIT ADMINISTRATION,HB ENGLAND,BRENTWOOD DISTRICT COUNCIL,2033438362,"19,304"
Department for Work and Pensions ,Employment Programmes,04/12/2014,WP JSA 25+ JOB OUTCOME PAYMENTWP JSA 25+ JOB OUTCOME PAYMENT,WWEG EP SOUTH EAST TV HANTS AND IOW MAXIMUS EMPLOYMENT,MAXIMUS EMPLOYMENT UK LTD,2033422336,"19,203"
Department for Work and Pensions ,Employment Programmes,12/12/2014,WP JSA 25+ SUSTAINMENT OUTCOME PAYMENT,WWEG EP SOUTH EAST SURR SUSSX AND KENT G4S,G4S REGIONAL MANAGEMENT UK & I LTD,2033439627,"19,135"
Department for Work and Pensions ,Employment Programmes,16/12/2014,WP JSA 25+ SUSTAINMENT OUTCOME PAYMENT,WWEG EP NORTH WEST GM CHES AND WARR SEETEC,SEETEC BUSINESS TECHNOLOGY CENTRE LTD,2033447203,"19,135"
Department for Work and Pensions ,Employment Programmes,19/12/2014,WP JSA 25+ SUSTAINMENT OUTCOME PAYMENT,WWEG EP WEST LONDON REED IN PARTNERSHIP,REED IN PARTNERSHIP LTD,2033453761,"19,135"
Department for Work and Pensions ,Employment Programmes,29/12/2014,WP JSA 25+ SUSTAINMENT OUTCOME PAYMENT,WWEG EP EAST OF ENGLAND INGEUS UK,INGEUS UK LTD,2033465330,"19,135"
Department for Work and Pensions ,Employment Programmes,05/12/2014,WP JSA 25+ JOB OUTCOME PAYMENTWP JSA 25+ JOB OUTCOME PAYMENT,WWEG EP SOUTH EAST TV HANTS AND IOW A4E,A4E LTD,2033424051,"19,056"
Department for Work and Pensions ,Employment Programmes,01/12/2014,WP JSA 18-24 JOB SUSTAINMENT OUTCOME PAYMENT,WWEG EP EAST OF ENGLAND SEETEC,SEETEC BUSINESS TECHNOLOGY CENTRE LTD,2033414229,"19,040"
Department for Work and Pensions ,Employment Programmes,05/12/2014,WP JSA 18-24 JOB SUSTAINMENT OUTCOME PAYMENT,WWEG EP NORTH WEST GM CHES AND WARR SEETEC,SEETEC BUSINESS TECHNOLOGY CENTRE LTD,2033424557,"19,040"
Department for Work and Pensions ,Employment Programmes,05/12/2014,WP JSA 18-24 JOB SUSTAINMENT OUTCOME PAYMENT,WWEG EP WEST YORKSHIRE BEST LTD,INTERSERVE WORKING FUTURES,2033425166,"19,040"
Department for Work and Pensions ,Employment Programmes,23/12/2014,WP JSA 18-24 JOB SUSTAINMENT OUTCOME PAYMENT,WWEG EP NORTH EAST AVANTA ENTERPRISE,AVANTA ENTERPRISE,2033459934,"19,040"
Department for Work and Pensions ,Employment Programmes,01/12/2014,WP JSA 25+ JOB OUTCOME PAYMENTWP JSA 25+ JOB OUTCOME PAYMENT,WWEG EP EAST OF ENGLAND SEETEC,SEETEC BUSINESS TECHNOLOGY CENTRE LTD,2033414229,"19,032"
Department for Work and Pensions ,Employment Programmes,19/12/2014,WP JSA NEET SUSTAINMENT OUTCOME PAYMENT,WWEG EP SCOTLAND INGEUS UK,INGEUS UK LTD,2033452830,"19,000"
Department for Work and Pensions ,Employment Programmes,19/12/2014,WP JSA NEET SUSTAINMENT OUTCOME PAYMENT,WWEG EP EAST OF ENGLAND INGEUS UK,INGEUS UK LTD,2033452830,"19,000"
Department for Work and Pensions ,Employment Programmes,29/12/2014,WP JSA CLAIMING 22 OF 24MTHS SUSTAINMENT OUTCOME PAYMENT,WWEG EP EAST MIDLANDS A4E,A4E LTD,2033466298,"19,000"
Department for Work and Pensions ,Employment Programmes,30/12/2014,WP JSA NEET SUSTAINMENT OUTCOME PAYMENT,WWEG EP EAST OF ENGLAND INGEUS UK,INGEUS UK LTD,2033473043,"19,000"
Department for Work and Pensions ,Corporate,31/12/2014,PRIME BUSINESS RATES,FG CD MANCHESTER HEYWOOD STORES,TELEREAL TRILLIUM,2033470374,"18,979"
Department for Work and Pensions ,Employment Programmes,08/12/2014,WP JSA 25+ SUSTAINMENT OUTCOME PAYMENT,WWEG EP WALES WORKING LINKS WALES,WORKING LINKS,2033429836,"18,920"
Department for Work and Pensions ,Employment Programmes,11/12/2014,WP JSA 25+ SUSTAINMENT OUTCOME PAYMENT,WWEG EP EAST OF ENGLAND INGEUS UK,INGEUS UK LTD,2033438063,"18,920"
Department for Work and Pensions ,Employment Programmes,22/12/2014,WP JSA 25+ SUSTAINMENT OUTCOME PAYMENT,WWEG EP EAST MIDLANDS A4E,A4E LTD,2033459524,"18,920"
Department for Work and Pensions ,Child Maintenance and Enforcement Commission,24/12/2014,OVERTIME,CENTRAL SERVICE AREA MANAGEMENT OFFICE,DSD GROUP ACCOUNT,1001921,"18,863"
Department for Work and Pensions ,Employment Programmes,30/12/2014,WP JSA 25+ JOB OUTCOME PAYMENTWP JSA 25+ JOB OUTCOME PAYMENT,WWEG EP NORTH EAST AVANTA ENTERPRISE,AVANTA ENTERPRISE,2033471611,"18,840"
Department for Work and Pensions ,Employment Programmes,12/12/2014,WP JSA 25+ JOB OUTCOME PAYMENTWP JSA 25+ JOB OUTCOME PAYMENT,WWEG EP EAST LONDON A4E,A4E LTD,2033439802,"18,774"
Department for Work and Pensions ,Employment Programmes,01/12/2014,WP JSA 25+ SUSTAINMENT OUTCOME PAYMENT,WWEG EP S WEST GLOS WILTS AND W OF E JHP GROUP,LEARNDIRECT LTD,2033414050,"18,705"
Department for Work and Pensions ,Employment Programmes,11/12/2014,WP JSA 25+ SUSTAINMENT OUTCOME PAYMENT,WWEG EP SCOTLAND WORKING LINKS,WORKING LINKS,2033438139,"18,705"
Department for Work and Pensions ,Employment Programmes,15/12/2014,WP JSA 25+ SUSTAINMENT OUTCOME PAYMENT,WWEG EP S WEST DEV COR DOR AND SOM PROSPECTS SERVICES,PROSPECTS SERVICES LTD,2033445344,"18,705"
